Workbook

Sheet Cover
B6: Official Statistics Release
B7: Policy area: | C7: Local authorities and children's homes in England inspections and outcomes Autumn 2018
B8: Theme: | C8: Social care
B9: Published on: | C9: 13 December 2018
B10: Coverage: | C10: England
B11: Period covered: | C11: ="Inspection outcomes for local authority children's services, "&Inspections_From &" to "&Inspections_To &", published by " &Published_By -> Inspection outcomes for local authority children's services, 01 April 2018 to 30 September 2018, published by 31 October 2018
C12: ="Inspection outcomes of most recent inspection for local authority children’s services inspections, as at " &Inspections_To& ", published by " &Published_By -> Inspection outcomes of most recent inspection for local authority children’s services inspections, as at 30 September 2018, published by 31 October 2018
C13: ="Inspection outcomes for all children's homes, "&Inspections_From &" to "&Inspections_To &", published by "&Published_By -> Inspection outcomes for all children's homes, 01 April 2018 to 30 September 2018, published by 31 October 2018
C14: ="Inspection outcomes of most recent inspection for all children’s homes, as at "&Inspections_To &", published by 31 October 2018" -> Inspection outcomes of most recent inspection for all children’s homes, as at 30 September 2018, published by 31 October 2018
B15: Status: | C15: ="Provisional - inspection outcomes of the most recent inspection of local authority children's services, " &Inspections_From &" to " &Inspections_To -> Provisional - inspection outcomes of the most recent inspection of local authority children's services, 01 April 2018 to 30 September 2018
C16: ="Provisional - inspections of local authority children's services, as at " &Inspections_To -> Provisional - inspections of local authority children's services, as at 30 September 2018
C17: ="Provisional - inspection outcomes of the most recent inspection of children’s homes, " &Inspections_From &" to " &Inspections_To -> Provisional - inspection outcomes of the most recent inspection of children’s homes, 01 April 2018 to 30 September 2018
C18: ="Provisional - inspections of children’s homes, as at " &Inspections_To -> Provisional - inspections of children’s homes, as at 30 September 2018
C19: Revised - inspections of regulated, and other, children's social care provision, 1 April 2017 to 31 March 2018, published by 31 October 2018
B20: Issued by: | C20: Office for Standards in Education, Children’s Services and Skills (Ofsted), 125 Kingsway, London, WC2B 6SE
B21: Chief Statistician: | C21: Jason Bradbury
B22: Statistician: | C22: Adam King
B23: Public enquiries: | C23: If you have any comments or feedback on this publication, please contact the Social Care Data Team on 03000 130 020 or socialcaredata@ofsted.gov.uk
B24: Press enquiries: | C24: pressenquiries@ofsted.gov.uk
B25: Publication frequency: | C25: Annual
B26: Schedule of publication: | C26: www.gov.uk/government/statistics/announcements?utf8=%E2%9C%93&organisations%5B%5D=ofsted
B28: © Crown copyright 2018
B29: You may use and re-use this information (not including logos) free of charge in any format or medium, under the terms of the Open Government Licence.
B30: To view this licence, visit: www.nationalarchives.gov.uk/doc/open-government-licence/
B31: Or write to the Information Policy Team, The National Archives, Kew, London, TW9 4DU
B32: Or email: psi@nationalarchives.gsi.gov.uk

Sheet Contents
B1: Contents
B3: Worksheet title and link | C3: Description of contents of worksheet
B5: Notes | C5: These are notes about the document and data within it to aid the use and interpretation of the data.
B7: Glossary | C7: This is a list of terms found in the document with further explanations about what they mean.
B9: Meta-data | C9: This is a headline guide to what data is contained in each tab, with direct links to the tabs.
B11: LA Inspection | C11: This is an interactive table which shows inspection judgements for local authority inspections. It covers the current and two previous inspection frameworks. It has drop down options for: England; region; local authority; and inspection type.
B13: Children's homes | C13: This is an interactive table which shows inspection judgements for all children's homes inspections. It has numerous drop down options including; England/region/local authority, inspection period, children's homes type and inspection type.
B15: Sub-Judgements | C15: This is an interactive table which shows inspection sub-judgements for all children's homes inspections. It has numerous drop down options including: England; region; local authority; inspection period; children's homes type; and sector.
B17: LA level at 30 Sep 2018 | C17: This is a list of all the local authorities in England. Where they have received an inspection in the current SIF cycle, their inspection judgements are shown. If an LA has been inspected more than once in the cycle it has an entry for each SIF inspection.
B19: LA level in year 2018-19 | C19: ="This is a list of all LAs inspected or visited between " & Inspections_From & " and " & Inspections_To & " with the inspection judgements from all the different types of inspections/visits. If an LA is visited more than once in the period it has an entry for each inspection/visit." -> This is a list of all LAs inspected or visited between 01 April 2018 and 30 September 2018 with the inspection judgements from all the different types of inspections/visits. If an LA is visited more than once in the period it has an entry for each inspection/visit.
B21: All ILACS | C21: This is a list of all visits and inspections under to LAs under the ILACS framework, from January-September 2018
B23: Provider level at 30 Sep 2018 | C23: ="This is a list of all active inspected children's homes as at " & Inspections_To & " with the inspection judgements from their most recent full inspection." -> This is a list of all active inspected children's homes as at 30 September 2018 with the inspection judgements from their most recent full inspection.
B25: Provider level in year 2018-19 | C25: ="This is a list of all children's homes inspected between " & Inspections_From & " and " & Inspections_To & " with the inspection judgements from all the different types of inspections/visits. If a provision is inspected more than once in the year it has an entry for each inspection." -> This is a list of all children's homes inspected between 01 April 2018 and 30 September 2018 with the inspection judgements from all the different types of inspections/visits. If a provision is inspected more than once in the year it has an entry for each inspection.
B27: Revised 2017-18 in year data | C27: ="This is a list of inspections of all regulated, and other, children's social care provision between "&Inspections_From&" and "&Inspections_To&", published by "&Published_By -> This is a list of inspections of all regulated, and other, children's social care provision between 01 April 2018 and 30 September 2018, published by 31 October 2018
B29: Latest OE 30 Sep Time Series | C29: ="This is an interactive time series table and chart showing overall effectiveness of all the different types of children's homes, as at 31 March each year and " &Inspections_To -> This is an interactive time series table and chart showing overall effectiveness of all the different types of children's homes, as at 31 March each year and 30 September 2018
B31: In year Time Series | C31: This is a group of time series tables and charts showing overall effectiveness of all types of children's homes inspected each year and broken down by children's homes sub-type.
B34: Social Care in England 2018 data | C34: This is an external link to the Social Care in England 2018 data for comparison.

Sheet Notes
B3: Data
B4: The inspection outcomes data relates to inspections of:
B6: Local authority (LA) services for children who need help and protection, children looked after and care leavers. The inspections of LA children’s services are carried out under the Single Inspection Framework (SIF).
B8: Children's homes of all types.
B10: Notes to help use/interpret the data
B11: Where the term 'Residential special school (registered as a children's home)' is used, this refers to residential special schools that are registered as children's homes as they care for pupils for more than 295 days in a year.
B13: Some children's home interim inspections have an overall effectiveness outcome of 'not judged'. This is because the home had no children present at the time of inspection and so could not receive an inspection judgement.
B15: Monitoring visits of children's homes very rarely have an overall effectiveness judgement, but where on has been made it will be included in the interactive tables. Where no judgement is made the visits are still included in the tables.
B17: ="In the Provider level at "&Inspections_To&" data we have used the social care common inspection framework's sub judgement wording rather than the wording at the time of inspection." -> In the Provider level at 30 September 2018 data we have used the social care common inspection framework's sub judgement wording rather than the wording at the time of inspection.
B19: Caution should be used when comparing inspection judgements from year to year in the time series charts and tables. Inspection framework changes may have an impact on inspection judgements and so a changing grade profile from one year to the next may not solely indicate a change in the quality of provisions.
B21: ="The data relating to the owner of the children's home is taken as at "&Published_By&" and so it may be possible that this is different to the point at which the home was inspected." -> The data relating to the owner of the children's home is taken as at 31 October 2018 and so it may be possible that this is different to the point at which the home was inspected.
B23: The worksheet called 'LA Inspection' shows the most recent inspection for each LA under each inspection framework. The sub-judgement names from the ILACS framework have been used, even when the sub-judgement was made under the SIF programme.
B25: Revisions
B26: Any revisions to the inspection data for April to September 2018 will be included in the Children's social care in England national statistics, published in July/August each year. This will include advisory notes about any impact to figures and findings from the first full release of provisional data. Revisions are published in line with Ofsted’s revisions policy for official statistics. For more information about the policy, please visit the Ofsted website or access the policy via the following link:
B27: www.gov.uk/government/publications/ofsted-standards-for-official-statistics
B29: Other available data
B30: Previously published data regarding LA inspections, children’s social care inspections and providers and places can be found at the following links on GOV.UK:
B31: www.gov.uk/government/collections/childrens-social-care-statistics
B32: and in the National Archives:
B33: www.webarchive.nationalarchives.gov.uk/20141124154759/http:/www.ofsted.gov.uk/resources/statistics
B34: These pages also contain data on adoption, fostering, children looked after placements and serious incident notifications which the reader may find relevant.
B36: Quality Report
B37: An explanation about key uses of this data and further contextual information is provided in the accompanying Quality and Methodology report. The report also provides information about the arrangements for quality assurance, strengths and limitations of the statistics:
B38: www.gov.uk/government/collections/childrens-social-care-statistics

Sheet Glossary
B1: Glossary
B3: Adoption agencies
B4: The focus of all adoption agencies is on placing children successfully into adoptive families who the agency recruits, assesses, prepares and supports, so they will meet the children’s needs and enable them to develop and achieve throughout their lives. The services maintained by local authorities are described in section 3(1) of the Adoption and Children Act 2002. Local authorities place children with adoptive families recruited and approved by themselves, by other local authorities or by voluntary adoption agencies who must register with Ofsted. Adoption agencies may also provide birth records, counselling and intermediary services to adoptees and birth relatives. There are three branches of voluntary adoption agencies in Wales which are inspected by Ofsted because their head offices are in England. These are not included in this publication.
B6: Adoption support agencies
B7: Adoption support agencies are defined by section 8 of the Adoption and Children Act 2002 and provide services to anyone touched by adoption and are registered with Ofsted. This includes counselling and help for children and adults to gain information about their adoption or to trace birth relatives. Adoption support agencies can be either organisations or individuals, and may be contracted by a local authority to provide support services.
B9: Boarding schools
B10: The majority of boarding schools are independent and belong to associations which are members of the Independent Schools Council. As both education and welfare in these schools are inspected by their own inspectorate, Ofsted does not inspect these schools and so they are not included in the data. The remainder are maintained and independent boarding schools where both education and the welfare of boarders are the subject of Ofsted inspection and independent boarding schools which are members of the Schools Inspection Service and who receive their education inspections by this organisation and their welfare inspections by Ofsted.
B12: Children’s homes
B13: A children’s home is defined in section 1 of the Care Standards Act 2000, and is an establishment that provides care and accommodation wholly or mainly for children. Children’s homes vary in size and nature. They fulfil a range of purposes designed to meet the different needs of those children and young people who are assessed as needing a residential care placement. Some homes, for example, provide short-breaks which are needed to help support children and their family. Some residential special schools are registered as children’s homes because boarders are resident for more than 295 days per year.
B15: Fostering agencies
B16: Local authority fostering services are defined by section 4 of the Care Standards Act 2000. Local authority fostering agencies and independent fostering agencies recruit, prepare, assess, train and support foster carers. Independent fostering agencies (IFAs) are private companies or charities, which are registered with Ofsted and provide placements to children and young people with foster carers approved by them. IFAs work closely with local authorities to deliver these placements.
B18: Further education colleges with residential accommodation
B19: The care provision of further education colleges that provide, or arrange, residential accommodation for one or more students under the age of 18 years. Ofsted inspects these colleges under section 87 of the children act 1989 as amended by the Care Standards Act 2000. Where a college is registered as a care home, the residential provision is inspected by the Care Quality Commission rather than by Ofsted.
B21: Places
B22: The term ‘places’ used in this report refers to the number of places for which the social care provider has capacity. This number usually will not, therefore, be the same as the actual number of children who are receiving services from the provider. Ofsted holds data relating to places for: children's homes; secure children's homes; residential special schools; residential family centres; boarding schools; and further education colleges. For some of these providers Ofsted does not hold data relating to places. Where this is the case, the number of places has been estimated. For all other provision types, and aggregated provision types, places data is not available.
B24: Providers
B25: Children’s social care providers are those institutions or organisations or agencies that provide services to the relevant children and young people. The providers commented on within this report include children’s homes, secure children’s homes, residential special schools, residential family centres, boarding schools, residential further education colleges, secure training centres, residential holiday schemes for disabled children, adoption support agencies, voluntary adoption agencies, and independent fostering services.
B27: Residential family centres
B28: Residential family centres are defined in section 4(2) of the Care Standards Act 2000 as establishments at which: a) accommodation is provided for children and their parents; b) the parents’ capacity to respond to the children’s needs and to safeguard their welfare is monitored and assessed; and c) the parents are given such advice, guidance and counselling is considered necessary.
B30: Residential holiday schemes for disabled children
B31: A residential holiday scheme for disabled children provides care and accommodation wholly or mainly for disabled children for a specified period for the purposes of a holiday, or for recreational, sporting, cultural or educational purposes. Ofsted inspects these schemes under the Care Standards Act 2000, Part 2 (Extension of the Application of Part 2 to Holiday Schemes for Disabled Children) (England) Regulations 2013.
B33: Residential special schools
B34: Residential special schools are defined in section 59 of the Safeguarding Vulnerable Groups Act 2006. They vary in size and nature. The sector includes large non-maintained special schools which make provision for very specific needs and take children as full boarders from all over the country, to smaller more local providers catering for children with a range of different special needs and disabilities who may be resident at the school only during the week. Some residential special schools are registered as children’s homes because boarders are resident for more than 295 days per year. There are also a small number of independent residential special schools who also tend to cater for children with very specialist needs.
B36: Sector
B37: Sector refers to the type of provider that owns the children’s social care provision.
B39: Academy
B40: These are publicly funded independent schools who are run by trusts.
B42: Health Authority
B43: These are NHS Trust-run.
B45: Local Authority
B46: These are public bodies responsible for the children’s social care provision.
B48: Private
B49: These are for-profit organisations mostly with limited company status. These can also though be individually owned children’s social care provision and run for profit.
B51: Voluntary
B52: These are mostly not-for-profit organisations, mainly with charitable status. These can also be individually owned children’s social care provision and run on a not-for-profit basis.
B54: Secure children’s homes
B55: Secure children’s homes are defined by section 25 of the Children Act 1989. They accommodate children and young people who are remanded or have been sentenced for committing a criminal offence. They also accommodate children and young people who are placed there by a court because their behaviour is deemed to present a significant and immediate threat to their safety or the safety of others, unless they are placed in a secure environment. Ofsted inspections are conducted in accordance with the Care Standards Act 2000 and judgements in reports are made in relation to the outcomes for children set out in the Children Act 2004. The criteria are the same as those used to inspect non-secure children’s homes.
B57: Secure training centres
B58: Secure training centres are defined by section 43(1) (d) of the Prison Act 1952, as amended by Section 6(2) of the Criminal Justice and Public Order Act 1994. Ofsted has the power to inspect under section 146 Education and Inspections Act 2006 and inspects both the care and educational provision for children in three secure training centres. They accommodate young people between the ages of 12 and 17 who have been remanded or sentenced by the courts. The centres are under contract to the Youth Justice Board, which monitors their compliance with requirements. Ofsted does not regulate secure training centres but has an agreement with the Youth Justice Board to inspect care twice a year and education once a year.

Sheet Meta-data
B2: Type of data shown in each tab
C4: Local authorities | D4: Children's homes only | E4: All social care providers | F4: In year/period | G4: State of the nation
B5: LA inspection | C5: R | F5: R | G5: R
B6: Children's homes | D6: R | F6: R | G6: R
B7: Sub-judgements | D7: R | F7: R | G7: R
B8: LA level at 30 Sep 2018 | C8: R | G8: R
B9: LA level in year 2018-19 | C9: R | F9: R
B10: All ILACS | C10: R | F10: R
B11: Provider level at 30 Sep 2018 | D11: R | G11: R
B12: Provider level in year 2018-19 | D12: R | F12: R
B13: Revised 2017-18 in year data | E13: R | F13: R
B14: Latest OE 30 Sep Time Series | D14: R | G14: R
B15: In Year Time series | D15: R | F15: R

Sheet LA Inspection
B2: ="Statistical First Release Local Authority Inspections as at "&Inspections_To -> Statistical First Release Local Authority Inspections as at 30 September 2018
B4: Region: | E4: Local Authority:
B5: All | E5: Bedford | G5: =IF(B5="All",TRUE,NOT(ISERROR(MATCH(E5,INDIRECT(SUBSTITUTE(SUBSTITUTE(B5," ","_"),",","")),0)))) -> TRUE
B7: Date: | E7: Inspection Type:
B8: as at 30 September 2018 | E8: Latest full inspection
B10: Judgements | C10: Inspection Outcomes
C11: Outstanding | D11: Good | E11: Requires improvement / adequate | F11: Inadequate | G11: Not judged
B14: Overall Effectiveness | C14: =IF(OR($E$8="ILACS Focused Visit",$E$8="LA Monitoring Visit"),"",IF(ISERROR( VLOOKUP($E$8&$B$9&$E$5&$B$5&$B$14&$B$8,'LA FINAL RAW DATA'!$A:$K,5,0))=TRUE,0, VLOOKUP($E$8&$B$9&$E$5&$B$5&$B$14&$B$8,'LA FINAL RAW DATA'!$A:$K,7,0))) -> 0 | D14: =IF(OR($E$8="ILACS Focused Visit",$E$8="LA Monitoring Visit"),"",IF(ISERROR( VLOOKUP($E$8&$B$9&$E$5&$B$5&$B$14&$B$8,'LA FINAL RAW DATA'!$A:$K,5,0))=TRUE,0, VLOOKUP($E$8&$B$9&$E$5&$B$5&$B$14&$B$8,'LA FINAL RAW DATA'!$A:$K,8,0))) -> 0 | E14: =IF(OR($E$8="ILACS Focused Visit",$E$8="LA Monitoring Visit"),"",IF(ISERROR( VLOOKUP($E$8&$B$9&$E$5&$B$5&$B$14&$B$8,'LA FINAL RAW DATA'!$A:$K,5,0))=TRUE,0, VLOOKUP($E$8&$B$9&$E$5&$B$5&$B$14&$B$8,'LA FINAL RAW DATA'!$A:$K,9,0))) -> 1 | F14: =IF(OR($E$8="ILACS Focused Visit",$E$8="LA Monitoring Visit"),"",IF(ISERROR( VLOOKUP($E$8&$B$9&$E$5&$B$5&$B$14&$B$8,'LA FINAL RAW DATA'!$A:$K,5,0))=TRUE,0, VLOOKUP($E$8&$B$9&$E$5&$B$5&$B$14&$B$8,'LA FINAL RAW DATA'!$A:$K,10,0))) -> 0 | G14: =IF(ISERROR( VLOOKUP($E$8&$B$9&$E$5&$B$5&$B$14&$B$8,'LA FINAL RAW DATA'!$A:$K,5,0))=TRUE,0, VLOOKUP($E$8&$B$9&$E$5&$B$5&$B$14&$B$8,'LA FINAL RAW DATA'!$A:$K,11,0)) -> 0
B16: =IF(OR($E$8="ILACS Short inspection",$E$8="ILACS Standard inspection"),"Experiences and progress of children who need help and protection",IF(OR($E$8="SIF - Re-inspection",$E$8="SIF"),"Children who need help and protection","")) ->  | C16: =IF(OR($E$8="LA Monitoring Visit",$E$8="ILACS Focused Visit",$E$8="Safeguarding",$E$8="Child protection inspection",$E$8="Looked after children",$E8="Latest full inspection"),"",IF(ISERROR( VLOOKUP($E$8&$B$9&$E$5&$B$5&$B$16&$B$8,'LA FINAL RAW DATA'!$A:$K,5,0))=TRUE,0, VLOOKUP($E$8&$B$9&$E$5&$B$5&$B$16&$B$8,'LA FINAL RAW DATA'!$A:$K,7,0))) ->  | D16: =IF(OR($E$8="LA Monitoring Visit",$E$8="ILACS Focused Visit",$E$8="Safeguarding",$E$8="Child protection inspection",$E$8="Looked after children",$E8="Latest full inspection"),"",IF(ISERROR( VLOOKUP($E$8&$B$9&$E$5&$B$5&$B$16&$B$8,'LA FINAL RAW DATA'!$A:$K,5,0))=TRUE,0, VLOOKUP($E$8&$B$9&$E$5&$B$5&$B$16&$B$8,'LA FINAL RAW DATA'!$A:$K,8,0))) ->  | E16: =IF(OR($E$8="LA Monitoring Visit",$E$8="ILACS Focused Visit",$E$8="Safeguarding",$E$8="Child protection inspection",$E$8="Looked after children",$E8="Latest full inspection"),"",IF(ISERROR( VLOOKUP($E$8&$B$9&$E$5&$B$5&$B$16&$B$8,'LA FINAL RAW DATA'!$A:$K,5,0))=TRUE,0, VLOOKUP($E$8&$B$9&$E$5&$B$5&$B$16&$B$8,'LA FINAL RAW DATA'!$A:$K,9,0))) ->  | F16: =IF(OR($E$8="LA Monitoring Visit",$E$8="ILACS Focused Visit",$E$8="Safeguarding",$E$8="Child protection inspection",$E$8="Looked after children",$E8="Latest full inspection"),"",IF(ISERROR( VLOOKUP($E$8&$B$9&$E$5&$B$5&$B$16&$B$8,'LA FINAL RAW DATA'!$A:$K,5,0))=TRUE,0, VLOOKUP($E$8&$B$9&$E$5&$B$5&$B$16&$B$8,'LA FINAL RAW DATA'!$A:$K,10,0))) ->  | G16: =IF(OR($E$8="LA Monitoring Visit",$E$8="ILACS Focused Visit",$E$8="Safeguarding",$E$8="Child protection inspection",$E$8="Looked after children",$E8="Latest full inspection"),"",IF(ISERROR( VLOOKUP($E$8&$B$9&$E$5&$B$5&$B$16&$B$8,'LA FINAL RAW DATA'!$A:$K,5,0))=TRUE,0, VLOOKUP($E$8&$B$9&$E$5&$B$5&$B$16&$B$8,'LA FINAL RAW DATA'!$A:$K,11,0))) -> 
B19: =IF(OR($E$8="ILACS Short inspection",$E$8="ILACS Standard inspection"),"Experiences and progress of children in care and care leavers",IF(OR($E$8="SIF - Re-inspection",$E$8="SIF"),"Children looked after and achieving permanence","")) ->  | C19: =IF(OR($E$8="LA Monitoring Visit",$E$8="ILACS Focused Visit",$E$8="Safeguarding",$E$8="Child protection inspection",$E$8="Looked after children",$E8="Latest full inspection"),"",IF(ISERROR( VLOOKUP($E$8&$B$9&$E$5&$B$5&$B$19&$B$8,'LA FINAL RAW DATA'!$A:$K,5,0))=TRUE,0, VLOOKUP($E$8&$B$9&$E$5&$B$5&$B$19&$B$8,'LA FINAL RAW DATA'!$A:$K,7,0))) ->  | D19: =IF(OR($E$8="LA Monitoring Visit",$E$8="ILACS Focused Visit",$E$8="Safeguarding",$E$8="Child protection inspection",$E$8="Looked after children",$E8="Latest full inspection"),"",IF(ISERROR( VLOOKUP($E$8&$B$9&$E$5&$B$5&$B$19&$B$8,'LA FINAL RAW DATA'!$A:$K,5,0))=TRUE,0, VLOOKUP($E$8&$B$9&$E$5&$B$5&$B$19&$B$8,'LA FINAL RAW DATA'!$A:$K,8,0))) ->  | E19: =IF(OR($E$8="LA Monitoring Visit",$E$8="ILACS Focused Visit",$E$8="Safeguarding",$E$8="Child protection inspection",$E$8="Looked after children",$E8="Latest full inspection"),"",IF(ISERROR( VLOOKUP($E$8&$B$9&$E$5&$B$5&$B$19&$B$8,'LA FINAL RAW DATA'!$A:$K,5,0))=TRUE,0, VLOOKUP($E$8&$B$9&$E$5&$B$5&$B$19&$B$8,'LA FINAL RAW DATA'!$A:$K,9,0))) ->  | F19: =IF(OR($E$8="LA Monitoring Visit",$E$8="ILACS Focused Visit",$E$8="Safeguarding",$E$8="Child protection inspection",$E$8="Looked after children",$E8="Latest full inspection"),"",IF(ISERROR( VLOOKUP($E$8&$B$9&$E$5&$B$5&$B$19&$B$8,'LA FINAL RAW DATA'!$A:$K,5,0))=TRUE,0, VLOOKUP($E$8&$B$9&$E$5&$B$5&$B$19&$B$8,'LA FINAL RAW DATA'!$A:$K,10,0))) ->  | G19: =IF(OR($E$8="LA Monitoring Visit",$E$8="ILACS Focused Visit",$E$8="Safeguarding",$E$8="Child protection inspection",$E$8="Looked after children",$E8="Latest full inspection"),"",IF(ISERROR( VLOOKUP($E$8&$B$9&$E$5&$B$5&$B$19&$B$8,'LA FINAL RAW DATA'!$A:$K,5,0))=TRUE,0, VLOOKUP($E$8&$B$9&$E$5&$B$5&$B$19&$B$8,'LA FINAL RAW DATA'!$A:$K,11,0))) -> 
B21: =IF(OR($E$8="ILACS Short inspection",$E$8="ILACS Standard inspection"),"Impact of leaders",IF(OR($E$8="SIF - Re-inspection",$E$8="SIF"),"Leadership, management and governance","")) ->  | C21: =IF(OR($E$8="LA Monitoring Visit",$E$8="ILACS Focused Visit",$E$8="Safeguarding",$E$8="Child protection inspection",$E$8="Looked after children",$E8="Latest full inspection"),"",IF(ISERROR( VLOOKUP($E$8&$B$9&$E$5&$B$5&$B$21&$B$8,'LA FINAL RAW DATA'!$A:$K,5,0))=TRUE,0, VLOOKUP($E$8&$B$9&$E$5&$B$5&$B$21&$B$8,'LA FINAL RAW DATA'!$A:$K,7,0))) ->  | D21: =IF(OR($E$8="LA Monitoring Visit",$E$8="ILACS Focused Visit",$E$8="Safeguarding",$E$8="Child protection inspection",$E$8="Looked after children",$E8="Latest full inspection"),"",IF(ISERROR( VLOOKUP($E$8&$B$9&$E$5&$B$5&$B$21&$B$8,'LA FINAL RAW DATA'!$A:$K,5,0))=TRUE,0, VLOOKUP($E$8&$B$9&$E$5&$B$5&$B$21&$B$8,'LA FINAL RAW DATA'!$A:$K,8,0))) ->  | E21: =IF(OR($E$8="LA Monitoring Visit",$E$8="ILACS Focused Visit",$E$8="Safeguarding",$E$8="Child protection inspection",$E$8="Looked after children",$E8="Latest full inspection"),"",IF(ISERROR( VLOOKUP($E$8&$B$9&$E$5&$B$5&$B$21&$B$8,'LA FINAL RAW DATA'!$A:$K,5,0))=TRUE,0, VLOOKUP($E$8&$B$9&$E$5&$B$5&$B$21&$B$8,'LA FINAL RAW DATA'!$A:$K,9,0))) ->  | F21: =IF(OR($E$8="LA Monitoring Visit",$E$8="ILACS Focused Visit",$E$8="Safeguarding",$E$8="Child protection inspection",$E$8="Looked after children",$E8="Latest full inspection"),"",IF(ISERROR( VLOOKUP($E$8&$B$9&$E$5&$B$5&$B$21&$B$8,'LA FINAL RAW DATA'!$A:$K,5,0))=TRUE,0, VLOOKUP($E$8&$B$9&$E$5&$B$5&$B$21&$B$8,'LA FINAL RAW DATA'!$A:$K,10,0))) ->  | G21: =IF(OR($E$8="LA Monitoring Visit",$E$8="ILACS Focused Visit",$E$8="Safeguarding",$E$8="Child protection inspection",$E$8="Looked after children",$E8="Latest full inspection"),"",IF(ISERROR( VLOOKUP($E$8&$B$9&$E$5&$B$5&$B$21&$B$8,'LA FINAL RAW DATA'!$A:$K,5,0))=TRUE,0, VLOOKUP($E$8&$B$9&$E$5&$B$5&$B$21&$B$8,'LA FINAL RAW DATA'!$A:$K,11,0))) -> 
B26: =IF(B5<>"All",B5,IF(E5<>"All",VLOOKUP(E5,'Region Lookups'!C:D,2,0),"All")) -> East of England
D28: Total number inspected | F28: Outstanding | H28: Good | J28: Requires Improvement/ Adequate | M28: Inadequate
F29: 6 | H29: 7 | J29: 8 | M29: 9
B30: England | D30: =IF(F30<>"",SUM(F30,H30,J30,M30),IF(ISERROR( VLOOKUP($E$8&$B$9&"ALL"&"ALL"&$B$14&$B$8,'LA FINAL RAW DATA'!$A:$K,5,0))=TRUE,0, VLOOKUP($E$8&$B$9&"ALL"&"ALL"&$B$14&$B$8,'LA FINAL RAW DATA'!$A:$K,11,0))) -> 152 | F30: =IF(OR($E8="LA Monitoring Visit",$E8="ILACS Focused Visit"),"",IF(ISERROR(VLOOKUP($E$8&$B$9&"ALL"&"ALL"&"Overall effectiveness"&$B$8,'LA FINAL RAW DATA'!$A:$J,5,0))=TRUE,"",VLOOKUP($E$8&$B$9&"ALL"&"ALL"&"Overall effectiveness"&$B$8,'LA FINAL RAW DATA'!$A:$J,7,0))) -> 6 | H30: =IF(OR($E8="LA Monitoring Visit",$E8="ILACS Focused Visit"),"",IF(ISERROR(VLOOKUP($E$8&$B$9&"ALL"&"ALL"&"Overall effectiveness"&$B$8,'LA FINAL RAW DATA'!$A:$J,5,0))=TRUE,"",VLOOKUP($E$8&$B$9&"ALL"&"ALL"&"Overall effectiveness"&$B$8,'LA FINAL RAW DATA'!$A:$J,8,0))) -> 59 | J30: =IF(OR($E8="LA Monitoring Visit",$E8="ILACS Focused Visit"),"",IF(ISERROR(VLOOKUP($E$8&$B$9&"ALL"&"ALL"&"Overall effectiveness"&$B$8,'LA FINAL RAW DATA'!$A:$J,5,0))=TRUE,"",VLOOKUP($E$8&$B$9&"ALL"&"ALL"&"Overall effectiveness"&$B$8,'LA FINAL RAW DATA'!$A:$J,9,0))) -> 66 | K30: =IF(ISERROR(VLOOKUP($E$8&$B$9&"ALL"&"ALL"&"Overall effectiveness"&"As at 30 September 2018",'LA FINAL RAW DATA'!$A:$I,5,0))=TRUE,"",VLOOKUP($E$8&$B$9&"ALL"&"ALL"&"Overall effectiveness"&"As at 30 September 2018",'LA FINAL RAW DATA'!$A:$I,8,0)) -> 59 | M30: =IF(OR($E8="LA Monitoring Visit",$E8="ILACS Focused Visit"),"",IF(ISERROR(VLOOKUP($E$8&$B$9&"ALL"&"ALL"&"Overall effectiveness"&$B$8,'LA FINAL RAW DATA'!$A:$J,5,0))=TRUE,"",VLOOKUP($E$8&$B$9&"ALL"&"ALL"&"Overall effectiveness"&$B$8,'LA FINAL RAW DATA'!$A:$J,10,0))) -> 21 | N30: =IF(ISERROR(VLOOKUP($E$8&$B$9&"ALL"&"ALL"&"Overall effectiveness"&"As at 30 September 2018",'LA FINAL RAW DATA'!$A:$I,5,0))=TRUE,"",VLOOKUP($E$8&$B$9&"ALL"&"ALL"&"Overall effectiveness"&"As at 30 September 2018",'LA FINAL RAW DATA'!$A:$I,8,0)) -> 59

Sheet Children's homes
B2: Statistical First Release - Children's Homes
D4: Region: | G4: Local Authority:
D5: All | G5: Bedford | I5: =IF(D5="All",TRUE,NOT(ISERROR(MATCH(G5,INDIRECT(SUBSTITUTE(SUBSTITUTE(D5," ","_"),",","")),0)))) -> TRUE
D7: Date: | G7: Provision Type: | J7: Inspection Type:
D8: as at 30 September 2018 | G8: All children's homes | J8: Full Inspection
C9: =IF(LEFT(D8,5) = "as at","","year") ->  | D9: =VLOOKUP(D8,_PeriodLookup,2,0) -> 2018 | H9: =IF(LEFT(D8,5)="as at",TRUE,FALSE) -> TRUE
B10: Sector | C10: Total number of inspections | D10: Inspection Outcomes | H10: Number not inspected
D11: =VLOOKUP(J8,_InspectionOutcomes,2,0) -> Outstanding | E11: =VLOOKUP(J8,_InspectionOutcomes,3,0) -> Good | F11: =VLOOKUP(J8,_InspectionOutcomes,4,0) -> Requires Improvement | G11: =VLOOKUP(J8,_InspectionOutcomes,5,0) -> Inadequate | I11: Total provisions
A13: =$G$8&$G$5&$D$5&$B$13&$J$8&$D$8 -> All children's homesBedfordAllAllFull Inspectionas at 30 September 2018 | B13: All | C13: =IF(OR($J$8="Emergency Inspection",$J$8="Monitoring Inspection"), IFERROR(VLOOKUP(A13,'Inspection Outcome data'!$A:$L,8,0),0), SUM(D13,E13,F13,G13)) -> 14 | D13: =IF(ISERROR( VLOOKUP(A13,'Inspection Outcome data'!$A:$L,9,0))=TRUE,0, VLOOKUP(A13,'Inspection Outcome data'!$A:$L,9,0)) -> 0 | E13: =IF(ISERROR( VLOOKUP(A13,'Inspection Outcome data'!$A:$L,10,0))=TRUE,0, VLOOKUP(A13,'Inspection Outcome data'!$A:$L,10,0)) -> 12 | F13: =IF(ISERROR( VLOOKUP(A13,'Inspection Outcome data'!$A:$L,11,0))=TRUE,0, VLOOKUP(A13,'Inspection Outcome data'!$A:$L,11,0)) -> 1 | G13: =IF(ISERROR( VLOOKUP(A13,'Inspection Outcome data'!$A:$L,12,0))=TRUE,0, VLOOKUP(A13,'Inspection Outcome data'!$A:$L,12,0)) -> 1 | H13: =IF($H$9,I13-C13,"") -> -14 | I13: =SUM(I15,I17,I19,I21) -> 0 | J13: =$G$8&$G$5&$D$5&$D$8 -> All children's homesBedfordAllas at 30 September 2018 | K13: AllAllAllAll2016
A15: =$G$8&$G$5&$D$5&$B$15&$J$8&$D$8 -> All children's homesBedfordAllLocal AuthorityFull Inspectionas at 30 September 2018 | B15: Local Authority | C15: =IF(OR($J$8="Emergency Inspection",$J$8="Monitoring Inspection"), IFERROR(VLOOKUP(A15,'Inspection Outcome data'!$A:$L,8,0),0), SUM(D15,E15,F15,G15)) -> 2 | D15: =IF(ISERROR( VLOOKUP(A15,'Inspection Outcome data'!$A:$L,9,0))=TRUE,0, VLOOKUP(A15,'Inspection Outcome data'!$A:$L,9,0)) -> 0 | E15: =IF(ISERROR( VLOOKUP(A15,'Inspection Outcome data'!$A:$L,10,0))=TRUE,0, VLOOKUP(A15,'Inspection Outcome data'!$A:$L,10,0)) -> 2 | F15: =IF(ISERROR( VLOOKUP(A15,'Inspection Outcome data'!$A:$L,11,0))=TRUE,0, VLOOKUP(A15,'Inspection Outcome data'!$A:$L,11,0)) -> 0 | G15: =IF(ISERROR( VLOOKUP(A15,'Inspection Outcome data'!$A:$L,12,0))=TRUE,0, VLOOKUP(A15,'Inspection Outcome data'!$A:$L,12,0)) -> 0 | H15: =IF(AND($H$9,$C15=0),0,IF($H9,IFERROR(I15-C15,""),"")) -> -2 | I15: =IF($H$9,IF(ISERROR( VLOOKUP($J15,pandp!$A:$K,8,0))=TRUE,0, VLOOKUP($J15,pandp!$A:$K,8,0)),"") -> 0 | J15: =$G$8&$G$5&$D$5&$D$8 -> All children's homesBedfordAllas at 30 September 2018 | K15: AllAllAllLocal Authority2016
A17: =$G$8&$G$5&$D$5&$B$17&$J$8&$D$8 -> All children's homesBedfordAllPrivateFull Inspectionas at 30 September 2018 | B17: Private | C17: =IF(OR($J$8="Emergency Inspection",$J$8="Monitoring Inspection"), IFERROR(VLOOKUP(A17,'Inspection Outcome data'!$A:$L,8,0),0), SUM(D17,E17,F17,G17)) -> 10 | D17: =IF(ISERROR( VLOOKUP(A17,'Inspection Outcome data'!$A:$L,9,0))=TRUE,0, VLOOKUP(A17,'Inspection Outcome data'!$A:$L,9,0)) -> 0 | E17: =IF(ISERROR( VLOOKUP(A17,'Inspection Outcome data'!$A:$L,10,0))=TRUE,0, VLOOKUP(A17,'Inspection Outcome data'!$A:$L,10,0)) -> 9 | F17: =IF(ISERROR( VLOOKUP(A17,'Inspection Outcome data'!$A:$L,11,0))=TRUE,0, VLOOKUP(A17,'Inspection Outcome data'!$A:$L,11,0)) -> 1 | G17: =IF(ISERROR( VLOOKUP(A17,'Inspection Outcome data'!$A:$L,12,0))=TRUE,0, VLOOKUP(A17,'Inspection Outcome data'!$A:$L,12,0)) -> 0 | H17: =IF(AND($H$9,$C17 = 0),0,IF($H9,IFERROR(I17-C17,""),"")) -> -10 | I17: =IF($H$9,IF(ISERROR( VLOOKUP($J17,pandp!$A:$K,9,0))=TRUE,0, VLOOKUP($J17,pandp!$A:$K,9,0)),"") -> 0 | J17: =$G$8&$G$5&$D$5&$D$8 -> All children's homesBedfordAllas at 30 September 2018 | K17: AllAllAllPrivate2016
A19: =$G$8&$G$5&$D$5&$B$19&$J$8&$D$8 -> All children's homesBedfordAllVoluntaryFull Inspectionas at 30 September 2018 | B19: Voluntary | C19: =IF(OR($J$8="Emergency Inspection",$J$8="Monitoring Inspection"), IFERROR(VLOOKUP(A19,'Inspection Outcome data'!$A:$L,8,0),0), SUM(D19,E19,F19,G19)) -> 2 | D19: =IF(ISERROR( VLOOKUP(A19,'Inspection Outcome data'!$A:$L,9,0))=TRUE,0, VLOOKUP(A19,'Inspection Outcome data'!$A:$L,9,0)) -> 0 | E19: =IF(ISERROR( VLOOKUP(A19,'Inspection Outcome data'!$A:$L,10,0))=TRUE,0, VLOOKUP(A19,'Inspection Outcome data'!$A:$L,10,0)) -> 1 | F19: =IF(ISERROR( VLOOKUP(A19,'Inspection Outcome data'!$A:$L,11,0))=TRUE,0, VLOOKUP(A19,'Inspection Outcome data'!$A:$L,11,0)) -> 0 | G19: =IF(ISERROR( VLOOKUP(A19,'Inspection Outcome data'!$A:$L,12,0))=TRUE,0, VLOOKUP(A19,'Inspection Outcome data'!$A:$L,12,0)) -> 1 | H19: =IF(AND($H$9,$C19 = 0),0,IF($H9,IFERROR(I19-C19,""),"")) -> -2 | I19: =IF($H$9,IF(ISERROR( VLOOKUP($J19,pandp!$A:$K,10,0))=TRUE,0, VLOOKUP($J19,pandp!$A:$K,10,0)),"") -> 0 | J19: =$G$8&$G$5&$D$5&$D$8 -> All children's homesBedfordAllas at 30 September 2018 | K19: AllAllAllVoluntary2016
A21: =$G$8&$G$5&$D$5&$B$21&$J$8&$D$8 -> All children's homesBedfordAllHealth AuthorityFull Inspectionas at 30 September 2018 | B21: Health Authority | C21: =IF(OR($J$8="Emergency Inspection",$J$8="Monitoring Inspection"), IFERROR(VLOOKUP(A21,'Inspection Outcome data'!$A:$L,8,0),0), SUM(D21,E21,F21,G21)) -> 0 | D21: =IF(ISERROR( VLOOKUP(A21,'Inspection Outcome data'!$A:$L,9,0))=TRUE,0, VLOOKUP(A21,'Inspection Outcome data'!$A:$L,9,0)) -> 0 | E21: =IF(ISERROR( VLOOKUP(A21,'Inspection Outcome data'!$A:$L,10,0))=TRUE,0, VLOOKUP(A21,'Inspection Outcome data'!$A:$L,10,0)) -> 0 | F21: =IF(ISERROR( VLOOKUP(A21,'Inspection Outcome data'!$A:$L,11,0))=TRUE,0, VLOOKUP(A21,'Inspection Outcome data'!$A:$L,11,0)) -> 0 | G21: =IF(ISERROR( VLOOKUP(A21,'Inspection Outcome data'!$A:$L,12,0))=TRUE,0, VLOOKUP(A21,'Inspection Outcome data'!$A:$L,12,0)) -> 0 | H21: =IF(AND($H$9,$C21 = 0),0,IF($H9,IFERROR(I21-C21,""),"")) -> 0 | I21: =IF($H$9,IF(ISERROR( VLOOKUP($J21,pandp!$A:$K,7,0))=TRUE,0, VLOOKUP($J21,pandp!$A:$K,7,0)),"") -> 0 | J21: =$G$8&$G$5&$D$5&$D$8 -> All children's homesBedfordAllas at 30 September 2018 | K21: AllAllAllHealth Authority2016
B26: =IF(D5<>"All",D5,IF(_ddla<>"All",VLOOKUP(_ddla,'Region Lookups'!C:D,2,0),"All")) -> East of England
F27: 8 | H27: 9
C28: Total number inspected | D28: Outstanding | E28: Good | F28: Requires Improvement | G28: Inadequate
D29: 6 | E29: 7 | F29: 8 | G29: 9
B30: England | C30: =SUM(D30:G30) -> 2137 | D30: =IF(ISERROR(VLOOKUP($G$8&"All"&"All"&"All"&$J$8&$D$8,'Inspection Outcome data'!$A:$K,9,0))=TRUE,0,VLOOKUP($G$8&"All"&"All"&"All"&$J$8&$D$8,'Inspection Outcome data'!$A:$K,9,0)) -> 386 | E30: =IF(ISERROR(VLOOKUP($G$8&"All"&"All"&"All"&$J$8&$D$8,'Inspection Outcome data'!$A:$K,10,0))=TRUE,0,VLOOKUP($G$8&"All"&"All"&"All"&$J$8&$D$8,'Inspection Outcome data'!$A:$K,10,0)) -> 1377 | F30: =IF(ISERROR(VLOOKUP($G$8&"All"&"All"&"All"&$J$8&$D$8,'Inspection Outcome data'!$A:$K,11,0))=TRUE,0,VLOOKUP($G$8&"All"&"All"&"All"&$J$8&$D$8,'Inspection Outcome data'!$A:$K,11,0)) -> 314 | G30: =IF(ISERROR(VLOOKUP($G$8&"All"&"All"&"All"&$J$8&$D$8,'Inspection Outcome data'!$A:$L,12,0))=TRUE,0,VLOOKUP($G$8&"All"&"All"&"All"&$J$8&$D$8,'Inspection Outcome data'!$A:$L,12,0)) -> 60
B32: =IFERROR(IF(B26="All",NA(),B26),"") -> East of England | C32: =IF(B32="","",IF(ISERROR(VLOOKUP($G$8&"All"&$B$32&$B$13&$J$8&$D$8,'Inspection Outcome data'!$A:$K,8,0)),"",SUM(D32:G32))) -> 169 | D32: =IF(B32="","",IFERROR(VLOOKUP($G$8&"All"&$B$32&$B$13&$J$8&$D$8,'Inspection Outcome data'!$A:$K,9,0),"")) -> 19 | E32: =IF(B32="","",IFERROR(VLOOKUP($G$8&"All"&$B$32&$B$13&$J$8&$D$8,'Inspection Outcome data'!$A:$K,10,0),"")) -> 115 | F32: =IF(B32="","",IFERROR(VLOOKUP($G$8&"All"&$B$32&$B$13&$J$8&$D$8,'Inspection Outcome data'!$A:$K,11,0),"")) -> 31 | G32: =IF(B32="","",IFERROR(VLOOKUP($G$8&"All"&$B$32&$B$13&$J$8&$D$8,'Inspection Outcome data'!$A:$L,12,0),"")) -> 4
A33: 1 | B33: =IFERROR(VLOOKUP($B$26&A33,'Region Lookups'!A:C,3,0),"") -> Bedford | C33: =IF(B33="","",IF(ISERROR(VLOOKUP($G$8&$B33&"All"&$B$13&$J$8&$D$8,'Inspection Outcome data'!$A:$K,8,0)),0,SUM(D33:G33))) -> 14 | D33: =IF(B32="","",IFERROR(VLOOKUP($G$8&$B33&"All"&$B$13&$J$8&$D$8,'Inspection Outcome data'!$A:$K,9,0),IF(B33="","",0))) -> 0 | E33: =IF(B32="","",IFERROR(VLOOKUP($G$8&$B33&"All"&$B$13&$J$8&$D$8,'Inspection Outcome data'!$A:$K,10,0),IF(B33="","",0))) -> 12 | F33: =IF(B32="","",IFERROR(VLOOKUP($G$8&$B33&"All"&$B$13&$J$8&$D$8,'Inspection Outcome data'!$A:$K,11,0),IF(B33="","",0))) -> 1 | G33: =IF(B32="","",IFERROR(VLOOKUP($G$8&$B33&"All"&$B$13&$J$8&$D$8,'Inspection Outcome data'!$A:$L,12,0),IF(B33="","",0))) -> 1
A34: 2 | B34: =IFERROR(VLOOKUP($B$26&A34,'Region Lookups'!A:C,3,0),"") -> Cambridgeshire | C34: =IF(B34="","",IF(ISERROR(VLOOKUP($G$8&$B34&"All"&$B$13&$J$8&$D$8,'Inspection Outcome data'!$A:$K,8,0)),0,SUM(D34:G34))) -> 22 | D34: =IF(B33="","",IFERROR(VLOOKUP($G$8&$B34&"All"&$B$13&$J$8&$D$8,'Inspection Outcome data'!$A:$K,9,0),IF(B34="","",0))) -> 4 | E34: =IF(B33="","",IFERROR(VLOOKUP($G$8&$B34&"All"&$B$13&$J$8&$D$8,'Inspection Outcome data'!$A:$K,10,0),IF(B34="","",0))) -> 11 | F34: =IF(B33="","",IFERROR(VLOOKUP($G$8&$B34&"All"&$B$13&$J$8&$D$8,'Inspection Outcome data'!$A:$K,11,0),IF(B34="","",0))) -> 7 | G34: =IF(B33="","",IFERROR(VLOOKUP($G$8&$B34&"All"&$B$13&$J$8&$D$8,'Inspection Outcome data'!$A:$L,12,0),IF(B34="","",0))) -> 0
A35: 3 | B35: =IFERROR(VLOOKUP($B$26&A35,'Region Lookups'!A:C,3,0),"") -> Central Bedfordshire | C35: =IF(B35="","",IF(ISERROR(VLOOKUP($G$8&$B35&"All"&$B$13&$J$8&$D$8,'Inspection Outcome data'!$A:$K,8,0)),0,SUM(D35:G35))) -> 11 | D35: =IF(B34="","",IFERROR(VLOOKUP($G$8&$B35&"All"&$B$13&$J$8&$D$8,'Inspection Outcome data'!$A:$K,9,0),IF(B35="","",0))) -> 1 | E35: =IF(B34="","",IFERROR(VLOOKUP($G$8&$B35&"All"&$B$13&$J$8&$D$8,'Inspection Outcome data'!$A:$K,10,0),IF(B35="","",0))) -> 8 | F35: =IF(B34="","",IFERROR(VLOOKUP($G$8&$B35&"All"&$B$13&$J$8&$D$8,'Inspection Outcome data'!$A:$K,11,0),IF(B35="","",0))) -> 2 | G35: =IF(B34="","",IFERROR(VLOOKUP($G$8&$B35&"All"&$B$13&$J$8&$D$8,'Inspection Outcome data'!$A:$L,12,0),IF(B35="","",0))) -> 0
A36: 4 | B36: =IFERROR(VLOOKUP($B$26&A36,'Region Lookups'!A:C,3,0),"") -> Essex | C36: =IF(B36="","",IF(ISERROR(VLOOKUP($G$8&$B36&"All"&$B$13&$J$8&$D$8,'Inspection Outcome data'!$A:$K,8,0)),0,SUM(D36:G36))) -> 35 | D36: =IF(B35="","",IFERROR(VLOOKUP($G$8&$B36&"All"&$B$13&$J$8&$D$8,'Inspection Outcome data'!$A:$K,9,0),IF(B36="","",0))) -> 2 | E36: =IF(B35="","",IFERROR(VLOOKUP($G$8&$B36&"All"&$B$13&$J$8&$D$8,'Inspection Outcome data'!$A:$K,10,0),IF(B36="","",0))) -> 27 | F36: =IF(B35="","",IFERROR(VLOOKUP($G$8&$B36&"All"&$B$13&$J$8&$D$8,'Inspection Outcome data'!$A:$K,11,0),IF(B36="","",0))) -> 5 | G36: =IF(B35="","",IFERROR(VLOOKUP($G$8&$B36&"All"&$B$13&$J$8&$D$8,'Inspection Outcome data'!$A:$L,12,0),IF(B36="","",0))) -> 1
A37: 5 | B37: =IFERROR(VLOOKUP($B$26&A37,'Region Lookups'!A:C,3,0),"") -> Hertfordshire | C37: =IF(B37="","",IF(ISERROR(VLOOKUP($G$8&$B37&"All"&$B$13&$J$8&$D$8,'Inspection Outcome data'!$A:$K,8,0)),0,SUM(D37:G37))) -> 13 | D37: =IF(B36="","",IFERROR(VLOOKUP($G$8&$B37&"All"&$B$13&$J$8&$D$8,'Inspection Outcome data'!$A:$K,9,0),IF(B37="","",0))) -> 2 | E37: =IF(B36="","",IFERROR(VLOOKUP($G$8&$B37&"All"&$B$13&$J$8&$D$8,'Inspection Outcome data'!$A:$K,10,0),IF(B37="","",0))) -> 9 | F37: =IF(B36="","",IFERROR(VLOOKUP($G$8&$B37&"All"&$B$13&$J$8&$D$8,'Inspection Outcome data'!$A:$K,11,0),IF(B37="","",0))) -> 2 | G37: =IF(B36="","",IFERROR(VLOOKUP($G$8&$B37&"All"&$B$13&$J$8&$D$8,'Inspection Outcome data'!$A:$L,12,0),IF(B37="","",0))) -> 0
A38: 6 | B38: =IFERROR(VLOOKUP($B$26&A38,'Region Lookups'!A:C,3,0),"") -> Luton | C38: =IF(B38="","",IF(ISERROR(VLOOKUP($G$8&$B38&"All"&$B$13&$J$8&$D$8,'Inspection Outcome data'!$A:$K,8,0)),0,SUM(D38:G38))) -> 2 | D38: =IF(B37="","",IFERROR(VLOOKUP($G$8&$B38&"All"&$B$13&$J$8&$D$8,'Inspection Outcome data'!$A:$K,9,0),IF(B38="","",0))) -> 0 | E38: =IF(B37="","",IFERROR(VLOOKUP($G$8&$B38&"All"&$B$13&$J$8&$D$8,'Inspection Outcome data'!$A:$K,10,0),IF(B38="","",0))) -> 2 | F38: =IF(B37="","",IFERROR(VLOOKUP($G$8&$B38&"All"&$B$13&$J$8&$D$8,'Inspection Outcome data'!$A:$K,11,0),IF(B38="","",0))) -> 0 | G38: =IF(B37="","",IFERROR(VLOOKUP($G$8&$B38&"All"&$B$13&$J$8&$D$8,'Inspection Outcome data'!$A:$L,12,0),IF(B38="","",0))) -> 0
A39: 7 | B39: =IFERROR(VLOOKUP($B$26&A39,'Region Lookups'!A:C,3,0),"") -> Norfolk | C39: =IF(B39="","",IF(ISERROR(VLOOKUP($G$8&$B39&"All"&$B$13&$J$8&$D$8,'Inspection Outcome data'!$A:$K,8,0)),0,SUM(D39:G39))) -> 36 | D39: =IF(B38="","",IFERROR(VLOOKUP($G$8&$B39&"All"&$B$13&$J$8&$D$8,'Inspection Outcome data'!$A:$K,9,0),IF(B39="","",0))) -> 10 | E39: =IF(B38="","",IFERROR(VLOOKUP($G$8&$B39&"All"&$B$13&$J$8&$D$8,'Inspection Outcome data'!$A:$K,10,0),IF(B39="","",0))) -> 18 | F39: =IF(B38="","",IFERROR(VLOOKUP($G$8&$B39&"All"&$B$13&$J$8&$D$8,'Inspection Outcome data'!$A:$K,11,0),IF(B39="","",0))) -> 6 | G39: =IF(B38="","",IFERROR(VLOOKUP($G$8&$B39&"All"&$B$13&$J$8&$D$8,'Inspection Outcome data'!$A:$L,12,0),IF(B39="","",0))) -> 2
A40: 8 | B40: =IFERROR(VLOOKUP($B$26&A40,'Region Lookups'!A:C,3,0),"") -> Peterborough | C40: =IF(B40="","",IF(ISERROR(VLOOKUP($G$8&$B40&"All"&$B$13&$J$8&$D$8,'Inspection Outcome data'!$A:$K,8,0)),0,SUM(D40:G40))) -> 8 | D40: =IF(B39="","",IFERROR(VLOOKUP($G$8&$B40&"All"&$B$13&$J$8&$D$8,'Inspection Outcome data'!$A:$K,9,0),IF(B40="","",0))) -> 0 | E40: =IF(B39="","",IFERROR(VLOOKUP($G$8&$B40&"All"&$B$13&$J$8&$D$8,'Inspection Outcome data'!$A:$K,10,0),IF(B40="","",0))) -> 7 | F40: =IF(B39="","",IFERROR(VLOOKUP($G$8&$B40&"All"&$B$13&$J$8&$D$8,'Inspection Outcome data'!$A:$K,11,0),IF(B40="","",0))) -> 1 | G40: =IF(B39="","",IFERROR(VLOOKUP($G$8&$B40&"All"&$B$13&$J$8&$D$8,'Inspection Outcome data'!$A:$L,12,0),IF(B40="","",0))) -> 0
A41: 9 | B41: =IFERROR(VLOOKUP($B$26&A41,'Region Lookups'!A:C,3,0),"") -> Southend on Sea | C41: =IF(B41="","",IF(ISERROR(VLOOKUP($G$8&$B41&"All"&$B$13&$J$8&$D$8,'Inspection Outcome data'!$A:$K,8,0)),0,SUM(D41:G41))) -> 5 | D41: =IF(B40="","",IFERROR(VLOOKUP($G$8&$B41&"All"&$B$13&$J$8&$D$8,'Inspection Outcome data'!$A:$K,9,0),IF(B41="","",0))) -> 0 | E41: =IF(B40="","",IFERROR(VLOOKUP($G$8&$B41&"All"&$B$13&$J$8&$D$8,'Inspection Outcome data'!$A:$K,10,0),IF(B41="","",0))) -> 5 | F41: =IF(B40="","",IFERROR(VLOOKUP($G$8&$B41&"All"&$B$13&$J$8&$D$8,'Inspection Outcome data'!$A:$K,11,0),IF(B41="","",0))) -> 0 | G41: =IF(B40="","",IFERROR(VLOOKUP($G$8&$B41&"All"&$B$13&$J$8&$D$8,'Inspection Outcome data'!$A:$L,12,0),IF(B41="","",0))) -> 0
A42: 10 | B42: =IFERROR(VLOOKUP($B$26&A42,'Region Lookups'!A:C,3,0),"") -> Suffolk | C42: =IF(B42="","",IF(ISERROR(VLOOKUP($G$8&$B42&"All"&$B$13&$J$8&$D$8,'Inspection Outcome data'!$A:$K,8,0)),0,SUM(D42:G42))) -> 21 | D42: =IF(B41="","",IFERROR(VLOOKUP($G$8&$B42&"All"&$B$13&$J$8&$D$8,'Inspection Outcome data'!$A:$K,9,0),IF(B42="","",0))) -> 0 | E42: =IF(B41="","",IFERROR(VLOOKUP($G$8&$B42&"All"&$B$13&$J$8&$D$8,'Inspection Outcome data'!$A:$K,10,0),IF(B42="","",0))) -> 14 | F42: =IF(B41="","",IFERROR(VLOOKUP($G$8&$B42&"All"&$B$13&$J$8&$D$8,'Inspection Outcome data'!$A:$K,11,0),IF(B42="","",0))) -> 7 | G42: =IF(B41="","",IFERROR(VLOOKUP($G$8&$B42&"All"&$B$13&$J$8&$D$8,'Inspection Outcome data'!$A:$L,12,0),IF(B42="","",0))) -> 0
A43: 11 | B43: =IFERROR(VLOOKUP($B$26&A43,'Region Lookups'!A:C,3,0),"") -> Thurrock | C43: =IF(B43="","",IF(ISERROR(VLOOKUP($G$8&$B43&"All"&$B$13&$J$8&$D$8,'Inspection Outcome data'!$A:$K,8,0)),0,SUM(D43:G43))) -> 2 | D43: =IF(B42="","",IFERROR(VLOOKUP($G$8&$B43&"All"&$B$13&$J$8&$D$8,'Inspection Outcome data'!$A:$K,9,0),IF(B43="","",0))) -> 0 | E43: =IF(B42="","",IFERROR(VLOOKUP($G$8&$B43&"All"&$B$13&$J$8&$D$8,'Inspection Outcome data'!$A:$K,10,0),IF(B43="","",0))) -> 2 | F43: =IF(B42="","",IFERROR(VLOOKUP($G$8&$B43&"All"&$B$13&$J$8&$D$8,'Inspection Outcome data'!$A:$K,11,0),IF(B43="","",0))) -> 0 | G43: =IF(B42="","",IFERROR(VLOOKUP($G$8&$B43&"All"&$B$13&$J$8&$D$8,'Inspection Outcome data'!$A:$L,12,0),IF(B43="","",0))) -> 0
A44: 12 | B44: =IFERROR(VLOOKUP($B$26&A44,'Region Lookups'!A:C,3,0),"") ->  | C44: =IF(B44="","",IF(ISERROR(VLOOKUP($G$8&$B44&"All"&$B$13&$J$8&$D$8,'Inspection Outcome data'!$A:$K,8,0)),0,SUM(D44:G44))) ->  | D44: =IF(B43="","",IFERROR(VLOOKUP($G$8&$B44&"All"&$B$13&$J$8&$D$8,'Inspection Outcome data'!$A:$K,9,0),IF(B44="","",0))) ->  | E44: =IF(B43="","",IFERROR(VLOOKUP($G$8&$B44&"All"&$B$13&$J$8&$D$8,'Inspection Outcome data'!$A:$K,10,0),IF(B44="","",0))) ->  | F44: =IF(B43="","",IFERROR(VLOOKUP($G$8&$B44&"All"&$B$13&$J$8&$D$8,'Inspection Outcome data'!$A:$K,11,0),IF(B44="","",0))) ->  | G44: =IF(B43="","",IFERROR(VLOOKUP($G$8&$B44&"All"&$B$13&$J$8&$D$8,'Inspection Outcome data'!$A:$L,12,0),IF(B44="","",0))) -> 
A45: 13 | B45: =IFERROR(VLOOKUP($B$26&A45,'Region Lookups'!A:C,3,0),"") ->  | C45: =IF(B45="","",IF(ISERROR(VLOOKUP($G$8&$B45&"All"&$B$13&$J$8&$D$8,'Inspection Outcome data'!$A:$K,8,0)),0,SUM(D45:G45))) ->  | D45: =IF(B44="","",IFERROR(VLOOKUP($G$8&$B45&"All"&$B$13&$J$8&$D$8,'Inspection Outcome data'!$A:$K,9,0),IF(B45="","",0))) ->  | E45: =IF(B44="","",IFERROR(VLOOKUP($G$8&$B45&"All"&$B$13&$J$8&$D$8,'Inspection Outcome data'!$A:$K,10,0),IF(B45="","",0))) ->  | F45: =IF(B44="","",IFERROR(VLOOKUP($G$8&$B45&"All"&$B$13&$J$8&$D$8,'Inspection Outcome data'!$A:$K,11,0),IF(B45="","",0))) ->  | G45: =IF(B44="","",IFERROR(VLOOKUP($G$8&$B45&"All"&$B$13&$J$8&$D$8,'Inspection Outcome data'!$A:$L,12,0),IF(B45="","",0))) -> 
A46: 14 | B46: =IFERROR(VLOOKUP($B$26&A46,'Region Lookups'!A:C,3,0),"") ->  | C46: =IF(B46="","",IF(ISERROR(VLOOKUP($G$8&$B46&"All"&$B$13&$J$8&$D$8,'Inspection Outcome data'!$A:$K,8,0)),0,SUM(D46:G46))) ->  | D46: =IF(B45="","",IFERROR(VLOOKUP($G$8&$B46&"All"&$B$13&$J$8&$D$8,'Inspection Outcome data'!$A:$K,9,0),IF(B46="","",0))) ->  | E46: =IF(B45="","",IFERROR(VLOOKUP($G$8&$B46&"All"&$B$13&$J$8&$D$8,'Inspection Outcome data'!$A:$K,10,0),IF(B46="","",0))) ->  | F46: =IF(B45="","",IFERROR(VLOOKUP($G$8&$B46&"All"&$B$13&$J$8&$D$8,'Inspection Outcome data'!$A:$K,11,0),IF(B46="","",0))) ->  | G46: =IF(B45="","",IFERROR(VLOOKUP($G$8&$B46&"All"&$B$13&$J$8&$D$8,'Inspection Outcome data'!$A:$L,12,0),IF(B46="","",0))) -> 
A47: 15 | B47: =IFERROR(VLOOKUP($B$26&A47,'Region Lookups'!A:C,3,0),"") ->  | C47: =IF(B47="","",IF(ISERROR(VLOOKUP($G$8&$B47&"All"&$B$13&$J$8&$D$8,'Inspection Outcome data'!$A:$K,8,0)),0,SUM(D47:G47))) ->  | D47: =IF(B46="","",IFERROR(VLOOKUP($G$8&$B47&"All"&$B$13&$J$8&$D$8,'Inspection Outcome data'!$A:$K,9,0),IF(B47="","",0))) ->  | E47: =IF(B46="","",IFERROR(VLOOKUP($G$8&$B47&"All"&$B$13&$J$8&$D$8,'Inspection Outcome data'!$A:$K,10,0),IF(B47="","",0))) ->  | F47: =IF(B46="","",IFERROR(VLOOKUP($G$8&$B47&"All"&$B$13&$J$8&$D$8,'Inspection Outcome data'!$A:$K,11,0),IF(B47="","",0))) ->  | G47: =IF(B46="","",IFERROR(VLOOKUP($G$8&$B47&"All"&$B$13&$J$8&$D$8,'Inspection Outcome data'!$A:$L,12,0),IF(B47="","",0))) -> 
A48: 16 | B48: =IFERROR(VLOOKUP($B$26&A48,'Region Lookups'!A:C,3,0),"") ->  | C48: =IF(B48="","",IF(ISERROR(VLOOKUP($G$8&$B48&"All"&$B$13&$J$8&$D$8,'Inspection Outcome data'!$A:$K,8,0)),0,SUM(D48:G48))) ->  | D48: =IF(B47="","",IFERROR(VLOOKUP($G$8&$B48&"All"&$B$13&$J$8&$D$8,'Inspection Outcome data'!$A:$K,9,0),IF(B48="","",0))) ->  | E48: =IF(B47="","",IFERROR(VLOOKUP($G$8&$B48&"All"&$B$13&$J$8&$D$8,'Inspection Outcome data'!$A:$K,10,0),IF(B48="","",0))) ->  | F48: =IF(B47="","",IFERROR(VLOOKUP($G$8&$B48&"All"&$B$13&$J$8&$D$8,'Inspection Outcome data'!$A:$K,11,0),IF(B48="","",0))) ->  | G48: =IF(B47="","",IFERROR(VLOOKUP($G$8&$B48&"All"&$B$13&$J$8&$D$8,'Inspection Outcome data'!$A:$L,12,0),IF(B48="","",0))) -> 
A49: 17 | B49: =IFERROR(VLOOKUP($B$26&A49,'Region Lookups'!A:C,3,0),"") ->  | C49: =IF(B49="","",IF(ISERROR(VLOOKUP($G$8&$B49&"All"&$B$13&$J$8&$D$8,'Inspection Outcome data'!$A:$K,8,0)),0,SUM(D49:G49))) ->  | D49: =IF(B48="","",IFERROR(VLOOKUP($G$8&$B49&"All"&$B$13&$J$8&$D$8,'Inspection Outcome data'!$A:$K,9,0),IF(B49="","",0))) ->  | E49: =IF(B48="","",IFERROR(VLOOKUP($G$8&$B49&"All"&$B$13&$J$8&$D$8,'Inspection Outcome data'!$A:$K,10,0),IF(B49="","",0))) ->  | F49: =IF(B48="","",IFERROR(VLOOKUP($G$8&$B49&"All"&$B$13&$J$8&$D$8,'Inspection Outcome data'!$A:$K,11,0),IF(B49="","",0))) ->  | G49: =IF(B48="","",IFERROR(VLOOKUP($G$8&$B49&"All"&$B$13&$J$8&$D$8,'Inspection Outcome data'!$A:$L,12,0),IF(B49="","",0))) -> 
A50: 18 | B50: =IFERROR(VLOOKUP($B$26&A50,'Region Lookups'!A:C,3,0),"") ->  | C50: =IF(B50="","",IF(ISERROR(VLOOKUP($G$8&$B50&"All"&$B$13&$J$8&$D$8,'Inspection Outcome data'!$A:$K,8,0)),0,SUM(D50:G50))) ->  | D50: =IF(B49="","",IFERROR(VLOOKUP($G$8&$B50&"All"&$B$13&$J$8&$D$8,'Inspection Outcome data'!$A:$K,9,0),IF(B50="","",0))) ->  | E50: =IF(B49="","",IFERROR(VLOOKUP($G$8&$B50&"All"&$B$13&$J$8&$D$8,'Inspection Outcome data'!$A:$K,10,0),IF(B50="","",0))) ->  | F50: =IF(B49="","",IFERROR(VLOOKUP($G$8&$B50&"All"&$B$13&$J$8&$D$8,'Inspection Outcome data'!$A:$K,11,0),IF(B50="","",0))) ->  | G50: =IF(B49="","",IFERROR(VLOOKUP($G$8&$B50&"All"&$B$13&$J$8&$D$8,'Inspection Outcome data'!$A:$L,12,0),IF(B50="","",0))) -> 
A51: 19 | B51: =IFERROR(VLOOKUP($B$26&A51,'Region Lookups'!A:C,3,0),"") ->  | C51: =IF(B51="","",IF(ISERROR(VLOOKUP($G$8&$B51&"All"&$B$13&$J$8&$D$8,'Inspection Outcome data'!$A:$K,8,0)),0,SUM(D51:G51))) ->  | D51: =IF(B50="","",IFERROR(VLOOKUP($G$8&$B51&"All"&$B$13&$J$8&$D$8,'Inspection Outcome data'!$A:$K,9,0),IF(B51="","",0))) ->  | E51: =IF(B50="","",IFERROR(VLOOKUP($G$8&$B51&"All"&$B$13&$J$8&$D$8,'Inspection Outcome data'!$A:$K,10,0),IF(B51="","",0))) ->  | F51: =IF(B50="","",IFERROR(VLOOKUP($G$8&$B51&"All"&$B$13&$J$8&$D$8,'Inspection Outcome data'!$A:$K,11,0),IF(B51="","",0))) ->  | G51: =IF(B50="","",IFERROR(VLOOKUP($G$8&$B51&"All"&$B$13&$J$8&$D$8,'Inspection Outcome data'!$A:$L,12,0),IF(B51="","",0))) -> 
A52: 20 | B52: =IFERROR(VLOOKUP($B$26&A52,'Region Lookups'!A:C,3,0),"") ->  | C52: =IF(B52="","",IF(ISERROR(VLOOKUP($G$8&$B52&"All"&$B$13&$J$8&$D$8,'Inspection Outcome data'!$A:$K,8,0)),0,SUM(D52:G52))) ->  | D52: =IF(B51="","",IFERROR(VLOOKUP($G$8&$B52&"All"&$B$13&$J$8&$D$8,'Inspection Outcome data'!$A:$K,9,0),IF(B52="","",0))) ->  | E52: =IF(B51="","",IFERROR(VLOOKUP($G$8&$B52&"All"&$B$13&$J$8&$D$8,'Inspection Outcome data'!$A:$K,10,0),IF(B52="","",0))) ->  | F52: =IF(B51="","",IFERROR(VLOOKUP($G$8&$B52&"All"&$B$13&$J$8&$D$8,'Inspection Outcome data'!$A:$K,11,0),IF(B52="","",0))) ->  | G52: =IF(B51="","",IFERROR(VLOOKUP($G$8&$B52&"All"&$B$13&$J$8&$D$8,'Inspection Outcome data'!$A:$L,12,0),IF(B52="","",0))) -> 
A53: 21 | B53: =IFERROR(VLOOKUP($B$26&A53,'Region Lookups'!A:C,3,0),"") ->  | C53: =IF(B53="","",IF(ISERROR(VLOOKUP($G$8&$B53&"All"&$B$13&$J$8&$D$8,'Inspection Outcome data'!$A:$K,8,0)),0,SUM(D53:G53))) ->  | D53: =IF(B52="","",IFERROR(VLOOKUP($G$8&$B53&"All"&$B$13&$J$8&$D$8,'Inspection Outcome data'!$A:$K,9,0),IF(B53="","",0))) ->  | E53: =IF(B52="","",IFERROR(VLOOKUP($G$8&$B53&"All"&$B$13&$J$8&$D$8,'Inspection Outcome data'!$A:$K,10,0),IF(B53="","",0))) ->  | F53: =IF(B52="","",IFERROR(VLOOKUP($G$8&$B53&"All"&$B$13&$J$8&$D$8,'Inspection Outcome data'!$A:$K,11,0),IF(B53="","",0))) ->  | G53: =IF(B52="","",IFERROR(VLOOKUP($G$8&$B53&"All"&$B$13&$J$8&$D$8,'Inspection Outcome data'!$A:$L,12,0),IF(B53="","",0))) -> 
A54: 22 | B54: =IFERROR(VLOOKUP($B$26&A54,'Region Lookups'!A:C,3,0),"") ->  | C54: =IF(B54="","",IF(ISERROR(VLOOKUP($G$8&$B54&"All"&$B$13&$J$8&$D$8,'Inspection Outcome data'!$A:$K,8,0)),0,SUM(D54:G54))) ->  | D54: =IF(B53="","",IFERROR(VLOOKUP($G$8&$B54&"All"&$B$13&$J$8&$D$8,'Inspection Outcome data'!$A:$K,9,0),IF(B54="","",0))) ->  | E54: =IF(B53="","",IFERROR(VLOOKUP($G$8&$B54&"All"&$B$13&$J$8&$D$8,'Inspection Outcome data'!$A:$K,10,0),IF(B54="","",0))) ->  | F54: =IF(B53="","",IFERROR(VLOOKUP($G$8&$B54&"All"&$B$13&$J$8&$D$8,'Inspection Outcome data'!$A:$K,11,0),IF(B54="","",0))) ->  | G54: =IF(B53="","",IFERROR(VLOOKUP($G$8&$B54&"All"&$B$13&$J$8&$D$8,'Inspection Outcome data'!$A:$L,12,0),IF(B54="","",0))) -> 
A55: 23 | B55: =IFERROR(VLOOKUP($B$26&A55,'Region Lookups'!A:C,3,0),"") ->  | C55: =IF(B55="","",IF(ISERROR(VLOOKUP($G$8&$B55&"All"&$B$13&$J$8&$D$8,'Inspection Outcome data'!$A:$K,8,0)),0,SUM(D55:G55))) ->  | D55: =IF(B54="","",IFERROR(VLOOKUP($G$8&$B55&"All"&$B$13&$J$8&$D$8,'Inspection Outcome data'!$A:$K,9,0),IF(B55="","",0))) ->  | E55: =IF(B54="","",IFERROR(VLOOKUP($G$8&$B55&"All"&$B$13&$J$8&$D$8,'Inspection Outcome data'!$A:$K,10,0),IF(B55="","",0))) ->  | F55: =IF(B54="","",IFERROR(VLOOKUP($G$8&$B55&"All"&$B$13&$J$8&$D$8,'Inspection Outcome data'!$A:$K,11,0),IF(B55="","",0))) ->  | G55: =IF(B54="","",IFERROR(VLOOKUP($G$8&$B55&"All"&$B$13&$J$8&$D$8,'Inspection Outcome data'!$A:$L,12,0),IF(B55="","",0))) -> 
A56: 24 | B56: =IFERROR(VLOOKUP($B$26&A56,'Region Lookups'!A:C,3,0),"") ->  | C56: =IF(B56="","",IF(ISERROR(VLOOKUP($G$8&$B56&"All"&$B$13&$J$8&$D$8,'Inspection Outcome data'!$A:$K,8,0)),0,SUM(D56:G56))) ->  | D56: =IF(B55="","",IFERROR(VLOOKUP($G$8&$B56&"All"&$B$13&$J$8&$D$8,'Inspection Outcome data'!$A:$K,9,0),IF(B56="","",0))) ->  | E56: =IF(B55="","",IFERROR(VLOOKUP($G$8&$B56&"All"&$B$13&$J$8&$D$8,'Inspection Outcome data'!$A:$K,10,0),IF(B56="","",0))) ->  | F56: =IF(B55="","",IFERROR(VLOOKUP($G$8&$B56&"All"&$B$13&$J$8&$D$8,'Inspection Outcome data'!$A:$K,11,0),IF(B56="","",0))) ->  | G56: =IF(B55="","",IFERROR(VLOOKUP($G$8&$B56&"All"&$B$13&$J$8&$D$8,'Inspection Outcome data'!$A:$L,12,0),IF(B56="","",0))) -> 
A57: 25 | B57: =IFERROR(VLOOKUP($B$26&A57,'Region Lookups'!A:C,3,0),"") ->  | C57: =IF(B57="","",IF(ISERROR(VLOOKUP($G$8&$B57&"All"&$B$13&$J$8&$D$8,'Inspection Outcome data'!$A:$K,8,0)),0,SUM(D57:G57))) ->  | D57: =IF(B56="","",IFERROR(VLOOKUP($G$8&$B57&"All"&$B$13&$J$8&$D$8,'Inspection Outcome data'!$A:$K,9,0),IF(B57="","",0))) ->  | E57: =IF(B56="","",IFERROR(VLOOKUP($G$8&$B57&"All"&$B$13&$J$8&$D$8,'Inspection Outcome data'!$A:$K,10,0),IF(B57="","",0))) ->  | F57: =IF(B56="","",IFERROR(VLOOKUP($G$8&$B57&"All"&$B$13&$J$8&$D$8,'Inspection Outcome data'!$A:$K,11,0),IF(B57="","",0))) ->  | G57: =IF(B56="","",IFERROR(VLOOKUP($G$8&$B57&"All"&$B$13&$J$8&$D$8,'Inspection Outcome data'!$A:$L,12,0),IF(B57="","",0))) -> 
A58: 26 | B58: =IFERROR(VLOOKUP($B$26&A58,'Region Lookups'!A:C,3,0),"") ->  | C58: =IF(B58="","",IF(ISERROR(VLOOKUP($G$8&$B58&"All"&$B$13&$J$8&$D$8,'Inspection Outcome data'!$A:$K,8,0)),0,SUM(D58:G58))) ->  | D58: =IF(B57="","",IFERROR(VLOOKUP($G$8&$B58&"All"&$B$13&$J$8&$D$8,'Inspection Outcome data'!$A:$K,9,0),IF(B58="","",0))) ->  | E58: =IF(B57="","",IFERROR(VLOOKUP($G$8&$B58&"All"&$B$13&$J$8&$D$8,'Inspection Outcome data'!$A:$K,10,0),IF(B58="","",0))) ->  | F58: =IF(B57="","",IFERROR(VLOOKUP($G$8&$B58&"All"&$B$13&$J$8&$D$8,'Inspection Outcome data'!$A:$K,11,0),IF(B58="","",0))) ->  | G58: =IF(B57="","",IFERROR(VLOOKUP($G$8&$B58&"All"&$B$13&$J$8&$D$8,'Inspection Outcome data'!$A:$L,12,0),IF(B58="","",0))) -> 
A59: 27 | B59: =IFERROR(VLOOKUP($B$26&A59,'Region Lookups'!A:C,3,0),"") ->  | C59: =IF(B59="","",IF(ISERROR(VLOOKUP($G$8&$B59&"All"&$B$13&$J$8&$D$8,'Inspection Outcome data'!$A:$K,8,0)),0,SUM(D59:G59))) ->  | D59: =IF(B58="","",IFERROR(VLOOKUP($G$8&$B59&"All"&$B$13&$J$8&$D$8,'Inspection Outcome data'!$A:$K,9,0),IF(B59="","",0))) ->  | E59: =IF(B58="","",IFERROR(VLOOKUP($G$8&$B59&"All"&$B$13&$J$8&$D$8,'Inspection Outcome data'!$A:$K,10,0),IF(B59="","",0))) ->  | F59: =IF(B58="","",IFERROR(VLOOKUP($G$8&$B59&"All"&$B$13&$J$8&$D$8,'Inspection Outcome data'!$A:$K,11,0),IF(B59="","",0))) ->  | G59: =IF(B58="","",IFERROR(VLOOKUP($G$8&$B59&"All"&$B$13&$J$8&$D$8,'Inspection Outcome data'!$A:$L,12,0),IF(B59="","",0))) -> 
A60: 28 | B60: =IFERROR(VLOOKUP($B$26&A60,'Region Lookups'!A:C,3,0),"") ->  | C60: =IF(B60="","",IF(ISERROR(VLOOKUP($G$8&$B60&"All"&$B$13&$J$8&$D$8,'Inspection Outcome data'!$A:$K,8,0)),0,SUM(D60:G60))) ->  | D60: =IF(B59="","",IFERROR(VLOOKUP($G$8&$B60&"All"&$B$13&$J$8&$D$8,'Inspection Outcome data'!$A:$K,9,0),IF(B60="","",0))) ->  | E60: =IF(B59="","",IFERROR(VLOOKUP($G$8&$B60&"All"&$B$13&$J$8&$D$8,'Inspection Outcome data'!$A:$K,10,0),IF(B60="","",0))) ->  | F60: =IF(B59="","",IFERROR(VLOOKUP($G$8&$B60&"All"&$B$13&$J$8&$D$8,'Inspection Outcome data'!$A:$K,11,0),IF(B60="","",0))) ->  | G60: =IF(B59="","",IFERROR(VLOOKUP($G$8&$B60&"All"&$B$13&$J$8&$D$8,'Inspection Outcome data'!$A:$L,12,0),IF(B60="","",0))) -> 
A61: 29 | B61: =IFERROR(VLOOKUP($B$26&A61,'Region Lookups'!A:C,3,0),"") ->  | C61: =IF(B61="","",IF(ISERROR(VLOOKUP($G$8&$B61&"All"&$B$13&$J$8&$D$8,'Inspection Outcome data'!$A:$K,8,0)),0,SUM(D61:G61))) ->  | D61: =IF(B60="","",IFERROR(VLOOKUP($G$8&$B61&"All"&$B$13&$J$8&$D$8,'Inspection Outcome data'!$A:$K,9,0),IF(B61="","",0))) ->  | E61: =IF(B60="","",IFERROR(VLOOKUP($G$8&$B61&"All"&$B$13&$J$8&$D$8,'Inspection Outcome data'!$A:$K,10,0),IF(B61="","",0))) ->  | F61: =IF(B60="","",IFERROR(VLOOKUP($G$8&$B61&"All"&$B$13&$J$8&$D$8,'Inspection Outcome data'!$A:$K,11,0),IF(B61="","",0))) ->  | G61: =IF(B60="","",IFERROR(VLOOKUP($G$8&$B61&"All"&$B$13&$J$8&$D$8,'Inspection Outcome data'!$A:$L,12,0),IF(B61="","",0))) -> 
A62: 30 | B62: =IFERROR(VLOOKUP($B$26&A62,'Region Lookups'!A:C,3,0),"") ->  | C62: =IF(B62="","",IF(ISERROR(VLOOKUP($G$8&$B62&"All"&$B$13&$J$8&$D$8,'Inspection Outcome data'!$A:$K,8,0)),0,SUM(D62:G62))) ->  | D62: =IF(B61="","",IFERROR(VLOOKUP($G$8&$B62&"All"&$B$13&$J$8&$D$8,'Inspection Outcome data'!$A:$K,9,0),IF(B62="","",0))) ->  | E62: =IF(B61="","",IFERROR(VLOOKUP($G$8&$B62&"All"&$B$13&$J$8&$D$8,'Inspection Outcome data'!$A:$K,10,0),IF(B62="","",0))) ->  | F62: =IF(B61="","",IFERROR(VLOOKUP($G$8&$B62&"All"&$B$13&$J$8&$D$8,'Inspection Outcome data'!$A:$K,11,0),IF(B62="","",0))) ->  | G62: =IF(B61="","",IFERROR(VLOOKUP($G$8&$B62&"All"&$B$13&$J$8&$D$8,'Inspection Outcome data'!$A:$L,12,0),IF(B62="","",0))) -> 
A63: 31 | B63: =IFERROR(VLOOKUP($B$26&A63,'Region Lookups'!A:C,3,0),"") ->  | C63: =IF(B63="","",IF(ISERROR(VLOOKUP($G$8&$B63&"All"&$B$13&$J$8&$D$8,'Inspection Outcome data'!$A:$K,8,0)),0,SUM(D63:G63))) ->  | D63: =IF(B62="","",IFERROR(VLOOKUP($G$8&$B63&"All"&$B$13&$J$8&$D$8,'Inspection Outcome data'!$A:$K,9,0),IF(B63="","",0))) ->  | E63: =IF(B62="","",IFERROR(VLOOKUP($G$8&$B63&"All"&$B$13&$J$8&$D$8,'Inspection Outcome data'!$A:$K,10,0),IF(B63="","",0))) ->  | F63: =IF(B62="","",IFERROR(VLOOKUP($G$8&$B63&"All"&$B$13&$J$8&$D$8,'Inspection Outcome data'!$A:$K,11,0),IF(B63="","",0))) ->  | G63: =IF(B62="","",IFERROR(VLOOKUP($G$8&$B63&"All"&$B$13&$J$8&$D$8,'Inspection Outcome data'!$A:$L,12,0),IF(B63="","",0))) -> 
A64: 32 | B64: =IFERROR(VLOOKUP($B$26&A64,'Region Lookups'!A:C,3,0),"") ->  | C64: =IF(B64="","",IF(ISERROR(VLOOKUP($G$8&$B64&"All"&$B$13&$J$8&$D$8,'Inspection Outcome data'!$A:$K,8,0)),0,SUM(D64:G64))) ->  | D64: =IF(B63="","",IFERROR(VLOOKUP($G$8&$B64&"All"&$B$13&$J$8&$D$8,'Inspection Outcome data'!$A:$K,9,0),IF(B64="","",0))) ->  | E64: =IF(B63="","",IFERROR(VLOOKUP($G$8&$B64&"All"&$B$13&$J$8&$D$8,'Inspection Outcome data'!$A:$K,10,0),IF(B64="","",0))) ->  | F64: =IF(B63="","",IFERROR(VLOOKUP($G$8&$B64&"All"&$B$13&$J$8&$D$8,'Inspection Outcome data'!$A:$K,11,0),IF(B64="","",0))) ->  | G64: =IF(B63="","",IFERROR(VLOOKUP($G$8&$B64&"All"&$B$13&$J$8&$D$8,'Inspection Outcome data'!$A:$L,12,0),IF(B64="","",0))) -> 
A65: 33 | B65: =IFERROR(VLOOKUP($B$26&A65,'Region Lookups'!A:C,3,0),"") ->  | C65: =IF(B65="","",IF(ISERROR(VLOOKUP($G$8&$B65&"All"&$B$13&$J$8&$D$8,'Inspection Outcome data'!$A:$K,8,0)),0,SUM(D65:G65))) ->  | D65: =IF(B64="","",IFERROR(VLOOKUP($G$8&$B65&"All"&$B$13&$J$8&$D$8,'Inspection Outcome data'!$A:$K,9,0),IF(B65="","",0))) ->  | E65: =IF(B64="","",IFERROR(VLOOKUP($G$8&$B65&"All"&$B$13&$J$8&$D$8,'Inspection Outcome data'!$A:$K,10,0),IF(B65="","",0))) ->  | F65: =IF(B64="","",IFERROR(VLOOKUP($G$8&$B65&"All"&$B$13&$J$8&$D$8,'Inspection Outcome data'!$A:$K,11,0),IF(B65="","",0))) ->  | G65: =IF(B64="","",IFERROR(VLOOKUP($G$8&$B65&"All"&$B$13&$J$8&$D$8,'Inspection Outcome data'!$A:$L,12,0),IF(B65="","",0))) -> 
B66: =IFERROR(VLOOKUP($B$26&A66,'Region Lookups'!A:C,3,0),"") -> 
B67: =IFERROR(VLOOKUP($B$26&A67,'Region Lookups'!A:C,3,0),"") -> 
B68: =IFERROR(VLOOKUP($B$26&A68,'Region Lookups'!A:C,3,0),"") -> 
B69: =IFERROR(VLOOKUP($B$26&A69,'Region Lookups'!A:C,3,0),"") -> 

Sheet Sub-Judgements
S1: 1
B2: Statistical First Release - Children's Homes (Sub-Judgements) | S2: 2
S3: 3
C4: Region: | F4: Local Authority: | I4: Sector: | S4: 4
C5: All | F5: Bedford | H5: =IF(C5="All",TRUE,NOT(ISERROR(MATCH(F5,INDIRECT(SUBSTITUTE(SUBSTITUTE(C5," ","_"),",","")),0)))) -> TRUE | I5: All | S5: 5
S6: 6
C7: Date: | F7: Provision Type:
C8: as at 30 September 2018 | F8: All children's homes
D9: =VLOOKUP(C8,_PeriodLookup,2,0) -> 2018
B10: Judgements | C10: Total number of inspections | D10: Inspection Outcomes
D11: Outstanding | E11: Good | F11: Requires Improvement / Adequate | G11: Inadequate
A14: Overall effectiveness | B14: =IF(IF(ISERROR(VLOOKUP($C$8&$F$8&$S1,_Subjudgements,4,0))=TRUE,0,VLOOKUP($C$8&$F$8&$S1,_Subjudgements,4,0))=0,"",IF(ISERROR(VLOOKUP($C$8&$F$8&$S1,_Subjudgements,4,0))=TRUE,0,VLOOKUP($C$8&$F$8&$S1,_Subjudgements,4,0))) -> The overall experiences and progress of children and young people living in the home are | C14: =IF($B14 = "","",IF(SUM(D14,E14,F14,G14)=0,0,SUM(D14,E14,F14,G14))) -> 14 | D14: =IF($B$14="","ping",IF(ISERROR( VLOOKUP(A15,DataSubJudgements!$A:$K,8,0))=TRUE,0, VLOOKUP(A15,DataSubJudgements!$A:$K,8,0))) -> 0 | E14: =IF($B$14="","",IF(ISERROR( VLOOKUP(A15,DataSubJudgements!$A:$K,9,0))=TRUE,0, VLOOKUP(A15,DataSubJudgements!$A:$K,9,0))) -> 12 | F14: =IF($B$14="","",IF(ISERROR( VLOOKUP(A15,DataSubJudgements!$A:$K,10,0))=TRUE,0, VLOOKUP(A15,DataSubJudgements!$A:$K,10,0))) -> 1 | G14: =IF($B$14="","",IF(ISERROR( VLOOKUP(A15,DataSubJudgements!$A:$K,11,0))=TRUE,0, VLOOKUP(A15,DataSubJudgements!$A:$K,11,0))) -> 1
A15: =$C$5&$F$5&$I$5&$F$8&$A$14&$C$8 -> AllBedfordAllAll children's homesOverall effectivenessas at 30 September 2018
A17: Outcomes for children and young people | B17: =IF(IF(ISERROR( VLOOKUP($C$8&$F$8&$S2,_Subjudgements,4,0))=TRUE,0, VLOOKUP($C$8&$F$8&$S2,_Subjudgements,4,0))=0,"", IF(ISERROR( VLOOKUP($C$8&$F$8&$S2,_Subjudgements,4,0))=TRUE,0, VLOOKUP($C$8&$F$8&$S2,_Subjudgements,4,0))) -> Outcomes for children and young people | C17: =IF($B17 = "","",IF(SUM(D17,E17,F17,G17)=0,0,SUM(D17,E17,F17,G17))) -> 0 | D17: =IF($B$17="","",IF(ISERROR( VLOOKUP(A18,DataSubJudgements!$A:$K,8,0))=TRUE,0, VLOOKUP(A18,DataSubJudgements!$A:$K,8,0))) -> 0 | E17: =IF($B$17="","",IF(ISERROR( VLOOKUP(A18,DataSubJudgements!$A:$K,9,0))=TRUE,0, VLOOKUP(A18,DataSubJudgements!$A:$K,9,0))) -> 0 | F17: =IF($B$17="","",IF(ISERROR( VLOOKUP(A18,DataSubJudgements!$A:$K,10,0))=TRUE,0, VLOOKUP(A18,DataSubJudgements!$A:$K,10,0))) -> 0 | G17: =IF($B$17="","",IF(ISERROR( VLOOKUP(A18,DataSubJudgements!$A:$K,11,0))=TRUE,0, VLOOKUP(A18,DataSubJudgements!$A:$K,11,0))) -> 0
A18: =$C$5&$F$5&$I$5&$F$8&$A$17&$C$8 -> AllBedfordAllAll children's homesOutcomes for children and young peopleas at 30 September 2018
A20: Quality of care | B20: =IF(IF(ISERROR(VLOOKUP($C$8&$F$8&$S3,_Subjudgements,4,0))=TRUE,0,VLOOKUP($C$8&$F$8&$S3,_Subjudgements,4,0))=0,"",IF(ISERROR(VLOOKUP($C$8&$F$8&$S3,_Subjudgements,4,0))=TRUE,0,VLOOKUP($C$8&$F$8&$S3,_Subjudgements,4,0))) -> Quality of care | C20: =IF($B20 = "","",IF(SUM(D20,E20,F20,G20)=0,0,SUM(D20,E20,F20,G20))) -> 0 | D20: =IF($B$20="","",IF(ISERROR( VLOOKUP(A21,DataSubJudgements!$A:$K,8,0))=TRUE,0, VLOOKUP(A21,DataSubJudgements!$A:$K,8,0))) -> 0 | E20: =IF($B$20="","",IF(ISERROR( VLOOKUP(A21,DataSubJudgements!$A:$K,9,0))=TRUE,0, VLOOKUP(A21,DataSubJudgements!$A:$K,9,0))) -> 0 | F20: =IF($B$20="","",IF(ISERROR( VLOOKUP(A21,DataSubJudgements!$A:$K,10,0))=TRUE,0, VLOOKUP(A21,DataSubJudgements!$A:$K,10,0))) -> 0 | G20: =IF($B$20="","",IF(ISERROR( VLOOKUP(A21,DataSubJudgements!$A:$K,11,0))=TRUE,0, VLOOKUP(A21,DataSubJudgements!$A:$K,11,0))) -> 0
A21: =$C$5&$F$5&$I$5&$F$8&$A$20&$C$8 -> AllBedfordAllAll children's homesQuality of careas at 30 September 2018
A23: Safeguarding children and young people | B23: =IF(IF(ISERROR(VLOOKUP($C$8&$F$8&$S4,_Subjudgements,4,0))=TRUE,0,VLOOKUP($C$8&$F$8&$S4,_Subjudgements,4,0))=0,"",IF(ISERROR(VLOOKUP($C$8&$F$8&$S4,_Subjudgements,4,0))=TRUE,0,VLOOKUP($C$8&$F$8&$S4,_Subjudgements,4,0))) -> How well children and young people are helped and protected | C23: =IF($B23 = "","",IF(SUM(D23,E23,F23,G23)=0,0,SUM(D23,E23,F23,G23))) -> 14 | D23: =IF($B$23="","",IF(ISERROR( VLOOKUP(A24,DataSubJudgements!$A:$K,8,0))=TRUE,0, VLOOKUP(A24,DataSubJudgements!$A:$K,8,0))) -> 1 | E23: =IF($B$23="","",IF(ISERROR( VLOOKUP(A24,DataSubJudgements!$A:$K,9,0))=TRUE,0, VLOOKUP(A24,DataSubJudgements!$A:$K,9,0))) -> 11 | F23: =IF($B$23="","",IF(ISERROR( VLOOKUP(A24,DataSubJudgements!$A:$K,10,0))=TRUE,0, VLOOKUP(A24,DataSubJudgements!$A:$K,10,0))) -> 1 | G23: =IF($B$23="","",IF(ISERROR( VLOOKUP(A24,DataSubJudgements!$A:$K,11,0))=TRUE,0, VLOOKUP(A24,DataSubJudgements!$A:$K,11,0))) -> 1
A24: =$C$5&$F$5&$I$5&$F$8&$A$23&$C$8 -> AllBedfordAllAll children's homesSafeguarding children and young peopleas at 30 September 2018
A26: Leadership and management | B26: =IF(IF(ISERROR(VLOOKUP($C$8&$F$8&$S5,_Subjudgements,4,0))=TRUE,0,VLOOKUP($C$8&$F$8&$S5,_Subjudgements,4,0))=0,"",IF(ISERROR(VLOOKUP($C$8&$F$8&$S5,_Subjudgements,4,0))=TRUE,0,VLOOKUP($C$8&$F$8&$S5,_Subjudgements,4,0))) -> The impact and effectiveness of leaders and managers | C26: =IF($B26 = "","",IF(SUM(D26,E26,F26,G26)=0,0,SUM(D26,E26,F26,G26))) -> 14 | D26: =IF($B$26="","",IF(ISERROR( VLOOKUP(A27,DataSubJudgements!$A:$K,8,0))=TRUE,0, VLOOKUP(A27,DataSubJudgements!$A:$K,8,0))) -> 2 | E26: =IF($B$26="","",IF(ISERROR( VLOOKUP(A27,DataSubJudgements!$A:$K,9,0))=TRUE,0, VLOOKUP(A27,DataSubJudgements!$A:$K,9,0))) -> 9 | F26: =IF($B$26="","",IF(ISERROR( VLOOKUP(A27,DataSubJudgements!$A:$K,10,0))=TRUE,0, VLOOKUP(A27,DataSubJudgements!$A:$K,10,0))) -> 2 | G26: =IF($B$26="","",IF(ISERROR( VLOOKUP(A27,DataSubJudgements!$A:$K,11,0))=TRUE,0, VLOOKUP(A27,DataSubJudgements!$A:$K,11,0))) -> 1
A27: =$C$5&$F$5&$I$5&$F$8&$A$26&$C$8 -> AllBedfordAllAll children's homesLeadership and managementas at 30 September 2018
B32: =IF(C5<>"All",C5,IF(F5<>"All",VLOOKUP(F5,'Region Lookups'!C:D,2,0),"All")) -> East of England
F33: 8 | H33: 9 | J33: 10 | M33: 11
D34: Total number inspected | F34: Outstanding | H34: Good | J34: Requires Improvement/ Adequate | M34: Inadequate
F35: 6 | H35: 7 | J35: 8 | M35: 9
B36: England | D36: =IF(ISERROR(VLOOKUP("All"&"All"&$I$5&$F$8&$A$14&$C$8,DataSubJudgements!$A:$K,8,0)),"",SUM(F36:M36)) -> 2140 | F36: =IFERROR(VLOOKUP("All"&"All"&$I$5&$F$8&$A$14&$C$8,DataSubJudgements!$A:$K,8,0),"") -> 386 | H36: =IFERROR(VLOOKUP("All"&"All"&$I$5&$F$8&$A$14&$C$8,DataSubJudgements!$A:$K,9,0),"") -> 1378 | J36: =IFERROR(VLOOKUP("All"&"All"&$I$5&$F$8&$A$14&$C$8,DataSubJudgements!$A:$K,10,0),"") -> 316 | M36: =IFERROR(VLOOKUP("All"&"All"&$I$5&$F$8&$A$14&$C$8,DataSubJudgements!$A:$K,11,0),"") -> 60
B38: =IFERROR(IF(B32="All",NA(),B32),"") -> East of England | D38: =IF(ISERROR(VLOOKUP($B38&"All"&$I$5&$F$8&$A$14&$C$8,DataSubJudgements!$A:$K,8,0)),IF(B38="","",0),SUM(F38:M38)) -> 170 | F38: =IF(ISERROR(VLOOKUP($B38&"All"&$I$5&$F$8&$A$14&$C$8,DataSubJudgements!$A:$K,F$33,0)),IF($B38="","",0),VLOOKUP($B38&"All"&$I$5&$F$8&$A$14&$C$8,DataSubJudgements!$A:$K,F$33,0)) -> 19 | H38: =IF(ISERROR(VLOOKUP($B38&"All"&$I$5&$F$8&$A$14&$C$8,DataSubJudgements!$A:$K,H$33,0)),IF($B38="","",0),VLOOKUP($B38&"All"&$I$5&$F$8&$A$14&$C$8,DataSubJudgements!$A:$K,H$33,0)) -> 115 | J38: =IF(ISERROR(VLOOKUP($B38&"All"&$I$5&$F$8&$A$14&$C$8,DataSubJudgements!$A:$K,J$33,0)),IF($B38="","",0),VLOOKUP($B38&"All"&$I$5&$F$8&$A$14&$C$8,DataSubJudgements!$A:$K,J$33,0)) -> 32 | M38: =IF(ISERROR(VLOOKUP($B38&"All"&$I$5&$F$8&$A$14&$C$8,DataSubJudgements!$A:$K,M$33,0)),IF($B38="","",0),VLOOKUP($B38&"All"&$I$5&$F$8&$A$14&$C$8,DataSubJudgements!$A:$K,M$33,0)) -> 4
A39: 1 | B39: =IFERROR(VLOOKUP($B$32&A39,'Region Lookups'!A:C,3,0),"") -> Bedford | D39: =IF(ISERROR(VLOOKUP("All"&$B39&$I$5&$F$8&$A$14&$C$8,DataSubJudgements!$A:$K,8,0)),IF(B39="","",0),SUM(F39:M39)) -> 14 | F39: =IF(ISERROR(VLOOKUP("All"&$B39&$I$5&$F$8&$A$14&$C$8,DataSubJudgements!$A:$K,F$33,0)),IF($B39="","",0),VLOOKUP("All"&$B39&$I$5&$F$8&$A$14&$C$8,DataSubJudgements!$A:$K,F$33,0)) -> 0 | H39: =IF(ISERROR(VLOOKUP("All"&$B39&$I$5&$F$8&$A$14&$C$8,DataSubJudgements!$A:$K,H$33,0)),IF($B39="","",0),VLOOKUP("All"&$B39&$I$5&$F$8&$A$14&$C$8,DataSubJudgements!$A:$K,H$33,0)) -> 12 | J39: =IF(ISERROR(VLOOKUP("All"&$B39&$I$5&$F$8&$A$14&$C$8,DataSubJudgements!$A:$K,J$33,0)),IF($B39="","",0),VLOOKUP("All"&$B39&$I$5&$F$8&$A$14&$C$8,DataSubJudgements!$A:$K,J$33,0)) -> 1 | M39: =IF(ISERROR(VLOOKUP("All"&$B39&$I$5&$F$8&$A$14&$C$8,DataSubJudgements!$A:$K,M$33,0)),IF($B39="","",0),VLOOKUP("All"&$B39&$I$5&$F$8&$A$14&$C$8,DataSubJudgements!$A:$K,M$33,0)) -> 1
A40: 2 | B40: =IFERROR(VLOOKUP($B$32&A40,'Region Lookups'!A:C,3,0),"") -> Cambridgeshire | D40: =IF(ISERROR(VLOOKUP("All"&$B40&$I$5&$F$8&$A$14&$C$8,DataSubJudgements!$A:$K,8,0)),IF(B40="","",0),SUM(F40:M40)) -> 22 | F40: =IF(ISERROR(VLOOKUP("All"&$B40&$I$5&$F$8&$A$14&$C$8,DataSubJudgements!$A:$K,F$33,0)),IF($B40="","",0),VLOOKUP("All"&$B40&$I$5&$F$8&$A$14&$C$8,DataSubJudgements!$A:$K,F$33,0)) -> 4 | H40: =IF(ISERROR(VLOOKUP("All"&$B40&$I$5&$F$8&$A$14&$C$8,DataSubJudgements!$A:$K,H$33,0)),IF($B40="","",0),VLOOKUP("All"&$B40&$I$5&$F$8&$A$14&$C$8,DataSubJudgements!$A:$K,H$33,0)) -> 11 | J40: =IF(ISERROR(VLOOKUP("All"&$B40&$I$5&$F$8&$A$14&$C$8,DataSubJudgements!$A:$K,J$33,0)),IF($B40="","",0),VLOOKUP("All"&$B40&$I$5&$F$8&$A$14&$C$8,DataSubJudgements!$A:$K,J$33,0)) -> 7 | M40: =IF(ISERROR(VLOOKUP("All"&$B40&$I$5&$F$8&$A$14&$C$8,DataSubJudgements!$A:$K,M$33,0)),IF($B40="","",0),VLOOKUP("All"&$B40&$I$5&$F$8&$A$14&$C$8,DataSubJudgements!$A:$K,M$33,0)) -> 0
A41: 3 | B41: =IFERROR(VLOOKUP($B$32&A41,'Region Lookups'!A:C,3,0),"") -> Central Bedfordshire | D41: =IF(ISERROR(VLOOKUP("All"&$B41&$I$5&$F$8&$A$14&$C$8,DataSubJudgements!$A:$K,8,0)),IF(B41="","",0),SUM(F41:M41)) -> 11 | F41: =IF(ISERROR(VLOOKUP("All"&$B41&$I$5&$F$8&$A$14&$C$8,DataSubJudgements!$A:$K,F$33,0)),IF($B41="","",0),VLOOKUP("All"&$B41&$I$5&$F$8&$A$14&$C$8,DataSubJudgements!$A:$K,F$33,0)) -> 1 | H41: =IF(ISERROR(VLOOKUP("All"&$B41&$I$5&$F$8&$A$14&$C$8,DataSubJudgements!$A:$K,H$33,0)),IF($B41="","",0),VLOOKUP("All"&$B41&$I$5&$F$8&$A$14&$C$8,DataSubJudgements!$A:$K,H$33,0)) -> 8 | J41: =IF(ISERROR(VLOOKUP("All"&$B41&$I$5&$F$8&$A$14&$C$8,DataSubJudgements!$A:$K,J$33,0)),IF($B41="","",0),VLOOKUP("All"&$B41&$I$5&$F$8&$A$14&$C$8,DataSubJudgements!$A:$K,J$33,0)) -> 2 | M41: =IF(ISERROR(VLOOKUP("All"&$B41&$I$5&$F$8&$A$14&$C$8,DataSubJudgements!$A:$K,M$33,0)),IF($B41="","",0),VLOOKUP("All"&$B41&$I$5&$F$8&$A$14&$C$8,DataSubJudgements!$A:$K,M$33,0)) -> 0
A42: 4 | B42: =IFERROR(VLOOKUP($B$32&A42,'Region Lookups'!A:C,3,0),"") -> Essex | D42: =IF(ISERROR(VLOOKUP("All"&$B42&$I$5&$F$8&$A$14&$C$8,DataSubJudgements!$A:$K,8,0)),IF(B42="","",0),SUM(F42:M42)) -> 35 | F42: =IF(ISERROR(VLOOKUP("All"&$B42&$I$5&$F$8&$A$14&$C$8,DataSubJudgements!$A:$K,F$33,0)),IF($B42="","",0),VLOOKUP("All"&$B42&$I$5&$F$8&$A$14&$C$8,DataSubJudgements!$A:$K,F$33,0)) -> 2 | H42: =IF(ISERROR(VLOOKUP("All"&$B42&$I$5&$F$8&$A$14&$C$8,DataSubJudgements!$A:$K,H$33,0)),IF($B42="","",0),VLOOKUP("All"&$B42&$I$5&$F$8&$A$14&$C$8,DataSubJudgements!$A:$K,H$33,0)) -> 27 | J42: =IF(ISERROR(VLOOKUP("All"&$B42&$I$5&$F$8&$A$14&$C$8,DataSubJudgements!$A:$K,J$33,0)),IF($B42="","",0),VLOOKUP("All"&$B42&$I$5&$F$8&$A$14&$C$8,DataSubJudgements!$A:$K,J$33,0)) -> 5 | M42: =IF(ISERROR(VLOOKUP("All"&$B42&$I$5&$F$8&$A$14&$C$8,DataSubJudgements!$A:$K,M$33,0)),IF($B42="","",0),VLOOKUP("All"&$B42&$I$5&$F$8&$A$14&$C$8,DataSubJudgements!$A:$K,M$33,0)) -> 1
A43: 5 | B43: =IFERROR(VLOOKUP($B$32&A43,'Region Lookups'!A:C,3,0),"") -> Hertfordshire | D43: =IF(ISERROR(VLOOKUP("All"&$B43&$I$5&$F$8&$A$14&$C$8,DataSubJudgements!$A:$K,8,0)),IF(B43="","",0),SUM(F43:M43)) -> 14 | F43: =IF(ISERROR(VLOOKUP("All"&$B43&$I$5&$F$8&$A$14&$C$8,DataSubJudgements!$A:$K,F$33,0)),IF($B43="","",0),VLOOKUP("All"&$B43&$I$5&$F$8&$A$14&$C$8,DataSubJudgements!$A:$K,F$33,0)) -> 2 | H43: =IF(ISERROR(VLOOKUP("All"&$B43&$I$5&$F$8&$A$14&$C$8,DataSubJudgements!$A:$K,H$33,0)),IF($B43="","",0),VLOOKUP("All"&$B43&$I$5&$F$8&$A$14&$C$8,DataSubJudgements!$A:$K,H$33,0)) -> 9 | J43: =IF(ISERROR(VLOOKUP("All"&$B43&$I$5&$F$8&$A$14&$C$8,DataSubJudgements!$A:$K,J$33,0)),IF($B43="","",0),VLOOKUP("All"&$B43&$I$5&$F$8&$A$14&$C$8,DataSubJudgements!$A:$K,J$33,0)) -> 3 | M43: =IF(ISERROR(VLOOKUP("All"&$B43&$I$5&$F$8&$A$14&$C$8,DataSubJudgements!$A:$K,M$33,0)),IF($B43="","",0),VLOOKUP("All"&$B43&$I$5&$F$8&$A$14&$C$8,DataSubJudgements!$A:$K,M$33,0)) -> 0
A44: 6 | B44: =IFERROR(VLOOKUP($B$32&A44,'Region Lookups'!A:C,3,0),"") -> Luton | D44: =IF(ISERROR(VLOOKUP("All"&$B44&$I$5&$F$8&$A$14&$C$8,DataSubJudgements!$A:$K,8,0)),IF(B44="","",0),SUM(F44:M44)) -> 2 | F44: =IF(ISERROR(VLOOKUP("All"&$B44&$I$5&$F$8&$A$14&$C$8,DataSubJudgements!$A:$K,F$33,0)),IF($B44="","",0),VLOOKUP("All"&$B44&$I$5&$F$8&$A$14&$C$8,DataSubJudgements!$A:$K,F$33,0)) -> 0 | H44: =IF(ISERROR(VLOOKUP("All"&$B44&$I$5&$F$8&$A$14&$C$8,DataSubJudgements!$A:$K,H$33,0)),IF($B44="","",0),VLOOKUP("All"&$B44&$I$5&$F$8&$A$14&$C$8,DataSubJudgements!$A:$K,H$33,0)) -> 2 | J44: =IF(ISERROR(VLOOKUP("All"&$B44&$I$5&$F$8&$A$14&$C$8,DataSubJudgements!$A:$K,J$33,0)),IF($B44="","",0),VLOOKUP("All"&$B44&$I$5&$F$8&$A$14&$C$8,DataSubJudgements!$A:$K,J$33,0)) -> 0 | M44: =IF(ISERROR(VLOOKUP("All"&$B44&$I$5&$F$8&$A$14&$C$8,DataSubJudgements!$A:$K,M$33,0)),IF($B44="","",0),VLOOKUP("All"&$B44&$I$5&$F$8&$A$14&$C$8,DataSubJudgements!$A:$K,M$33,0)) -> 0
A45: 7 | B45: =IFERROR(VLOOKUP($B$32&A45,'Region Lookups'!A:C,3,0),"") -> Norfolk | D45: =IF(ISERROR(VLOOKUP("All"&$B45&$I$5&$F$8&$A$14&$C$8,DataSubJudgements!$A:$K,8,0)),IF(B45="","",0),SUM(F45:M45)) -> 36 | F45: =IF(ISERROR(VLOOKUP("All"&$B45&$I$5&$F$8&$A$14&$C$8,DataSubJudgements!$A:$K,F$33,0)),IF($B45="","",0),VLOOKUP("All"&$B45&$I$5&$F$8&$A$14&$C$8,DataSubJudgements!$A:$K,F$33,0)) -> 10 | H45: =IF(ISERROR(VLOOKUP("All"&$B45&$I$5&$F$8&$A$14&$C$8,DataSubJudgements!$A:$K,H$33,0)),IF($B45="","",0),VLOOKUP("All"&$B45&$I$5&$F$8&$A$14&$C$8,DataSubJudgements!$A:$K,H$33,0)) -> 18 | J45: =IF(ISERROR(VLOOKUP("All"&$B45&$I$5&$F$8&$A$14&$C$8,DataSubJudgements!$A:$K,J$33,0)),IF($B45="","",0),VLOOKUP("All"&$B45&$I$5&$F$8&$A$14&$C$8,DataSubJudgements!$A:$K,J$33,0)) -> 6 | M45: =IF(ISERROR(VLOOKUP("All"&$B45&$I$5&$F$8&$A$14&$C$8,DataSubJudgements!$A:$K,M$33,0)),IF($B45="","",0),VLOOKUP("All"&$B45&$I$5&$F$8&$A$14&$C$8,DataSubJudgements!$A:$K,M$33,0)) -> 2
A46: 8 | B46: =IFERROR(VLOOKUP($B$32&A46,'Region Lookups'!A:C,3,0),"") -> Peterborough | D46: =IF(ISERROR(VLOOKUP("All"&$B46&$I$5&$F$8&$A$14&$C$8,DataSubJudgements!$A:$K,8,0)),IF(B46="","",0),SUM(F46:M46)) -> 8 | F46: =IF(ISERROR(VLOOKUP("All"&$B46&$I$5&$F$8&$A$14&$C$8,DataSubJudgements!$A:$K,F$33,0)),IF($B46="","",0),VLOOKUP("All"&$B46&$I$5&$F$8&$A$14&$C$8,DataSubJudgements!$A:$K,F$33,0)) -> 0 | H46: =IF(ISERROR(VLOOKUP("All"&$B46&$I$5&$F$8&$A$14&$C$8,DataSubJudgements!$A:$K,H$33,0)),IF($B46="","",0),VLOOKUP("All"&$B46&$I$5&$F$8&$A$14&$C$8,DataSubJudgements!$A:$K,H$33,0)) -> 7 | J46: =IF(ISERROR(VLOOKUP("All"&$B46&$I$5&$F$8&$A$14&$C$8,DataSubJudgements!$A:$K,J$33,0)),IF($B46="","",0),VLOOKUP("All"&$B46&$I$5&$F$8&$A$14&$C$8,DataSubJudgements!$A:$K,J$33,0)) -> 1 | M46: =IF(ISERROR(VLOOKUP("All"&$B46&$I$5&$F$8&$A$14&$C$8,DataSubJudgements!$A:$K,M$33,0)),IF($B46="","",0),VLOOKUP("All"&$B46&$I$5&$F$8&$A$14&$C$8,DataSubJudgements!$A:$K,M$33,0)) -> 0
A47: 9 | B47: =IFERROR(VLOOKUP($B$32&A47,'Region Lookups'!A:C,3,0),"") -> Southend on Sea | D47: =IF(ISERROR(VLOOKUP("All"&$B47&$I$5&$F$8&$A$14&$C$8,DataSubJudgements!$A:$K,8,0)),IF(B47="","",0),SUM(F47:M47)) -> 5 | F47: =IF(ISERROR(VLOOKUP("All"&$B47&$I$5&$F$8&$A$14&$C$8,DataSubJudgements!$A:$K,F$33,0)),IF($B47="","",0),VLOOKUP("All"&$B47&$I$5&$F$8&$A$14&$C$8,DataSubJudgements!$A:$K,F$33,0)) -> 0 | H47: =IF(ISERROR(VLOOKUP("All"&$B47&$I$5&$F$8&$A$14&$C$8,DataSubJudgements!$A:$K,H$33,0)),IF($B47="","",0),VLOOKUP("All"&$B47&$I$5&$F$8&$A$14&$C$8,DataSubJudgements!$A:$K,H$33,0)) -> 5 | J47: =IF(ISERROR(VLOOKUP("All"&$B47&$I$5&$F$8&$A$14&$C$8,DataSubJudgements!$A:$K,J$33,0)),IF($B47="","",0),VLOOKUP("All"&$B47&$I$5&$F$8&$A$14&$C$8,DataSubJudgements!$A:$K,J$33,0)) -> 0 | M47: =IF(ISERROR(VLOOKUP("All"&$B47&$I$5&$F$8&$A$14&$C$8,DataSubJudgements!$A:$K,M$33,0)),IF($B47="","",0),VLOOKUP("All"&$B47&$I$5&$F$8&$A$14&$C$8,DataSubJudgements!$A:$K,M$33,0)) -> 0
A48: 10 | B48: =IFERROR(VLOOKUP($B$32&A48,'Region Lookups'!A:C,3,0),"") -> Suffolk | D48: =IF(ISERROR(VLOOKUP("All"&$B48&$I$5&$F$8&$A$14&$C$8,DataSubJudgements!$A:$K,8,0)),IF(B48="","",0),SUM(F48:M48)) -> 21 | F48: =IF(ISERROR(VLOOKUP("All"&$B48&$I$5&$F$8&$A$14&$C$8,DataSubJudgements!$A:$K,F$33,0)),IF($B48="","",0),VLOOKUP("All"&$B48&$I$5&$F$8&$A$14&$C$8,DataSubJudgements!$A:$K,F$33,0)) -> 0 | H48: =IF(ISERROR(VLOOKUP("All"&$B48&$I$5&$F$8&$A$14&$C$8,DataSubJudgements!$A:$K,H$33,0)),IF($B48="","",0),VLOOKUP("All"&$B48&$I$5&$F$8&$A$14&$C$8,DataSubJudgements!$A:$K,H$33,0)) -> 14 | J48: =IF(ISERROR(VLOOKUP("All"&$B48&$I$5&$F$8&$A$14&$C$8,DataSubJudgements!$A:$K,J$33,0)),IF($B48="","",0),VLOOKUP("All"&$B48&$I$5&$F$8&$A$14&$C$8,DataSubJudgements!$A:$K,J$33,0)) -> 7 | M48: =IF(ISERROR(VLOOKUP("All"&$B48&$I$5&$F$8&$A$14&$C$8,DataSubJudgements!$A:$K,M$33,0)),IF($B48="","",0),VLOOKUP("All"&$B48&$I$5&$F$8&$A$14&$C$8,DataSubJudgements!$A:$K,M$33,0)) -> 0
A49: 11 | B49: =IFERROR(VLOOKUP($B$32&A49,'Region Lookups'!A:C,3,0),"") -> Thurrock | D49: =IF(ISERROR(VLOOKUP("All"&$B49&$I$5&$F$8&$A$14&$C$8,DataSubJudgements!$A:$K,8,0)),IF(B49="","",0),SUM(F49:M49)) -> 2 | F49: =IF(ISERROR(VLOOKUP("All"&$B49&$I$5&$F$8&$A$14&$C$8,DataSubJudgements!$A:$K,F$33,0)),IF($B49="","",0),VLOOKUP("All"&$B49&$I$5&$F$8&$A$14&$C$8,DataSubJudgements!$A:$K,F$33,0)) -> 0 | H49: =IF(ISERROR(VLOOKUP("All"&$B49&$I$5&$F$8&$A$14&$C$8,DataSubJudgements!$A:$K,H$33,0)),IF($B49="","",0),VLOOKUP("All"&$B49&$I$5&$F$8&$A$14&$C$8,DataSubJudgements!$A:$K,H$33,0)) -> 2 | J49: =IF(ISERROR(VLOOKUP("All"&$B49&$I$5&$F$8&$A$14&$C$8,DataSubJudgements!$A:$K,J$33,0)),IF($B49="","",0),VLOOKUP("All"&$B49&$I$5&$F$8&$A$14&$C$8,DataSubJudgements!$A:$K,J$33,0)) -> 0 | M49: =IF(ISERROR(VLOOKUP("All"&$B49&$I$5&$F$8&$A$14&$C$8,DataSubJudgements!$A:$K,M$33,0)),IF($B49="","",0),VLOOKUP("All"&$B49&$I$5&$F$8&$A$14&$C$8,DataSubJudgements!$A:$K,M$33,0)) -> 0
A50: 12 | B50: =IFERROR(VLOOKUP($B$32&A50,'Region Lookups'!A:C,3,0),"") ->  | D50: =IF(ISERROR(VLOOKUP("All"&$B50&$I$5&$F$8&$A$14&$C$8,DataSubJudgements!$A:$K,8,0)),IF(B50="","",0),SUM(F50:M50)) ->  | F50: =IF(ISERROR(VLOOKUP("All"&$B50&$I$5&$F$8&$A$14&$C$8,DataSubJudgements!$A:$K,F$33,0)),IF($B50="","",0),VLOOKUP("All"&$B50&$I$5&$F$8&$A$14&$C$8,DataSubJudgements!$A:$K,F$33,0)) ->  | H50: =IF(ISERROR(VLOOKUP("All"&$B50&$I$5&$F$8&$A$14&$C$8,DataSubJudgements!$A:$K,H$33,0)),IF($B50="","",0),VLOOKUP("All"&$B50&$I$5&$F$8&$A$14&$C$8,DataSubJudgements!$A:$K,H$33,0)) ->  | J50: =IF(ISERROR(VLOOKUP("All"&$B50&$I$5&$F$8&$A$14&$C$8,DataSubJudgements!$A:$K,J$33,0)),IF($B50="","",0),VLOOKUP("All"&$B50&$I$5&$F$8&$A$14&$C$8,DataSubJudgements!$A:$K,J$33,0)) ->  | M50: =IF(ISERROR(VLOOKUP("All"&$B50&$I$5&$F$8&$A$14&$C$8,DataSubJudgements!$A:$K,M$33,0)),IF($B50="","",0),VLOOKUP("All"&$B50&$I$5&$F$8&$A$14&$C$8,DataSubJudgements!$A:$K,M$33,0)) -> 
A51: 13 | B51: =IFERROR(VLOOKUP($B$32&A51,'Region Lookups'!A:C,3,0),"") ->  | D51: =IF(ISERROR(VLOOKUP("All"&$B51&$I$5&$F$8&$A$14&$C$8,DataSubJudgements!$A:$K,8,0)),IF(B51="","",0),SUM(F51:M51)) ->  | F51: =IF(ISERROR(VLOOKUP("All"&$B51&$I$5&$F$8&$A$14&$C$8,DataSubJudgements!$A:$K,F$33,0)),IF($B51="","",0),VLOOKUP("All"&$B51&$I$5&$F$8&$A$14&$C$8,DataSubJudgements!$A:$K,F$33,0)) ->  | H51: =IF(ISERROR(VLOOKUP("All"&$B51&$I$5&$F$8&$A$14&$C$8,DataSubJudgements!$A:$K,H$33,0)),IF($B51="","",0),VLOOKUP("All"&$B51&$I$5&$F$8&$A$14&$C$8,DataSubJudgements!$A:$K,H$33,0)) ->  | J51: =IF(ISERROR(VLOOKUP("All"&$B51&$I$5&$F$8&$A$14&$C$8,DataSubJudgements!$A:$K,J$33,0)),IF($B51="","",0),VLOOKUP("All"&$B51&$I$5&$F$8&$A$14&$C$8,DataSubJudgements!$A:$K,J$33,0)) ->  | M51: =IF(ISERROR(VLOOKUP("All"&$B51&$I$5&$F$8&$A$14&$C$8,DataSubJudgements!$A:$K,M$33,0)),IF($B51="","",0),VLOOKUP("All"&$B51&$I$5&$F$8&$A$14&$C$8,DataSubJudgements!$A:$K,M$33,0)) -> 
A52: 14 | B52: =IFERROR(VLOOKUP($B$32&A52,'Region Lookups'!A:C,3,0),"") ->  | D52: =IF(ISERROR(VLOOKUP("All"&$B52&$I$5&$F$8&$A$14&$C$8,DataSubJudgements!$A:$K,8,0)),IF(B52="","",0),SUM(F52:M52)) ->  | F52: =IF(ISERROR(VLOOKUP("All"&$B52&$I$5&$F$8&$A$14&$C$8,DataSubJudgements!$A:$K,F$33,0)),IF($B52="","",0),VLOOKUP("All"&$B52&$I$5&$F$8&$A$14&$C$8,DataSubJudgements!$A:$K,F$33,0)) ->  | H52: =IF(ISERROR(VLOOKUP("All"&$B52&$I$5&$F$8&$A$14&$C$8,DataSubJudgements!$A:$K,H$33,0)),IF($B52="","",0),VLOOKUP("All"&$B52&$I$5&$F$8&$A$14&$C$8,DataSubJudgements!$A:$K,H$33,0)) ->  | J52: =IF(ISERROR(VLOOKUP("All"&$B52&$I$5&$F$8&$A$14&$C$8,DataSubJudgements!$A:$K,J$33,0)),IF($B52="","",0),VLOOKUP("All"&$B52&$I$5&$F$8&$A$14&$C$8,DataSubJudgements!$A:$K,J$33,0)) ->  | M52: =IF(ISERROR(VLOOKUP("All"&$B52&$I$5&$F$8&$A$14&$C$8,DataSubJudgements!$A:$K,M$33,0)),IF($B52="","",0),VLOOKUP("All"&$B52&$I$5&$F$8&$A$14&$C$8,DataSubJudgements!$A:$K,M$33,0)) -> 
A53: 15 | B53: =IFERROR(VLOOKUP($B$32&A53,'Region Lookups'!A:C,3,0),"") ->  | D53: =IF(ISERROR(VLOOKUP("All"&$B53&$I$5&$F$8&$A$14&$C$8,DataSubJudgements!$A:$K,8,0)),IF(B53="","",0),SUM(F53:M53)) ->  | F53: =IF(ISERROR(VLOOKUP("All"&$B53&$I$5&$F$8&$A$14&$C$8,DataSubJudgements!$A:$K,F$33,0)),IF($B53="","",0),VLOOKUP("All"&$B53&$I$5&$F$8&$A$14&$C$8,DataSubJudgements!$A:$K,F$33,0)) ->  | H53: =IF(ISERROR(VLOOKUP("All"&$B53&$I$5&$F$8&$A$14&$C$8,DataSubJudgements!$A:$K,H$33,0)),IF($B53="","",0),VLOOKUP("All"&$B53&$I$5&$F$8&$A$14&$C$8,DataSubJudgements!$A:$K,H$33,0)) ->  | J53: =IF(ISERROR(VLOOKUP("All"&$B53&$I$5&$F$8&$A$14&$C$8,DataSubJudgements!$A:$K,J$33,0)),IF($B53="","",0),VLOOKUP("All"&$B53&$I$5&$F$8&$A$14&$C$8,DataSubJudgements!$A:$K,J$33,0)) ->  | M53: =IF(ISERROR(VLOOKUP("All"&$B53&$I$5&$F$8&$A$14&$C$8,DataSubJudgements!$A:$K,M$33,0)),IF($B53="","",0),VLOOKUP("All"&$B53&$I$5&$F$8&$A$14&$C$8,DataSubJudgements!$A:$K,M$33,0)) -> 
A54: 16 | B54: =IFERROR(VLOOKUP($B$32&A54,'Region Lookups'!A:C,3,0),"") ->  | D54: =IF(ISERROR(VLOOKUP("All"&$B54&$I$5&$F$8&$A$14&$C$8,DataSubJudgements!$A:$K,8,0)),IF(B54="","",0),SUM(F54:M54)) ->  | F54: =IF(ISERROR(VLOOKUP("All"&$B54&$I$5&$F$8&$A$14&$C$8,DataSubJudgements!$A:$K,F$33,0)),IF($B54="","",0),VLOOKUP("All"&$B54&$I$5&$F$8&$A$14&$C$8,DataSubJudgements!$A:$K,F$33,0)) ->  | H54: =IF(ISERROR(VLOOKUP("All"&$B54&$I$5&$F$8&$A$14&$C$8,DataSubJudgements!$A:$K,H$33,0)),IF($B54="","",0),VLOOKUP("All"&$B54&$I$5&$F$8&$A$14&$C$8,DataSubJudgements!$A:$K,H$33,0)) ->  | J54: =IF(ISERROR(VLOOKUP("All"&$B54&$I$5&$F$8&$A$14&$C$8,DataSubJudgements!$A:$K,J$33,0)),IF($B54="","",0),VLOOKUP("All"&$B54&$I$5&$F$8&$A$14&$C$8,DataSubJudgements!$A:$K,J$33,0)) ->  | M54: =IF(ISERROR(VLOOKUP("All"&$B54&$I$5&$F$8&$A$14&$C$8,DataSubJudgements!$A:$K,M$33,0)),IF($B54="","",0),VLOOKUP("All"&$B54&$I$5&$F$8&$A$14&$C$8,DataSubJudgements!$A:$K,M$33,0)) -> 
A55: 17 | B55: =IFERROR(VLOOKUP($B$32&A55,'Region Lookups'!A:C,3,0),"") ->  | D55: =IF(ISERROR(VLOOKUP("All"&$B55&$I$5&$F$8&$A$14&$C$8,DataSubJudgements!$A:$K,8,0)),IF(B55="","",0),SUM(F55:M55)) ->  | F55: =IF(ISERROR(VLOOKUP("All"&$B55&$I$5&$F$8&$A$14&$C$8,DataSubJudgements!$A:$K,F$33,0)),IF($B55="","",0),VLOOKUP("All"&$B55&$I$5&$F$8&$A$14&$C$8,DataSubJudgements!$A:$K,F$33,0)) ->  | H55: =IF(ISERROR(VLOOKUP("All"&$B55&$I$5&$F$8&$A$14&$C$8,DataSubJudgements!$A:$K,H$33,0)),IF($B55="","",0),VLOOKUP("All"&$B55&$I$5&$F$8&$A$14&$C$8,DataSubJudgements!$A:$K,H$33,0)) ->  | J55: =IF(ISERROR(VLOOKUP("All"&$B55&$I$5&$F$8&$A$14&$C$8,DataSubJudgements!$A:$K,J$33,0)),IF($B55="","",0),VLOOKUP("All"&$B55&$I$5&$F$8&$A$14&$C$8,DataSubJudgements!$A:$K,J$33,0)) ->  | M55: =IF(ISERROR(VLOOKUP("All"&$B55&$I$5&$F$8&$A$14&$C$8,DataSubJudgements!$A:$K,M$33,0)),IF($B55="","",0),VLOOKUP("All"&$B55&$I$5&$F$8&$A$14&$C$8,DataSubJudgements!$A:$K,M$33,0)) -> 
A56: 18 | B56: =IFERROR(VLOOKUP($B$32&A56,'Region Lookups'!A:C,3,0),"") ->  | F56: =IF(ISERROR(VLOOKUP("All"&$B56&$I$5&$F$8&$A$14&$C$8,DataSubJudgements!$A:$K,F$33,0)),IF($B56="","",0),VLOOKUP("All"&$B56&$I$5&$F$8&$A$14&$C$8,DataSubJudgements!$A:$K,F$33,0)) ->  | H56: =IF(ISERROR(VLOOKUP("All"&$B56&$I$5&$F$8&$A$14&$C$8,DataSubJudgements!$A:$K,H$33,0)),IF($B56="","",0),VLOOKUP("All"&$B56&$I$5&$F$8&$A$14&$C$8,DataSubJudgements!$A:$K,H$33,0)) ->  | J56: =IF(ISERROR(VLOOKUP("All"&$B56&$I$5&$F$8&$A$14&$C$8,DataSubJudgements!$A:$K,J$33,0)),IF($B56="","",0),VLOOKUP("All"&$B56&$I$5&$F$8&$A$14&$C$8,DataSubJudgements!$A:$K,J$33,0)) ->  | M56: =IF(ISERROR(VLOOKUP("All"&$B56&$I$5&$F$8&$A$14&$C$8,DataSubJudgements!$A:$K,M$33,0)),IF($B56="","",0),VLOOKUP("All"&$B56&$I$5&$F$8&$A$14&$C$8,DataSubJudgements!$A:$K,M$33,0)) -> 
A57: 19 | B57: =IFERROR(VLOOKUP($B$32&A57,'Region Lookups'!A:C,3,0),"") ->  | D57: =IF(ISERROR(VLOOKUP("All"&$B57&$I$5&$F$8&$A$14&$C$8,DataSubJudgements!$A:$K,8,0)),IF(B57="","",0),SUM(F57:M57)) ->  | F57: =IF(ISERROR(VLOOKUP("All"&$B57&$I$5&$F$8&$A$14&$C$8,DataSubJudgements!$A:$K,F$33,0)),IF($B57="","",0),VLOOKUP("All"&$B57&$I$5&$F$8&$A$14&$C$8,DataSubJudgements!$A:$K,F$33,0)) ->  | H57: =IF(ISERROR(VLOOKUP("All"&$B57&$I$5&$F$8&$A$14&$C$8,DataSubJudgements!$A:$K,H$33,0)),IF($B57="","",0),VLOOKUP("All"&$B57&$I$5&$F$8&$A$14&$C$8,DataSubJudgements!$A:$K,H$33,0)) ->  | J57: =IF(ISERROR(VLOOKUP("All"&$B57&$I$5&$F$8&$A$14&$C$8,DataSubJudgements!$A:$K,J$33,0)),IF($B57="","",0),VLOOKUP("All"&$B57&$I$5&$F$8&$A$14&$C$8,DataSubJudgements!$A:$K,J$33,0)) ->  | M57: =IF(ISERROR(VLOOKUP("All"&$B57&$I$5&$F$8&$A$14&$C$8,DataSubJudgements!$A:$K,M$33,0)),IF($B57="","",0),VLOOKUP("All"&$B57&$I$5&$F$8&$A$14&$C$8,DataSubJudgements!$A:$K,M$33,0)) -> 
A58: 20 | B58: =IFERROR(VLOOKUP($B$32&A58,'Region Lookups'!A:C,3,0),"") ->  | D58: =IF(ISERROR(VLOOKUP("All"&$B58&$I$5&$F$8&$A$14&$C$8,DataSubJudgements!$A:$K,8,0)),IF(B58="","",0),SUM(F58:M58)) ->  | F58: =IF(ISERROR(VLOOKUP("All"&$B58&$I$5&$F$8&$A$14&$C$8,DataSubJudgements!$A:$K,F$33,0)),IF($B58="","",0),VLOOKUP("All"&$B58&$I$5&$F$8&$A$14&$C$8,DataSubJudgements!$A:$K,F$33,0)) ->  | H58: =IF(ISERROR(VLOOKUP("All"&$B58&$I$5&$F$8&$A$14&$C$8,DataSubJudgements!$A:$K,H$33,0)),IF($B58="","",0),VLOOKUP("All"&$B58&$I$5&$F$8&$A$14&$C$8,DataSubJudgements!$A:$K,H$33,0)) ->  | J58: =IF(ISERROR(VLOOKUP("All"&$B58&$I$5&$F$8&$A$14&$C$8,DataSubJudgements!$A:$K,J$33,0)),IF($B58="","",0),VLOOKUP("All"&$B58&$I$5&$F$8&$A$14&$C$8,DataSubJudgements!$A:$K,J$33,0)) ->  | M58: =IF(ISERROR(VLOOKUP("All"&$B58&$I$5&$F$8&$A$14&$C$8,DataSubJudgements!$A:$K,M$33,0)),IF($B58="","",0),VLOOKUP("All"&$B58&$I$5&$F$8&$A$14&$C$8,DataSubJudgements!$A:$K,M$33,0)) -> 
A59: 21 | B59: =IFERROR(VLOOKUP($B$32&A59,'Region Lookups'!A:C,3,0),"") ->  | D59: =IF(ISERROR(VLOOKUP("All"&$B59&$I$5&$F$8&$A$14&$C$8,DataSubJudgements!$A:$K,8,0)),IF(B59="","",0),SUM(F59:M59)) ->  | F59: =IF(ISERROR(VLOOKUP("All"&$B59&$I$5&$F$8&$A$14&$C$8,DataSubJudgements!$A:$K,F$33,0)),IF($B59="","",0),VLOOKUP("All"&$B59&$I$5&$F$8&$A$14&$C$8,DataSubJudgements!$A:$K,F$33,0)) ->  | H59: =IF(ISERROR(VLOOKUP("All"&$B59&$I$5&$F$8&$A$14&$C$8,DataSubJudgements!$A:$K,H$33,0)),IF($B59="","",0),VLOOKUP("All"&$B59&$I$5&$F$8&$A$14&$C$8,DataSubJudgements!$A:$K,H$33,0)) ->  | J59: =IF(ISERROR(VLOOKUP("All"&$B59&$I$5&$F$8&$A$14&$C$8,DataSubJudgements!$A:$K,J$33,0)),IF($B59="","",0),VLOOKUP("All"&$B59&$I$5&$F$8&$A$14&$C$8,DataSubJudgements!$A:$K,J$33,0)) ->  | M59: =IF(ISERROR(VLOOKUP("All"&$B59&$I$5&$F$8&$A$14&$C$8,DataSubJudgements!$A:$K,M$33,0)),IF($B59="","",0),VLOOKUP("All"&$B59&$I$5&$F$8&$A$14&$C$8,DataSubJudgements!$A:$K,M$33,0)) -> 
A60: 22 | B60: =IFERROR(VLOOKUP($B$32&A60,'Region Lookups'!A:C,3,0),"") ->  | D60: =IF(ISERROR(VLOOKUP("All"&$B60&$I$5&$F$8&$A$14&$C$8,DataSubJudgements!$A:$K,8,0)),IF(B60="","",0),SUM(F60:M60)) ->  | F60: =IF(ISERROR(VLOOKUP("All"&$B60&$I$5&$F$8&$A$14&$C$8,DataSubJudgements!$A:$K,F$33,0)),IF($B60="","",0),VLOOKUP("All"&$B60&$I$5&$F$8&$A$14&$C$8,DataSubJudgements!$A:$K,F$33,0)) ->  | H60: =IF(ISERROR(VLOOKUP("All"&$B60&$I$5&$F$8&$A$14&$C$8,DataSubJudgements!$A:$K,H$33,0)),IF($B60="","",0),VLOOKUP("All"&$B60&$I$5&$F$8&$A$14&$C$8,DataSubJudgements!$A:$K,H$33,0)) ->  | J60: =IF(ISERROR(VLOOKUP("All"&$B60&$I$5&$F$8&$A$14&$C$8,DataSubJudgements!$A:$K,J$33,0)),IF($B60="","",0),VLOOKUP("All"&$B60&$I$5&$F$8&$A$14&$C$8,DataSubJudgements!$A:$K,J$33,0)) ->  | M60: =IF(ISERROR(VLOOKUP("All"&$B60&$I$5&$F$8&$A$14&$C$8,DataSubJudgements!$A:$K,M$33,0)),IF($B60="","",0),VLOOKUP("All"&$B60&$I$5&$F$8&$A$14&$C$8,DataSubJudgements!$A:$K,M$33,0)) -> 
A61: 23 | B61: =IFERROR(VLOOKUP($B$32&A61,'Region Lookups'!A:C,3,0),"") ->  | D61: =IF(ISERROR(VLOOKUP("All"&$B61&$I$5&$F$8&$A$14&$C$8,DataSubJudgements!$A:$K,8,0)),IF(B61="","",0),SUM(F61:M61)) ->  | F61: =IF(ISERROR(VLOOKUP("All"&$B61&$I$5&$F$8&$A$14&$C$8,DataSubJudgements!$A:$K,F$33,0)),IF($B61="","",0),VLOOKUP("All"&$B61&$I$5&$F$8&$A$14&$C$8,DataSubJudgements!$A:$K,F$33,0)) ->  | H61: =IF(ISERROR(VLOOKUP("All"&$B61&$I$5&$F$8&$A$14&$C$8,DataSubJudgements!$A:$K,H$33,0)),IF($B61="","",0),VLOOKUP("All"&$B61&$I$5&$F$8&$A$14&$C$8,DataSubJudgements!$A:$K,H$33,0)) ->  | J61: =IF(ISERROR(VLOOKUP("All"&$B61&$I$5&$F$8&$A$14&$C$8,DataSubJudgements!$A:$K,J$33,0)),IF($B61="","",0),VLOOKUP("All"&$B61&$I$5&$F$8&$A$14&$C$8,DataSubJudgements!$A:$K,J$33,0)) ->  | M61: =IF(ISERROR(VLOOKUP("All"&$B61&$I$5&$F$8&$A$14&$C$8,DataSubJudgements!$A:$K,M$33,0)),IF($B61="","",0),VLOOKUP("All"&$B61&$I$5&$F$8&$A$14&$C$8,DataSubJudgements!$A:$K,M$33,0)) -> 
A62: 24 | B62: =IFERROR(VLOOKUP($B$32&A62,'Region Lookups'!A:C,3,0),"") ->  | D62: =IF(ISERROR(VLOOKUP("All"&$B62&$I$5&$F$8&$A$14&$C$8,DataSubJudgements!$A:$K,8,0)),IF(B62="","",0),SUM(F62:M62)) ->  | F62: =IF(ISERROR(VLOOKUP("All"&$B62&$I$5&$F$8&$A$14&$C$8,DataSubJudgements!$A:$K,F$33,0)),IF($B62="","",0),VLOOKUP("All"&$B62&$I$5&$F$8&$A$14&$C$8,DataSubJudgements!$A:$K,F$33,0)) ->  | H62: =IF(ISERROR(VLOOKUP("All"&$B62&$I$5&$F$8&$A$14&$C$8,DataSubJudgements!$A:$K,H$33,0)),IF($B62="","",0),VLOOKUP("All"&$B62&$I$5&$F$8&$A$14&$C$8,DataSubJudgements!$A:$K,H$33,0)) ->  | J62: =IF(ISERROR(VLOOKUP("All"&$B62&$I$5&$F$8&$A$14&$C$8,DataSubJudgements!$A:$K,J$33,0)),IF($B62="","",0),VLOOKUP("All"&$B62&$I$5&$F$8&$A$14&$C$8,DataSubJudgements!$A:$K,J$33,0)) ->  | M62: =IF(ISERROR(VLOOKUP("All"&$B62&$I$5&$F$8&$A$14&$C$8,DataSubJudgements!$A:$K,M$33,0)),IF($B62="","",0),VLOOKUP("All"&$B62&$I$5&$F$8&$A$14&$C$8,DataSubJudgements!$A:$K,M$33,0)) -> 
A63: 25 | B63: =IFERROR(VLOOKUP($B$32&A63,'Region Lookups'!A:C,3,0),"") ->  | D63: =IF(ISERROR(VLOOKUP("All"&$B63&$I$5&$F$8&$A$14&$C$8,DataSubJudgements!$A:$K,8,0)),IF(B63="","",0),SUM(F63:M63)) ->  | F63: =IF(ISERROR(VLOOKUP("All"&$B63&$I$5&$F$8&$A$14&$C$8,DataSubJudgements!$A:$K,F$33,0)),IF($B63="","",0),VLOOKUP("All"&$B63&$I$5&$F$8&$A$14&$C$8,DataSubJudgements!$A:$K,F$33,0)) ->  | H63: =IF(ISERROR(VLOOKUP("All"&$B63&$I$5&$F$8&$A$14&$C$8,DataSubJudgements!$A:$K,H$33,0)),IF($B63="","",0),VLOOKUP("All"&$B63&$I$5&$F$8&$A$14&$C$8,DataSubJudgements!$A:$K,H$33,0)) ->  | J63: =IF(ISERROR(VLOOKUP("All"&$B63&$I$5&$F$8&$A$14&$C$8,DataSubJudgements!$A:$K,J$33,0)),IF($B63="","",0),VLOOKUP("All"&$B63&$I$5&$F$8&$A$14&$C$8,DataSubJudgements!$A:$K,J$33,0)) ->  | M63: =IF(ISERROR(VLOOKUP("All"&$B63&$I$5&$F$8&$A$14&$C$8,DataSubJudgements!$A:$K,M$33,0)),IF($B63="","",0),VLOOKUP("All"&$B63&$I$5&$F$8&$A$14&$C$8,DataSubJudgements!$A:$K,M$33,0)) -> 
A64: 26 | B64: =IFERROR(VLOOKUP($B$32&A64,'Region Lookups'!A:C,3,0),"") ->  | D64: =IF(ISERROR(VLOOKUP("All"&$B64&$I$5&$F$8&$A$14&$C$8,DataSubJudgements!$A:$K,8,0)),IF(B64="","",0),SUM(F64:M64)) ->  | F64: =IF(ISERROR(VLOOKUP("All"&$B64&$I$5&$F$8&$A$14&$C$8,DataSubJudgements!$A:$K,F$33,0)),IF($B64="","",0),VLOOKUP("All"&$B64&$I$5&$F$8&$A$14&$C$8,DataSubJudgements!$A:$K,F$33,0)) ->  | H64: =IF(ISERROR(VLOOKUP("All"&$B64&$I$5&$F$8&$A$14&$C$8,DataSubJudgements!$A:$K,H$33,0)),IF($B64="","",0),VLOOKUP("All"&$B64&$I$5&$F$8&$A$14&$C$8,DataSubJudgements!$A:$K,H$33,0)) ->  | J64: =IF(ISERROR(VLOOKUP("All"&$B64&$I$5&$F$8&$A$14&$C$8,DataSubJudgements!$A:$K,J$33,0)),IF($B64="","",0),VLOOKUP("All"&$B64&$I$5&$F$8&$A$14&$C$8,DataSubJudgements!$A:$K,J$33,0)) ->  | M64: =IF(ISERROR(VLOOKUP("All"&$B64&$I$5&$F$8&$A$14&$C$8,DataSubJudgements!$A:$K,M$33,0)),IF($B64="","",0),VLOOKUP("All"&$B64&$I$5&$F$8&$A$14&$C$8,DataSubJudgements!$A:$K,M$33,0)) -> 
A65: 27 | B65: =IFERROR(VLOOKUP($B$32&A65,'Region Lookups'!A:C,3,0),"") ->  | D65: =IF(ISERROR(VLOOKUP("All"&$B65&$I$5&$F$8&$A$14&$C$8,DataSubJudgements!$A:$K,8,0)),IF(B65="","",0),SUM(F65:M65)) ->  | F65: =IF(ISERROR(VLOOKUP("All"&$B65&$I$5&$F$8&$A$14&$C$8,DataSubJudgements!$A:$K,F$33,0)),IF($B65="","",0),VLOOKUP("All"&$B65&$I$5&$F$8&$A$14&$C$8,DataSubJudgements!$A:$K,F$33,0)) ->  | H65: =IF(ISERROR(VLOOKUP("All"&$B65&$I$5&$F$8&$A$14&$C$8,DataSubJudgements!$A:$K,H$33,0)),IF($B65="","",0),VLOOKUP("All"&$B65&$I$5&$F$8&$A$14&$C$8,DataSubJudgements!$A:$K,H$33,0)) ->  | J65: =IF(ISERROR(VLOOKUP("All"&$B65&$I$5&$F$8&$A$14&$C$8,DataSubJudgements!$A:$K,J$33,0)),IF($B65="","",0),VLOOKUP("All"&$B65&$I$5&$F$8&$A$14&$C$8,DataSubJudgements!$A:$K,J$33,0)) ->  | M65: =IF(ISERROR(VLOOKUP("All"&$B65&$I$5&$F$8&$A$14&$C$8,DataSubJudgements!$A:$K,M$33,0)),IF($B65="","",0),VLOOKUP("All"&$B65&$I$5&$F$8&$A$14&$C$8,DataSubJudgements!$A:$K,M$33,0)) -> 
A66: 28 | B66: =IFERROR(VLOOKUP($B$32&A66,'Region Lookups'!A:C,3,0),"") ->  | D66: =IF(ISERROR(VLOOKUP("All"&$B66&$I$5&$F$8&$A$14&$C$8,DataSubJudgements!$A:$K,8,0)),IF(B66="","",0),SUM(F66:M66)) ->  | F66: =IF(ISERROR(VLOOKUP("All"&$B66&$I$5&$F$8&$A$14&$C$8,DataSubJudgements!$A:$K,F$33,0)),IF($B66="","",0),VLOOKUP("All"&$B66&$I$5&$F$8&$A$14&$C$8,DataSubJudgements!$A:$K,F$33,0)) ->  | H66: =IF(ISERROR(VLOOKUP("All"&$B66&$I$5&$F$8&$A$14&$C$8,DataSubJudgements!$A:$K,H$33,0)),IF($B66="","",0),VLOOKUP("All"&$B66&$I$5&$F$8&$A$14&$C$8,DataSubJudgements!$A:$K,H$33,0)) ->  | J66: =IF(ISERROR(VLOOKUP("All"&$B66&$I$5&$F$8&$A$14&$C$8,DataSubJudgements!$A:$K,J$33,0)),IF($B66="","",0),VLOOKUP("All"&$B66&$I$5&$F$8&$A$14&$C$8,DataSubJudgements!$A:$K,J$33,0)) ->  | M66: =IF(ISERROR(VLOOKUP("All"&$B66&$I$5&$F$8&$A$14&$C$8,DataSubJudgements!$A:$K,M$33,0)),IF($B66="","",0),VLOOKUP("All"&$B66&$I$5&$F$8&$A$14&$C$8,DataSubJudgements!$A:$K,M$33,0)) -> 
A67: 29 | B67: =IFERROR(VLOOKUP($B$32&A67,'Region Lookups'!A:C,3,0),"") ->  | D67: =IF(ISERROR(VLOOKUP("All"&$B67&$I$5&$F$8&$A$14&$C$8,DataSubJudgements!$A:$K,8,0)),IF(B67="","",0),SUM(F67:M67)) ->  | F67: =IF(ISERROR(VLOOKUP("All"&$B67&$I$5&$F$8&$A$14&$C$8,DataSubJudgements!$A:$K,F$33,0)),IF($B67="","",0),VLOOKUP("All"&$B67&$I$5&$F$8&$A$14&$C$8,DataSubJudgements!$A:$K,F$33,0)) ->  | H67: =IF(ISERROR(VLOOKUP("All"&$B67&$I$5&$F$8&$A$14&$C$8,DataSubJudgements!$A:$K,H$33,0)),IF($B67="","",0),VLOOKUP("All"&$B67&$I$5&$F$8&$A$14&$C$8,DataSubJudgements!$A:$K,H$33,0)) ->  | J67: =IF(ISERROR(VLOOKUP("All"&$B67&$I$5&$F$8&$A$14&$C$8,DataSubJudgements!$A:$K,J$33,0)),IF($B67="","",0),VLOOKUP("All"&$B67&$I$5&$F$8&$A$14&$C$8,DataSubJudgements!$A:$K,J$33,0)) ->  | M67: =IF(ISERROR(VLOOKUP("All"&$B67&$I$5&$F$8&$A$14&$C$8,DataSubJudgements!$A:$K,M$33,0)),IF($B67="","",0),VLOOKUP("All"&$B67&$I$5&$F$8&$A$14&$C$8,DataSubJudgements!$A:$K,M$33,0)) -> 
A68: 30 | B68: =IFERROR(VLOOKUP($B$32&A68,'Region Lookups'!A:C,3,0),"") ->  | D68: =IF(ISERROR(VLOOKUP("All"&$B68&$I$5&$F$8&$A$14&$C$8,DataSubJudgements!$A:$K,8,0)),IF(B68="","",0),SUM(F68:M68)) ->  | F68: =IF(ISERROR(VLOOKUP("All"&$B68&$I$5&$F$8&$A$14&$C$8,DataSubJudgements!$A:$K,F$33,0)),IF($B68="","",0),VLOOKUP("All"&$B68&$I$5&$F$8&$A$14&$C$8,DataSubJudgements!$A:$K,F$33,0)) ->  | H68: =IF(ISERROR(VLOOKUP("All"&$B68&$I$5&$F$8&$A$14&$C$8,DataSubJudgements!$A:$K,H$33,0)),IF($B68="","",0),VLOOKUP("All"&$B68&$I$5&$F$8&$A$14&$C$8,DataSubJudgements!$A:$K,H$33,0)) ->  | J68: =IF(ISERROR(VLOOKUP("All"&$B68&$I$5&$F$8&$A$14&$C$8,DataSubJudgements!$A:$K,J$33,0)),IF($B68="","",0),VLOOKUP("All"&$B68&$I$5&$F$8&$A$14&$C$8,DataSubJudgements!$A:$K,J$33,0)) ->  | M68: =IF(ISERROR(VLOOKUP("All"&$B68&$I$5&$F$8&$A$14&$C$8,DataSubJudgements!$A:$K,M$33,0)),IF($B68="","",0),VLOOKUP("All"&$B68&$I$5&$F$8&$A$14&$C$8,DataSubJudgements!$A:$K,M$33,0)) -> 
A69: 31 | B69: =IFERROR(VLOOKUP($B$32&A69,'Region Lookups'!A:C,3,0),"") ->  | D69: =IF(ISERROR(VLOOKUP("All"&$B69&$I$5&$F$8&$A$14&$C$8,DataSubJudgements!$A:$K,8,0)),IF(B69="","",0),SUM(F69:M69)) ->  | F69: =IF(ISERROR(VLOOKUP("All"&$B69&$I$5&$F$8&$A$14&$C$8,DataSubJudgements!$A:$K,F$33,0)),IF($B69="","",0),VLOOKUP("All"&$B69&$I$5&$F$8&$A$14&$C$8,DataSubJudgements!$A:$K,F$33,0)) ->  | H69: =IF(ISERROR(VLOOKUP("All"&$B69&$I$5&$F$8&$A$14&$C$8,DataSubJudgements!$A:$K,H$33,0)),IF($B69="","",0),VLOOKUP("All"&$B69&$I$5&$F$8&$A$14&$C$8,DataSubJudgements!$A:$K,H$33,0)) ->  | J69: =IF(ISERROR(VLOOKUP("All"&$B69&$I$5&$F$8&$A$14&$C$8,DataSubJudgements!$A:$K,J$33,0)),IF($B69="","",0),VLOOKUP("All"&$B69&$I$5&$F$8&$A$14&$C$8,DataSubJudgements!$A:$K,J$33,0)) ->  | M69: =IF(ISERROR(VLOOKUP("All"&$B69&$I$5&$F$8&$A$14&$C$8,DataSubJudgements!$A:$K,M$33,0)),IF($B69="","",0),VLOOKUP("All"&$B69&$I$5&$F$8&$A$14&$C$8,DataSubJudgements!$A:$K,M$33,0)) -> 
A70: 32 | B70: =IFERROR(VLOOKUP($B$32&A70,'Region Lookups'!A:C,3,0),"") ->  | D70: =IF(ISERROR(VLOOKUP("All"&$B70&$I$5&$F$8&$A$14&$C$8,DataSubJudgements!$A:$K,8,0)),IF(B70="","",0),SUM(F70:M70)) ->  | F70: =IF(ISERROR(VLOOKUP("All"&$B70&$I$5&$F$8&$A$14&$C$8,DataSubJudgements!$A:$K,F$33,0)),IF($B70="","",0),VLOOKUP("All"&$B70&$I$5&$F$8&$A$14&$C$8,DataSubJudgements!$A:$K,F$33,0)) ->  | H70: =IF(ISERROR(VLOOKUP("All"&$B70&$I$5&$F$8&$A$14&$C$8,DataSubJudgements!$A:$K,H$33,0)),IF($B70="","",0),VLOOKUP("All"&$B70&$I$5&$F$8&$A$14&$C$8,DataSubJudgements!$A:$K,H$33,0)) ->  | J70: =IF(ISERROR(VLOOKUP("All"&$B70&$I$5&$F$8&$A$14&$C$8,DataSubJudgements!$A:$K,J$33,0)),IF($B70="","",0),VLOOKUP("All"&$B70&$I$5&$F$8&$A$14&$C$8,DataSubJudgements!$A:$K,J$33,0)) ->  | M70: =IF(ISERROR(VLOOKUP("All"&$B70&$I$5&$F$8&$A$14&$C$8,DataSubJudgements!$A:$K,M$33,0)),IF($B70="","",0),VLOOKUP("All"&$B70&$I$5&$F$8&$A$14&$C$8,DataSubJudgements!$A:$K,M$33,0)) -> 
A71: 33 | B71: =IFERROR(VLOOKUP($B$32&A71,'Region Lookups'!A:C,3,0),"") ->  | D71: =IF(ISERROR(VLOOKUP("All"&$B71&$I$5&$F$8&$A$14&$C$8,DataSubJudgements!$A:$K,8,0)),IF(B71="","",0),SUM(F71:M71)) ->  | F71: =IF(ISERROR(VLOOKUP("All"&$B71&$I$5&$F$8&$A$14&$C$8,DataSubJudgements!$A:$K,F$33,0)),IF($B71="","",0),VLOOKUP("All"&$B71&$I$5&$F$8&$A$14&$C$8,DataSubJudgements!$A:$K,F$33,0)) ->  | H71: =IF(ISERROR(VLOOKUP("All"&$B71&$I$5&$F$8&$A$14&$C$8,DataSubJudgements!$A:$K,H$33,0)),IF($B71="","",0),VLOOKUP("All"&$B71&$I$5&$F$8&$A$14&$C$8,DataSubJudgements!$A:$K,H$33,0)) ->  | J71: =IF(ISERROR(VLOOKUP("All"&$B71&$I$5&$F$8&$A$14&$C$8,DataSubJudgements!$A:$K,J$33,0)),IF($B71="","",0),VLOOKUP("All"&$B71&$I$5&$F$8&$A$14&$C$8,DataSubJudgements!$A:$K,J$33,0)) ->  | M71: =IF(ISERROR(VLOOKUP("All"&$B71&$I$5&$F$8&$A$14&$C$8,DataSubJudgements!$A:$K,M$33,0)),IF($B71="","",0),VLOOKUP("All"&$B71&$I$5&$F$8&$A$14&$C$8,DataSubJudgements!$A:$K,M$33,0)) -> 
B72: =IFERROR(VLOOKUP($B$32&A72,'Region Lookups'!A:C,3,0),"") -> 
B73: =IFERROR(VLOOKUP($B$32&A73,'Region Lookups'!A:C,3,0),"") -> 
B74: =IFERROR(VLOOKUP($B$32&A74,'Region Lookups'!A:C,3,0),"") -> 
B75: =IFERROR(VLOOKUP($B$32&A75,'Region Lookups'!A:C,3,0),"") -> 
B76: =IFERROR(VLOOKUP($B$32&A76,'Region Lookups'!A:C,3,0),"") -> 
B77: =IFERROR(VLOOKUP($B$32&A77,'Region Lookups'!A:C,3,0),"") -> 

Sheet LA level at 30 Sep 2018
A1: Web link | B1: Local authority name | C1: Region | D1: Inspection type | E1: Inspection date | F1: Overall effectiveness | G1: Impact of leaders | H1: Experiences and progress of children who need help and protection | I1: Experiences and progress of children in care and care leavers | J1: Local authority type
A2: =HYPERLINK("http://reports.ofsted.gov.uk/local-authorities/"&'la names for weblink'!B2,"Ofsted Local Authority Webpage") -> Ofsted Local Authority Webpage | B2: Barking and Dagenham | C2: London | D2: SIF | E2: 2014-04-29 | F2: Requires improvement to be good | G2: Requires improvement to be good | H2: Requires improvement to be good | I2: Requires improvement to be good | J2: London Borough
A3: =HYPERLINK("http://reports.ofsted.gov.uk/local-authorities/"&'la names for weblink'!B3,"Ofsted Local Authority Webpage") -> Ofsted Local Authority Webpage | B3: Barnet | C3: London | D3: SIF | E3: 2017-04-25 | F3: Inadequate | G3: Inadequate | H3: Inadequate | I3: Inadequate | J3: London Borough
A4: =HYPERLINK("http://reports.ofsted.gov.uk/local-authorities/"&'la names for weblink'!B4,"Ofsted Local Authority Webpage") -> Ofsted Local Authority Webpage | B4: Barnsley | C4: North East, Yorkshire and The Humber | D4: SIF | E4: 2014-06-02 | F4: Requires improvement to be good | G4: Requires improvement to be good | H4: Requires improvement to be good | I4: Requires improvement to be good | J4: Metropolitan District
A5: =HYPERLINK("https://reports.ofsted.gov.uk/provider/44/800","Ofsted Local Authority Webpage") -> Ofsted Local Authority Webpage | B5: Bath and North East Somerset | C5: South West | D5: SIF | E5: 2017-04-24 | F5: Good | G5: Good | H5: Requires improvement to be good | I5: Good | J5: Unitary
A6: =HYPERLINK("http://reports.ofsted.gov.uk/local-authorities/"&'la names for weblink'!B6,"Ofsted Local Authority Webpage") -> Ofsted Local Authority Webpage | B6: Bedford | C6: East of England | D6: SIF | E6: 2017-01-23 | F6: Requires improvement to be good | G6: Requires improvement to be good | H6: Requires improvement to be good | I6: Requires improvement to be good | J6: Unitary
A7: =HYPERLINK("http://reports.ofsted.gov.uk/local-authorities/"&'la names for weblink'!B7,"Ofsted Local Authority Webpage") -> Ofsted Local Authority Webpage | B7: Bexley | C7: London | D7: ILACS Standard Inspection | E7: 2018-07-09 | F7: Outstanding | G7: Outstanding | H7: Outstanding | I7: Good | J7: London Borough
A8: =HYPERLINK("http://reports.ofsted.gov.uk/local-authorities/"&'la names for weblink'!B8,"Ofsted Local Authority Webpage") -> Ofsted Local Authority Webpage | B8: Birmingham | C8: West Midlands | D8: SIF - Re-Inspection | E8: 2016-09-12 | F8: Inadequate | G8: Inadequate | H8: Inadequate | I8: Requires improvement to be good | J8: Metropolitan District
A9: =HYPERLINK("http://reports.ofsted.gov.uk/local-authorities/"&'la names for weblink'!B9,"Ofsted Local Authority Webpage") -> Ofsted Local Authority Webpage | B9: Blackburn with Darwen | C9: North West | D9: SIF | E9: 2017-09-25 | F9: Good | G9: Good | H9: Requires improvement to be good | I9: Good | J9: Unitary
A10: =HYPERLINK("http://reports.ofsted.gov.uk/local-authorities/"&'la names for weblink'!B10,"Ofsted Local Authority Webpage") -> Ofsted Local Authority Webpage | B10: Blackpool | C10: North West | D10: SIF | E10: 2014-07-02 | F10: Requires improvement to be good | G10: Requires improvement to be good | H10: Requires improvement to be good | I10: Requires improvement to be good | J10: Unitary
A11: =HYPERLINK("http://reports.ofsted.gov.uk/local-authorities/"&'la names for weblink'!B11,"Ofsted Local Authority Webpage") -> Ofsted Local Authority Webpage | B11: Bolton | C11: North West | D11: ILACS Standard Inspection | E11: 2018-04-23 | F11: Good | G11: Good | H11: Good | I11: Good | J11: Metropolitan District
A12: =HYPERLINK("http://reports.ofsted.gov.uk/local-authorities/"&'la names for weblink'!B12,"Ofsted Local Authority Webpage") -> Ofsted Local Authority Webpage | B12: Bournemouth | C12: South West | D12: ILACS Standard Inspection | E12: 2018-07-16 | F12: Requires improvement to be good | G12: Inadequate | H12: Requires improvement to be good | I12: Requires improvement to be good | J12: Unitary
A13: =HYPERLINK("http://reports.ofsted.gov.uk/local-authorities/"&'la names for weblink'!B13,"Ofsted Local Authority Webpage") -> Ofsted Local Authority Webpage | B13: Bracknell Forest | C13: South East | D13: SIF | E13: 2017-04-28 | F13: Good | G13: Good | H13: Good | I13: Outstanding | J13: Unitary
A14: =HYPERLINK("http://reports.ofsted.gov.uk/local-authorities/"&'la names for weblink'!B14,"Ofsted Local Authority Webpage") -> Ofsted Local Authority Webpage | B14: Bradford | C14: North East, Yorkshire and The Humber | D14: ILACS Standard Inspection | E14: 2018-09-17 | F14: Inadequate | G14: Requires improvement to be good | H14: Inadequate | I14: Requires improvement to be good | J14: Metropolitan District
A15: =HYPERLINK("http://reports.ofsted.gov.uk/local-authorities/"&'la names for weblink'!B15,"Ofsted Local Authority Webpage") -> Ofsted Local Authority Webpage | B15: Brent | C15: London | D15: ILACS Standard Inspection | E15: 2018-05-14 | F15: Good | G15: Good | H15: Requires improvement to be good | I15: Outstanding | J15: London Borough
A16: =HYPERLINK("http://reports.ofsted.gov.uk/local-authorities/"&'la names for weblink'!B16,"Ofsted Local Authority Webpage") -> Ofsted Local Authority Webpage | B16: Brighton and Hove | C16: South East | D16: ILACS Standard Inspection | E16: 2018-07-09 | F16: Good | G16: Good | H16: Requires improvement to be good | I16: Good | J16: Unitary
A17: =HYPERLINK("http://reports.ofsted.gov.uk/local-authorities/"&'la names for weblink'!B17,"Ofsted Local Authority Webpage") -> Ofsted Local Authority Webpage | B17: Bristol | C17: South West | D17: ILACS Standard Inspection | E17: 2018-09-10 | F17: Requires improvement to be good | G17: Good | H17: Requires improvement to be good | I17: Requires improvement to be good | J17: Unitary
A18: =HYPERLINK("http://reports.ofsted.gov.uk/local-authorities/"&'la names for weblink'!B18,"Ofsted Local Authority Webpage") -> Ofsted Local Authority Webpage | B18: Bromley | C18: London | D18: SIF | E18: 2016-04-11 | F18: Inadequate | G18: Inadequate | H18: Inadequate | I18: Inadequate | J18: London Borough
A19: =HYPERLINK("http://reports.ofsted.gov.uk/local-authorities/"&'la names for weblink'!B19,"Ofsted Local Authority Webpage") -> Ofsted Local Authority Webpage | B19: Buckinghamshire | C19: South East | D19: SIF - Re-Inspection | E19: 2017-11-06 | F19: Inadequate | G19: Inadequate | H19: Inadequate | I19: Inadequate | J19: Shire County
A20: =HYPERLINK("http://reports.ofsted.gov.uk/local-authorities/"&'la names for weblink'!B20,"Ofsted Local Authority Webpage") -> Ofsted Local Authority Webpage | B20: Bury | C20: North West | D20: SIF | E20: 2016-02-22 | F20: Requires improvement to be good | G20: Good | H20: Good | I20: Requires improvement to be good | J20: Metropolitan District
A21: =HYPERLINK("http://reports.ofsted.gov.uk/local-authorities/"&'la names for weblink'!B21,"Ofsted Local Authority Webpage") -> Ofsted Local Authority Webpage | B21: Calderdale | C21: North East, Yorkshire and The Humber | D21: SIF | E21: 2015-01-13 | F21: Requires improvement to be good | G21: Requires improvement to be good | H21: Requires improvement to be good | I21: Requires improvement to be good | J21: Metropolitan District
A22: =HYPERLINK("http://reports.ofsted.gov.uk/local-authorities/"&'la names for weblink'!B22,"Ofsted Local Authority Webpage") -> Ofsted Local Authority Webpage | B22: Cambridgeshire | C22: East of England | D22: SIF | E22: 2014-06-03 | F22: Good | G22: Good | H22: Requires improvement to be good | I22: Good | J22: Shire County
A23: =HYPERLINK("http://reports.ofsted.gov.uk/local-authorities/"&'la names for weblink'!B23,"Ofsted Local Authority Webpage") -> Ofsted Local Authority Webpage | B23: Camden | C23: London | D23: SIF | E23: 2017-09-11 | F23: Good | G23: Outstanding | H23: Good | I23: Good | J23: London Borough
A24: =HYPERLINK("http://reports.ofsted.gov.uk/local-authorities/"&'la names for weblink'!B24,"Ofsted Local Authority Webpage") -> Ofsted Local Authority Webpage | B24: Central Bedfordshire | C24: East of England | D24: SIF | E24: 2017-06-12 | F24: Good | G24: Good | H24: Good | I24: Requires improvement to be good | J24: Unitary
A25: =HYPERLINK("https://reports.ofsted.gov.uk/provider/44/80447","Ofsted Local Authority Webpage") -> Ofsted Local Authority Webpage | B25: Cheshire East | C25: North West | D25: SIF | E25: 2015-07-06 | F25: Requires improvement to be good | G25: Requires improvement to be good | H25: Requires improvement to be good | I25: Requires improvement to be good | J25: Unitary
A26: =HYPERLINK("https://reports.ofsted.gov.uk/provider/44/896","Ofsted Local Authority Webpage") -> Ofsted Local Authority Webpage | B26: Cheshire West and Chester | C26: North West | D26: SIF | E26: 2015-11-23 | F26: Good | G26: Outstanding | H26: Good | I26: Good | J26: Unitary
A27: =HYPERLINK("http://reports.ofsted.gov.uk/local-authorities/"&'la names for weblink'!B27,"Ofsted Local Authority Webpage") -> Ofsted Local Authority Webpage | B27: City of London | C27: London | D27: SIF | E27: 2016-07-04 | F27: Good | G27: Outstanding | H27: Good | I27: Good | J27: London Borough
A28: =HYPERLINK("http://reports.ofsted.gov.uk/local-authorities/"&'la names for weblink'!B28,"Ofsted Local Authority Webpage") -> Ofsted Local Authority Webpage | B28: Cornwall | C28: South West | D28: SIF | E28: 2016-04-11 | F28: Good | G28: Good | H28: Requires improvement to be good | I28: Good | J28: Unitary
A29: =HYPERLINK("http://reports.ofsted.gov.uk/local-authorities/"&'la names for weblink'!B29,"Ofsted Local Authority Webpage") -> Ofsted Local Authority Webpage | B29: Coventry | C29: West Midlands | D29: SIF - Re-Inspection | E29: 2017-03-06 | F29: Requires improvement to be good | G29: Requires improvement to be good | H29: Requires improvement to be good | I29: Requires improvement to be good | J29: Metropolitan District
A30: =HYPERLINK("http://reports.ofsted.gov.uk/local-authorities/"&'la names for weblink'!B30,"Ofsted Local Authority Webpage") -> Ofsted Local Authority Webpage | B30: Croydon | C30: London | D30: SIF | E30: 2017-06-20 | F30: Inadequate | G30: Inadequate | H30: Inadequate | I30: Inadequate | J30: London Borough
A31: =HYPERLINK("http://reports.ofsted.gov.uk/local-authorities/"&'la names for weblink'!B31,"Ofsted Local Authority Webpage") -> Ofsted Local Authority Webpage | B31: Cumbria | C31: North West | D31: SIF - Re-Inspection | E31: 2017-11-06 | F31: Requires improvement to be good | G31: Good | H31: Requires improvement to be good | I31: Requires improvement to be good | J31: Shire County
A32: =HYPERLINK("http://reports.ofsted.gov.uk/local-authorities/"&'la names for weblink'!B32,"Ofsted Local Authority Webpage") -> Ofsted Local Authority Webpage | B32: Darlington | C32: North East, Yorkshire and The Humber | D32: SIF - Re-Inspection | E32: 2018-02-27 | F32: Requires improvement to be good | G32: Requires improvement to be good | H32: Requires improvement to be good | I32: Requires improvement to be good | J32: Unitary
A33: =HYPERLINK("http://reports.ofsted.gov.uk/local-authorities/"&'la names for weblink'!B33,"Ofsted Local Authority Webpage") -> Ofsted Local Authority Webpage | B33: Derby | C33: East Midlands | D33: SIF | E33: 2017-03-06 | F33: Good | G33: Good | H33: Requires improvement to be good | I33: Good | J33: Unitary
A34: =HYPERLINK("http://reports.ofsted.gov.uk/local-authorities/"&'la names for weblink'!B34,"Ofsted Local Authority Webpage") -> Ofsted Local Authority Webpage | B34: Derbyshire | C34: East Midlands | D34: SIF | E34: 2013-11-19 | F34: Good | G34: Good | H34: Good | I34: Good | J34: Shire County
A35: =HYPERLINK("http://reports.ofsted.gov.uk/local-authorities/"&'la names for weblink'!B35,"Ofsted Local Authority Webpage") -> Ofsted Local Authority Webpage | B35: Devon | C35: South West | D35: SIF | E35: 2015-02-24 | F35: Requires improvement to be good | G35: Requires improvement to be good | H35: Requires improvement to be good | I35: Requires improvement to be good | J35: Shire County
A36: =HYPERLINK("http://reports.ofsted.gov.uk/local-authorities/"&'la names for weblink'!B36,"Ofsted Local Authority Webpage") -> Ofsted Local Authority Webpage | B36: Doncaster | C36: North East, Yorkshire and The Humber | D36: SIF - Re-Inspection | E36: 2017-11-09 | F36: Good | G36: Good | H36: Good | I36: Good | J36: Metropolitan District
A37: =HYPERLINK("http://reports.ofsted.gov.uk/local-authorities/"&'la names for weblink'!B37,"Ofsted Local Authority Webpage") -> Ofsted Local Authority Webpage | B37: Dorset | C37: South West | D37: SIF | E37: 2016-02-22 | F37: Requires improvement to be good | G37: Requires improvement to be good | H37: Requires improvement to be good | I37: Requires improvement to be good | J37: Shire County
A38: =HYPERLINK("http://reports.ofsted.gov.uk/local-authorities/"&'la names for weblink'!B38,"Ofsted Local Authority Webpage") -> Ofsted Local Authority Webpage | B38: Dudley | C38: West Midlands | D38: SIF | E38: 2016-01-11 | F38: Inadequate | G38: Inadequate | H38: Inadequate | I38: Inadequate | J38: Metropolitan District
A39: =HYPERLINK("http://reports.ofsted.gov.uk/local-authorities/"&'la names for weblink'!B39,"Ofsted Local Authority Webpage") -> Ofsted Local Authority Webpage | B39: Durham | C39: North East, Yorkshire and The Humber | D39: SIF | E39: 2016-02-22 | F39: Requires improvement to be good | G39: Requires improvement to be good | H39: Requires improvement to be good | I39: Requires improvement to be good | J39: Unitary
A40: =HYPERLINK("http://reports.ofsted.gov.uk/local-authorities/"&'la names for weblink'!B40,"Ofsted Local Authority Webpage") -> Ofsted Local Authority Webpage | B40: Ealing | C40: London | D40: SIF | E40: 2016-06-13 | F40: Good | G40: Good | H40: Good | I40: Good | J40: London Borough
A41: =HYPERLINK("https://reports.ofsted.gov.uk/provider/44/811","Ofsted Local Authority Webpage") -> Ofsted Local Authority Webpage | B41: East Riding of Yorkshire | C41: North East, Yorkshire and The Humber | D41: SIF | E41: 2016-11-21 | F41: Good | G41: Good | H41: Good | I41: Good | J41: Unitary
A42: =HYPERLINK("http://reports.ofsted.gov.uk/local-authorities/"&'la names for weblink'!B42,"Ofsted Local Authority Webpage") -> Ofsted Local Authority Webpage | B42: East Sussex | C42: South East | D42: ILACS Short Inspection | E42: 2018-07-16 | F42: Outstanding | G42: Outstanding | H42: Good | I42: Outstanding | J42: Shire County
A43: =HYPERLINK("http://reports.ofsted.gov.uk/local-authorities/"&'la names for weblink'!B43,"Ofsted Local Authority Webpage") -> Ofsted Local Authority Webpage | B43: Enfield | C43: London | D43: SIF | E43: 2015-01-21 | F43: Good | G43: Good | H43: Requires improvement to be good | I43: Good | J43: London Borough
A44: =HYPERLINK("http://reports.ofsted.gov.uk/local-authorities/"&'la names for weblink'!B44,"Ofsted Local Authority Webpage") -> Ofsted Local Authority Webpage | B44: Essex | C44: East of England | D44: SIF | E44: 2014-01-14 | F44: Good | G44: Good | H44: Good | I44: Good | J44: Shire County
A45: =HYPERLINK("http://reports.ofsted.gov.uk/local-authorities/"&'la names for weblink'!B45,"Ofsted Local Authority Webpage") -> Ofsted Local Authority Webpage | B45: Gateshead | C45: North East, Yorkshire and The Humber | D45: SIF | E45: 2015-10-27 | F45: Good | G45: Good | H45: Good | I45: Good | J45: Metropolitan District
A46: =HYPERLINK("http://reports.ofsted.gov.uk/local-authorities/"&'la names for weblink'!B46,"Ofsted Local Authority Webpage") -> Ofsted Local Authority Webpage | B46: Gloucestershire | C46: South West | D46: SIF | E46: 2017-02-27 | F46: Inadequate | G46: Inadequate | H46: Inadequate | I46: Requires improvement to be good | J46: Shire County
A47: =HYPERLINK("http://reports.ofsted.gov.uk/local-authorities/"&'la names for weblink'!B47,"Ofsted Local Authority Webpage") -> Ofsted Local Authority Webpage | B47: Greenwich | C47: London | D47: SIF | E47: 2016-05-23 | F47: Good | G47: Good | H47: Good | I47: Good | J47: London Borough
A48: =HYPERLINK("http://reports.ofsted.gov.uk/local-authorities/"&'la names for weblink'!B48,"Ofsted Local Authority Webpage") -> Ofsted Local Authority Webpage | B48: Hackney | C48: London | D48: SIF | E48: 2016-07-04 | F48: Good | G48: Good | H48: Good | I48: Good | J48: London Borough
A49: =HYPERLINK("http://reports.ofsted.gov.uk/local-authorities/"&'la names for weblink'!B49,"Ofsted Local Authority Webpage") -> Ofsted Local Authority Webpage | B49: Halton | C49: North West | D49: SIF | E49: 2014-11-18 | F49: Requires improvement to be good | G49: Requires improvement to be good | H49: Requires improvement to be good | I49: Good | J49: Unitary
A50: =HYPERLINK("http://reports.ofsted.gov.uk/local-authorities/"&'la names for weblink'!B50,"Ofsted Local Authority Webpage") -> Ofsted Local Authority Webpage | B50: Hammersmith and Fulham | C50: London | D50: SIF | E50: 2016-01-11 | F50: Good | G50: Outstanding | H50: Good | I50: Good | J50: London Borough
A51: =HYPERLINK("http://reports.ofsted.gov.uk/local-authorities/"&'la names for weblink'!B51,"Ofsted Local Authority Webpage") -> Ofsted Local Authority Webpage | B51: Hampshire | C51: South East | D51: SIF | E51: 2014-02-18 | F51: Good | G51: Outstanding | H51: Good | I51: Good | J51: Shire County
A52: =HYPERLINK("http://reports.ofsted.gov.uk/local-authorities/"&'la names for weblink'!B52,"Ofsted Local Authority Webpage") -> Ofsted Local Authority Webpage | B52: Haringey | C52: London | D52: SIF | E52: 2014-05-20 | F52: Requires improvement to be good | G52: Requires improvement to be good | H52: Requires improvement to be good | I52: Requires improvement to be good | J52: London Borough
A53: =HYPERLINK("http://reports.ofsted.gov.uk/local-authorities/"&'la names for weblink'!B53,"Ofsted Local Authority Webpage") -> Ofsted Local Authority Webpage | B53: Harrow | C53: London | D53: SIF | E53: 2017-01-16 | F53: Good | G53: Good | H53: Requires improvement to be good | I53: Good | J53: London Borough
A54: =HYPERLINK("http://reports.ofsted.gov.uk/local-authorities/"&'la names for weblink'!B54,"Ofsted Local Authority Webpage") -> Ofsted Local Authority Webpage | B54: Hartlepool | C54: North East, Yorkshire and The Humber | D54: ILACS Short Inspection | E54: 2018-07-23 | F54: Good | G54: Good | H54: Good | I54: Outstanding | J54: Unitary
A55: =HYPERLINK("http://reports.ofsted.gov.uk/local-authorities/"&'la names for weblink'!B55,"Ofsted Local Authority Webpage") -> Ofsted Local Authority Webpage | B55: Havering | C55: London | D55: ILACS Standard Inspection | E55: 2018-06-11 | F55: Good | G55: Good | H55: Requires improvement to be good | I55: Good | J55: London Borough
A56: =HYPERLINK("http://reports.ofsted.gov.uk/local-authorities/"&'la names for weblink'!B56,"Ofsted Local Authority Webpage") -> Ofsted Local Authority Webpage | B56: Herefordshire | C56: West Midlands | D56: ILACS Standard Inspection | E56: 2018-06-11 | F56: Requires improvement to be good | G56: Inadequate | H56: Requires improvement to be good | I56: Requires improvement to be good | J56: Unitary
A57: =HYPERLINK("http://reports.ofsted.gov.uk/local-authorities/"&'la names for weblink'!B57,"Ofsted Local Authority Webpage") -> Ofsted Local Authority Webpage | B57: Hertfordshire | C57: East of England | D57: SIF | E57: 2015-09-14 | F57: Good | G57: Good | H57: Requires improvement to be good | I57: Good | J57: Shire County
A58: =HYPERLINK("http://reports.ofsted.gov.uk/local-authorities/"&'la names for weblink'!B58,"Ofsted Local Authority Webpage") -> Ofsted Local Authority Webpage | B58: Hillingdon | C58: London | D58: ILACS Standard Inspection | E58: 2018-04-16 | F58: Good | G58: Outstanding | H58: Good | I58: Good | J58: London Borough
A59: =HYPERLINK("http://reports.ofsted.gov.uk/local-authorities/"&'la names for weblink'!B59,"Ofsted Local Authority Webpage") -> Ofsted Local Authority Webpage | B59: Hounslow | C59: London | D59: SIF | E59: 2014-01-14 | F59: Requires improvement to be good | G59: Requires improvement to be good | H59: Requires improvement to be good | I59: Requires improvement to be good | J59: London Borough
A60: =HYPERLINK("http://reports.ofsted.gov.uk/local-authorities/"&'la names for weblink'!B60,"Ofsted Local Authority Webpage") -> Ofsted Local Authority Webpage | B60: Isle of Wight | C60: South East | D60: SIF | E60: 2014-09-16 | F60: Requires improvement to be good | G60: Requires improvement to be good | H60: Requires improvement to be good | I60: Requires improvement to be good | J60: Unitary
A61: =HYPERLINK("http://reports.ofsted.gov.uk/local-authorities/"&'la names for weblink'!B61,"Ofsted Local Authority Webpage") -> Ofsted Local Authority Webpage | B61: Isles of Scilly | C61: South West | D61: SIF | E61: 2016-04-11 | F61: Good | G61: Good | H61: Good | I61: NULL | J61: Unitary
A62: =HYPERLINK("http://reports.ofsted.gov.uk/local-authorities/"&'la names for weblink'!B62,"Ofsted Local Authority Webpage") -> Ofsted Local Authority Webpage | B62: Islington | C62: London | D62: SIF | E62: 2017-04-28 | F62: Good | G62: Outstanding | H62: Good | I62: Good | J62: London Borough
A63: =HYPERLINK("http://reports.ofsted.gov.uk/local-authorities/"&'la names for weblink'!B63,"Ofsted Local Authority Webpage") -> Ofsted Local Authority Webpage | B63: Kensington and Chelsea | C63: London | D63: SIF | E63: 2016-01-11 | F63: Outstanding | G63: Outstanding | H63: Good | I63: Outstanding | J63: London Borough
A64: =HYPERLINK("http://reports.ofsted.gov.uk/local-authorities/"&'la names for weblink'!B64,"Ofsted Local Authority Webpage") -> Ofsted Local Authority Webpage | B64: Kent | C64: South East | D64: SIF | E64: 2017-03-06 | F64: Good | G64: Good | H64: Requires improvement to be good | I64: Good | J64: Shire County
A65: =HYPERLINK("http://reports.ofsted.gov.uk/local-authorities/"&'la names for weblink'!B65,"Ofsted Local Authority Webpage") -> Ofsted Local Authority Webpage | B65: Kingston Upon Hull | C65: North East, Yorkshire and The Humber | D65: SIF | E65: 2014-11-18 | F65: Requires improvement to be good | G65: Requires improvement to be good | H65: Requires improvement to be good | I65: Requires improvement to be good | J65: Unitary
A66: =HYPERLINK("http://reports.ofsted.gov.uk/local-authorities/"&'la names for weblink'!B66,"Ofsted Local Authority Webpage") -> Ofsted Local Authority Webpage | B66: Kingston upon Thames | C66: London | D66: SIF | E66: 2015-05-22 | F66: Good | G66: Good | H66: Good | I66: Good | J66: London Borough
A67: =HYPERLINK("http://reports.ofsted.gov.uk/local-authorities/"&'la names for weblink'!B67,"Ofsted Local Authority Webpage") -> Ofsted Local Authority Webpage | B67: Kirklees | C67: North East, Yorkshire and The Humber | D67: SIF | E67: 2016-09-12 | F67: Inadequate | G67: Inadequate | H67: Inadequate | I67: Inadequate | J67: Metropolitan District
A68: =HYPERLINK("http://reports.ofsted.gov.uk/local-authorities/"&'la names for weblink'!B68,"Ofsted Local Authority Webpage") -> Ofsted Local Authority Webpage | B68: Knowsley | C68: North West | D68: SIF - Re-Inspection | E68: 2017-03-13 | F68: Requires improvement to be good | G68: Good | H68: Requires improvement to be good | I68: Requires improvement to be good | J68: Metropolitan District
A69: =HYPERLINK("http://reports.ofsted.gov.uk/local-authorities/"&'la names for weblink'!B69,"Ofsted Local Authority Webpage") -> Ofsted Local Authority Webpage | B69: Lambeth | C69: London | D69: SIF - Re-Inspection | E69: 2018-01-29 | F69: Requires improvement to be good | G69: Requires improvement to be good | H69: Requires improvement to be good | I69: Requires improvement to be good | J69: London Borough
A70: =HYPERLINK("http://reports.ofsted.gov.uk/local-authorities/"&'la names for weblink'!B70,"Ofsted Local Authority Webpage") -> Ofsted Local Authority Webpage | B70: Lancashire | C70: North West | D70: SIF - Re-Inspection | E70: 2018-06-04 | F70: Requires improvement to be good | G70: Requires improvement to be good | H70: Requires improvement to be good | I70: Requires improvement to be good | J70: Shire County
A71: =HYPERLINK("http://reports.ofsted.gov.uk/local-authorities/"&'la names for weblink'!B71,"Ofsted Local Authority Webpage") -> Ofsted Local Authority Webpage | B71: Leeds | C71: North East, Yorkshire and The Humber | D71: SIF | E71: 2015-01-21 | F71: Good | G71: Outstanding | H71: Good | I71: Good | J71: Metropolitan District
A72: =HYPERLINK("http://reports.ofsted.gov.uk/local-authorities/"&'la names for weblink'!B72,"Ofsted Local Authority Webpage") -> Ofsted Local Authority Webpage | B72: Leicester | C72: East Midlands | D72: SIF - Re-Inspection | E72: 2017-06-19 | F72: Requires improvement to be good | G72: Good | H72: Requires improvement to be good | I72: Requires improvement to be good | J72: Unitary
A73: =HYPERLINK("http://reports.ofsted.gov.uk/local-authorities/"&'la names for weblink'!B73,"Ofsted Local Authority Webpage") -> Ofsted Local Authority Webpage | B73: Leicestershire | C73: East Midlands | D73: SIF | E73: 2016-11-14 | F73: Requires improvement to be good | G73: Requires improvement to be good | H73: Requires improvement to be good | I73: Requires improvement to be good | J73: Shire County
A74: =HYPERLINK("http://reports.ofsted.gov.uk/local-authorities/"&'la names for weblink'!B74,"Ofsted Local Authority Webpage") -> Ofsted Local Authority Webpage | B74: Lewisham | C74: London | D74: SIF | E74: 2015-10-26 | F74: Requires improvement to be good | G74: Requires improvement to be good | H74: Requires improvement to be good | I74: Good | J74: London Borough
A75: =HYPERLINK("http://reports.ofsted.gov.uk/local-authorities/"&'la names for weblink'!B75,"Ofsted Local Authority Webpage") -> Ofsted Local Authority Webpage | B75: Lincolnshire | C75: East Midlands | D75: SIF | E75: 2014-10-22 | F75: Good | G75: Good | H75: Good | I75: Good | J75: Shire County
A76: =HYPERLINK("http://reports.ofsted.gov.uk/local-authorities/"&'la names for weblink'!B76,"Ofsted Local Authority Webpage") -> Ofsted Local Authority Webpage | B76: Liverpool | C76: North West | D76: ILACS Standard Inspection | E76: 2018-05-14 | F76: Requires improvement to be good | G76: Requires improvement to be good | H76: Requires improvement to be good | I76: Requires improvement to be good | J76: Metropolitan District
A77: =HYPERLINK("http://reports.ofsted.gov.uk/local-authorities/"&'la names for weblink'!B77,"Ofsted Local Authority Webpage") -> Ofsted Local Authority Webpage | B77: Luton | C77: East of England | D77: SIF | E77: 2016-01-11 | F77: Requires improvement to be good | G77: Requires improvement to be good | H77: Requires improvement to be good | I77: Requires improvement to be good | J77: Unitary
A78: =HYPERLINK("http://reports.ofsted.gov.uk/local-authorities/"&'la names for weblink'!B78,"Ofsted Local Authority Webpage") -> Ofsted Local Authority Webpage | B78: Manchester | C78: North West | D78: SIF - Re-Inspection | E78: 2017-10-09 | F78: Requires improvement to be good | G78: Good | H78: Requires improvement to be good | I78: Requires improvement to be good | J78: Metropolitan District
A79: =HYPERLINK("http://reports.ofsted.gov.uk/local-authorities/"&'la names for weblink'!B79,"Ofsted Local Authority Webpage") -> Ofsted Local Authority Webpage | B79: Medway | C79: South East | D79: SIF | E79: 2015-09-14 | F79: Requires improvement to be good | G79: Requires improvement to be good | H79: Requires improvement to be good | I79: Requires improvement to be good | J79: Unitary
A80: =HYPERLINK("http://reports.ofsted.gov.uk/local-authorities/"&'la names for weblink'!B80,"Ofsted Local Authority Webpage") -> Ofsted Local Authority Webpage | B80: Merton | C80: London | D80: SIF | E80: 2017-06-12 | F80: Good | G80: Outstanding | H80: Good | I80: Good | J80: London Borough
A81: =HYPERLINK("http://reports.ofsted.gov.uk/local-authorities/"&'la names for weblink'!B81,"Ofsted Local Authority Webpage") -> Ofsted Local Authority Webpage | B81: Middlesbrough | C81: North East, Yorkshire and The Humber | D81: SIF | E81: 2015-11-23 | F81: Requires improvement to be good | G81: Requires improvement to be good | H81: Requires improvement to be good | I81: Requires improvement to be good | J81: Unitary
A82: =HYPERLINK("http://reports.ofsted.gov.uk/local-authorities/"&'la names for weblink'!B82,"Ofsted Local Authority Webpage") -> Ofsted Local Authority Webpage | B82: Milton Keynes | C82: South East | D82: SIF | E82: 2016-09-12 | F82: Requires improvement to be good | G82: Requires improvement to be good | H82: Requires improvement to be good | I82: Requires improvement to be good | J82: Unitary
A83: =HYPERLINK("http://reports.ofsted.gov.uk/local-authorities/"&'la names for weblink'!B83,"Ofsted Local Authority Webpage") -> Ofsted Local Authority Webpage | B83: Newcastle upon Tyne | C83: North East, Yorkshire and The Humber | D83: SIF | E83: 2017-04-24 | F83: Requires improvement to be good | G83: Good | H83: Requires improvement to be good | I83: Requires improvement to be good | J83: Metropolitan District
A84: =HYPERLINK("http://reports.ofsted.gov.uk/local-authorities/"&'la names for weblink'!B84,"Ofsted Local Authority Webpage") -> Ofsted Local Authority Webpage | B84: Newham | C84: London | D84: SIF | E84: 2014-06-03 | F84: Requires improvement to be good | G84: Requires improvement to be good | H84: Requires improvement to be good | I84: Requires improvement to be good | J84: London Borough
A85: =HYPERLINK("http://reports.ofsted.gov.uk/local-authorities/"&'la names for weblink'!B85,"Ofsted Local Authority Webpage") -> Ofsted Local Authority Webpage | B85: Norfolk | C85: East of England | D85: SIF - Re-Inspection | E85: 2017-11-13 | F85: Requires improvement to be good | G85: Requires improvement to be good | H85: Requires improvement to be good | I85: Requires improvement to be good | J85: Shire County
A86: =HYPERLINK("http://reports.ofsted.gov.uk/local-authorities/"&'la names for weblink'!B86,"Ofsted Local Authority Webpage") -> Ofsted Local Authority Webpage | B86: North East Lincolnshire | C86: North East, Yorkshire and The Humber | D86: SIF | E86: 2017-07-10 | F86: Good | G86: Good | H86: Requires improvement to be good | I86: Good | J86: Unitary
A87: =HYPERLINK("http://reports.ofsted.gov.uk/local-authorities/"&'la names for weblink'!B87,"Ofsted Local Authority Webpage") -> Ofsted Local Authority Webpage | B87: North Lincolnshire | C87: North East, Yorkshire and The Humber | D87: SIF | E87: 2017-06-20 | F87: Outstanding | G87: Outstanding | H87: Good | I87: Outstanding | J87: Unitary
A88: =HYPERLINK("http://reports.ofsted.gov.uk/local-authorities/"&'la names for weblink'!B88,"Ofsted Local Authority Webpage") -> Ofsted Local Authority Webpage | B88: North Somerset | C88: South West | D88: SIF | E88: 2017-06-12 | F88: Requires improvement to be good | G88: Requires improvement to be good | H88: Requires improvement to be good | I88: Requires improvement to be good | J88: Unitary
A89: =HYPERLINK("http://reports.ofsted.gov.uk/local-authorities/"&'la names for weblink'!B89,"Ofsted Local Authority Webpage") -> Ofsted Local Authority Webpage | B89: North Tyneside | C89: North East, Yorkshire and The Humber | D89: SIF | E89: 2017-02-27 | F89: Good | G89: Good | H89: Good | I89: Good | J89: Metropolitan District
A90: =HYPERLINK("http://reports.ofsted.gov.uk/local-authorities/"&'la names for weblink'!B90,"Ofsted Local Authority Webpage") -> Ofsted Local Authority Webpage | B90: North Yorkshire | C90: North East, Yorkshire and The Humber | D90: ILACS Short Inspection | E90: 2018-07-02 | F90: Outstanding | G90: Outstanding | H90: Outstanding | I90: Outstanding | J90: Shire County
A91: =HYPERLINK("http://reports.ofsted.gov.uk/local-authorities/"&'la names for weblink'!B91,"Ofsted Local Authority Webpage") -> Ofsted Local Authority Webpage | B91: Northamptonshire | C91: East Midlands | D91: SIF | E91: 2016-02-08 | F91: Requires improvement to be good | G91: Requires improvement to be good | H91: Requires improvement to be good | I91: Requires improvement to be good | J91: Shire County
A92: =HYPERLINK("http://reports.ofsted.gov.uk/local-authorities/"&'la names for weblink'!B92,"Ofsted Local Authority Webpage") -> Ofsted Local Authority Webpage | B92: Northumberland | C92: North East, Yorkshire and The Humber | D92: SIF | E92: 2016-01-25 | F92: Requires improvement to be good | G92: Requires improvement to be good | H92: Requires improvement to be good | I92: Requires improvement to be good | J92: Unitary
A93: =HYPERLINK("http://reports.ofsted.gov.uk/local-authorities/"&'la names for weblink'!B93,"Ofsted Local Authority Webpage") -> Ofsted Local Authority Webpage | B93: Nottingham | C93: East Midlands | D93: SIF | E93: 2014-03-11 | F93: Requires improvement to be good | G93: Requires improvement to be good | H93: Requires improvement to be good | I93: Requires improvement to be good | J93: Unitary
A94: =HYPERLINK("http://reports.ofsted.gov.uk/local-authorities/"&'la names for weblink'!B94,"Ofsted Local Authority Webpage") -> Ofsted Local Authority Webpage | B94: Nottinghamshire | C94: East Midlands | D94: SIF | E94: 2015-05-11 | F94: Good | G94: Good | H94: Good | I94: Good | J94: Shire County
A95: =HYPERLINK("http://reports.ofsted.gov.uk/local-authorities/"&'la names for weblink'!B95,"Ofsted Local Authority Webpage") -> Ofsted Local Authority Webpage | B95: Oldham | C95: North West | D95: SIF | E95: 2015-05-26 | F95: Requires improvement to be good | G95: Requires improvement to be good | H95: Requires improvement to be good | I95: Requires improvement to be good | J95: Metropolitan District
A96: =HYPERLINK("http://reports.ofsted.gov.uk/local-authorities/"&'la names for weblink'!B96,"Ofsted Local Authority Webpage") -> Ofsted Local Authority Webpage | B96: Oxfordshire | C96: South East | D96: ILACS Short Inspection | E96: 2018-04-16 | F96: Good | G96: Good | H96: Requires improvement to be good | I96: Good | J96: Shire County
A97: =HYPERLINK("http://reports.ofsted.gov.uk/local-authorities/"&'la names for weblink'!B97,"Ofsted Local Authority Webpage") -> Ofsted Local Authority Webpage | B97: Peterborough | C97: East of England | D97: ILACS Standard Inspection | E97: 2018-06-25 | F97: Good | G97: Good | H97: Good | I97: Good | J97: Unitary
A98: =HYPERLINK("http://reports.ofsted.gov.uk/local-authorities/"&'la names for weblink'!B98,"Ofsted Local Authority Webpage") -> Ofsted Local Authority Webpage | B98: Plymouth | C98: South West | D98: SIF | E98: 2014-10-22 | F98: Requires improvement to be good | G98: Requires improvement to be good | H98: Requires improvement to be good | I98: Requires improvement to be good | J98: Unitary
A99: =HYPERLINK("http://reports.ofsted.gov.uk/local-authorities/"&'la names for weblink'!B99,"Ofsted Local Authority Webpage") -> Ofsted Local Authority Webpage | B99: Poole | C99: South West | D99: SIF | E99: 2017-09-11 | F99: Requires improvement to be good | G99: Requires improvement to be good | H99: Requires improvement to be good | I99: Requires improvement to be good | J99: Unitary
A100: =HYPERLINK("http://reports.ofsted.gov.uk/local-authorities/"&'la names for weblink'!B100,"Ofsted Local Authority Webpage") -> Ofsted Local Authority Webpage | B100: Portsmouth | C100: South East | D100: ILACS Standard Inspection | E100: 2018-09-03 | F100: Good | G100: Good | H100: Good | I100: Good | J100: Unitary
A101: =HYPERLINK("http://reports.ofsted.gov.uk/local-authorities/"&'la names for weblink'!B101,"Ofsted Local Authority Webpage") -> Ofsted Local Authority Webpage | B101: Reading | C101: South East | D101: SIF | E101: 2016-05-23 | F101: Inadequate | G101: Inadequate | H101: Inadequate | I101: Inadequate | J101: Unitary
A102: =HYPERLINK("http://reports.ofsted.gov.uk/local-authorities/"&'la names for weblink'!B102,"Ofsted Local Authority Webpage") -> Ofsted Local Authority Webpage | B102: Redbridge | C102: London | D102: SIF | E102: 2016-09-12 | F102: Good | G102: Good | H102: Good | I102: Good | J102: London Borough
A103: =HYPERLINK("http://reports.ofsted.gov.uk/local-authorities/"&'la names for weblink'!B103,"Ofsted Local Authority Webpage") -> Ofsted Local Authority Webpage | B103: Redcar and Cleveland | C103: North East, Yorkshire and The Humber | D103: SIF | E103: 2017-01-16 | F103: Requires improvement to be good | G103: Requires improvement to be good | H103: Requires improvement to be good | I103: Good | J103: Unitary
A104: =HYPERLINK("http://reports.ofsted.gov.uk/local-authorities/"&'la names for weblink'!B104,"Ofsted Local Authority Webpage") -> Ofsted Local Authority Webpage | B104: Richmond Upon Thames | C104: London | D104: SIF | E104: 2017-09-25 | F104: Good | G104: Good | H104: Good | I104: Good | J104: London Borough
A105: =HYPERLINK("http://reports.ofsted.gov.uk/local-authorities/"&'la names for weblink'!B105,"Ofsted Local Authority Webpage") -> Ofsted Local Authority Webpage | B105: Rochdale | C105: North West | D105: ILACS Standard Inspection | E105: 2018-01-29 | F105: Requires improvement to be good | G105: Requires improvement to be good | H105: Requires improvement to be good | I105: Good | J105: Metropolitan District
A106: =HYPERLINK("http://reports.ofsted.gov.uk/local-authorities/"&'la names for weblink'!B106,"Ofsted Local Authority Webpage") -> Ofsted Local Authority Webpage | B106: Rotherham | C106: North East, Yorkshire and The Humber | D106: SIF - Re-Inspection | E106: 2017-11-06 | F106: Good | G106: Good | H106: Good | I106: Requires improvement to be good | J106: Metropolitan District
A107: =HYPERLINK("http://reports.ofsted.gov.uk/local-authorities/"&'la names for weblink'!B107,"Ofsted Local Authority Webpage") -> Ofsted Local Authority Webpage | B107: Rutland | C107: East Midlands | D107: SIF | E107: 2016-11-14 | F107: Requires improvement to be good | G107: Requires improvement to be good | H107: Requires improvement to be good | I107: Requires improvement to be good | J107: Unitary
A108: =HYPERLINK("http://reports.ofsted.gov.uk/local-authorities/"&'la names for weblink'!B108,"Ofsted Local Authority Webpage") -> Ofsted Local Authority Webpage | B108: Salford | C108: North West | D108: SIF | E108: 2015-04-21 | F108: Good | G108: Good | H108: Good | I108: Good | J108: Metropolitan District
A109: =HYPERLINK("http://reports.ofsted.gov.uk/local-authorities/"&'la names for weblink'!B109,"Ofsted Local Authority Webpage") -> Ofsted Local Authority Webpage | B109: Sandwell | C109: West Midlands | D109: SIF - Re-Inspection | E109: 2017-11-06 | F109: Inadequate | G109: Inadequate | H109: Inadequate | I109: Inadequate | J109: Metropolitan District
A110: =HYPERLINK("http://reports.ofsted.gov.uk/local-authorities/"&'la names for weblink'!B110,"Ofsted Local Authority Webpage") -> Ofsted Local Authority Webpage | B110: Sefton | C110: North West | D110: SIF | E110: 2016-04-11 | F110: Requires improvement to be good | G110: Requires improvement to be good | H110: Requires improvement to be good | I110: Requires improvement to be good | J110: Metropolitan District
A111: =HYPERLINK("http://reports.ofsted.gov.uk/local-authorities/"&'la names for weblink'!B111,"Ofsted Local Authority Webpage") -> Ofsted Local Authority Webpage | B111: Sheffield | C111: North East, Yorkshire and The Humber | D111: SIF | E111: 2013-11-19 | F111: Requires improvement to be good | G111: Good | H111: Good | I111: Requires improvement to be good | J111: Metropolitan District
A112: =HYPERLINK("http://reports.ofsted.gov.uk/local-authorities/"&'la names for weblink'!B112,"Ofsted Local Authority Webpage") -> Ofsted Local Authority Webpage | B112: Shropshire | C112: West Midlands | D112: SIF | E112: 2017-09-11 | F112: Good | G112: Good | H112: Good | I112: Requires improvement to be good | J112: Unitary
A113: =HYPERLINK("http://reports.ofsted.gov.uk/local-authorities/"&'la names for weblink'!B113,"Ofsted Local Authority Webpage") -> Ofsted Local Authority Webpage | B113: Slough | C113: South East | D113: SIF - Re-Inspection | E113: 2015-11-23 | F113: Inadequate | G113: Inadequate | H113: Inadequate | I113: Inadequate | J113: Unitary
A114: =HYPERLINK("http://reports.ofsted.gov.uk/local-authorities/"&'la names for weblink'!B114,"Ofsted Local Authority Webpage") -> Ofsted Local Authority Webpage | B114: Solihull | C114: West Midlands | D114: SIF | E114: 2016-04-25 | F114: Requires improvement to be good | G114: Requires improvement to be good | H114: Requires improvement to be good | I114: Requires improvement to be good | J114: Metropolitan District
A115: =HYPERLINK("http://reports.ofsted.gov.uk/local-authorities/"&'la names for weblink'!B115,"Ofsted Local Authority Webpage") -> Ofsted Local Authority Webpage | B115: Somerset | C115: South West | D115: SIF - Re-Inspection | E115: 2017-11-07 | F115: Requires improvement to be good | G115: Requires improvement to be good | H115: Requires improvement to be good | I115: Requires improvement to be good | J115: Shire County
A116: =HYPERLINK("http://reports.ofsted.gov.uk/local-authorities/"&'la names for weblink'!B116,"Ofsted Local Authority Webpage") -> Ofsted Local Authority Webpage | B116: South Gloucestershire | C116: South West | D116: SIF | E116: 2016-11-21 | F116: Inadequate | G116: Inadequate | H116: Inadequate | I116: Requires improvement to be good | J116: Unitary
A117: =HYPERLINK("http://reports.ofsted.gov.uk/local-authorities/"&'la names for weblink'!B117,"Ofsted Local Authority Webpage") -> Ofsted Local Authority Webpage | B117: South Tyneside | C117: North East, Yorkshire and The Humber | D117: SIF | E117: 2017-09-11 | F117: Good | G117: Good | H117: Good | I117: Good | J117: Metropolitan District
A118: =HYPERLINK("http://reports.ofsted.gov.uk/local-authorities/"&'la names for weblink'!B118,"Ofsted Local Authority Webpage") -> Ofsted Local Authority Webpage | B118: Southampton | C118: South East | D118: SIF | E118: 2014-07-08 | F118: Requires improvement to be good | G118: Requires improvement to be good | H118: Requires improvement to be good | I118: Requires improvement to be good | J118: Unitary
A119: =HYPERLINK("http://reports.ofsted.gov.uk/local-authorities/"&'la names for weblink'!B119,"Ofsted Local Authority Webpage") -> Ofsted Local Authority Webpage | B119: Southend on Sea | C119: East of England | D119: SIF | E119: 2016-04-25 | F119: Requires improvement to be good | G119: Requires improvement to be good | H119: Requires improvement to be good | I119: Requires improvement to be good | J119: Unitary
A120: =HYPERLINK("http://reports.ofsted.gov.uk/local-authorities/"&'la names for weblink'!B120,"Ofsted Local Authority Webpage") -> Ofsted Local Authority Webpage | B120: Southwark | C120: London | D120: SIF | E120: 2017-03-06 | F120: Good | G120: Good | H120: Good | I120: Requires improvement to be good | J120: London Borough
A121: =HYPERLINK("http://reports.ofsted.gov.uk/local-authorities/"&'la names for weblink'!B121,"Ofsted Local Authority Webpage") -> Ofsted Local Authority Webpage | B121: St Helens | C121: North West | D121: SIF | E121: 2014-11-05 | F121: Requires improvement to be good | G121: Requires improvement to be good | H121: Requires improvement to be good | I121: Requires improvement to be good | J121: Metropolitan District
A122: =HYPERLINK("http://reports.ofsted.gov.uk/local-authorities/"&'la names for weblink'!B122,"Ofsted Local Authority Webpage") -> Ofsted Local Authority Webpage | B122: Staffordshire | C122: West Midlands | D122: SIF | E122: 2014-01-28 | F122: Good | G122: Good | H122: Good | I122: Good | J122: Shire County
A123: =HYPERLINK("http://reports.ofsted.gov.uk/local-authorities/"&'la names for weblink'!B123,"Ofsted Local Authority Webpage") -> Ofsted Local Authority Webpage | B123: Stockport | C123: North West | D123: SIF | E123: 2017-06-12 | F123: Good | G123: Good | H123: Good | I123: Good | J123: Metropolitan District
A124: =HYPERLINK("https://reports.ofsted.gov.uk/provider/44/808","Ofsted Local Authority Webpage") -> Ofsted Local Authority Webpage | B124: Stockton-on-Tees | C124: North East, Yorkshire and The Humber | D124: SIF | E124: 2016-05-23 | F124: Good | G124: Good | H124: Good | I124: Requires improvement to be good | J124: Unitary
A125: =HYPERLINK("https://reports.ofsted.gov.uk/provider/44/80564","Ofsted Local Authority Webpage") -> Ofsted Local Authority Webpage | B125: Stoke-on-Trent | C125: West Midlands | D125: SIF | E125: 2015-06-01 | F125: Requires improvement to be good | G125: Requires improvement to be good | H125: Requires improvement to be good | I125: Requires improvement to be good | J125: Unitary
A126: =HYPERLINK("http://reports.ofsted.gov.uk/local-authorities/"&'la names for weblink'!B126,"Ofsted Local Authority Webpage") -> Ofsted Local Authority Webpage | B126: Suffolk | C126: East of England | D126: SIF | E126: 2015-11-23 | F126: Good | G126: Good | H126: Requires improvement to be good | I126: Good | J126: Shire County
A127: =HYPERLINK("http://reports.ofsted.gov.uk/local-authorities/"&'la names for weblink'!B127,"Ofsted Local Authority Webpage") -> Ofsted Local Authority Webpage | B127: Sunderland | C127: North East, Yorkshire and The Humber | D127: SIF - Re-Inspection | E127: 2018-04-23 | F127: Inadequate | G127: Inadequate | H127: Inadequate | I127: Requires improvement to be good | J127: Metropolitan District
A128: =HYPERLINK("http://reports.ofsted.gov.uk/local-authorities/"&'la names for weblink'!B128,"Ofsted Local Authority Webpage") -> Ofsted Local Authority Webpage | B128: Surrey | C128: South East | D128: SIF - Re-Inspection | E128: 2018-02-26 | F128: Inadequate | G128: Inadequate | H128: Inadequate | I128: Requires improvement to be good | J128: Shire County
A129: =HYPERLINK("http://reports.ofsted.gov.uk/local-authorities/"&'la names for weblink'!B129,"Ofsted Local Authority Webpage") -> Ofsted Local Authority Webpage | B129: Sutton | C129: London | D129: SIF | E129: 2016-11-14 | F129: Good | G129: Good | H129: Good | I129: Good | J129: London Borough
A130: =HYPERLINK("http://reports.ofsted.gov.uk/local-authorities/"&'la names for weblink'!B130,"Ofsted Local Authority Webpage") -> Ofsted Local Authority Webpage | B130: Swindon | C130: South West | D130: SIF | E130: 2014-03-11 | F130: Requires improvement to be good | G130: Requires improvement to be good | H130: Requires improvement to be good | I130: Requires improvement to be good | J130: Unitary
A131: =HYPERLINK("http://reports.ofsted.gov.uk/local-authorities/"&'la names for weblink'!B131,"Ofsted Local Authority Webpage") -> Ofsted Local Authority Webpage | B131: Tameside | C131: North West | D131: SIF | E131: 2016-09-26 | F131: Inadequate | G131: Inadequate | H131: Inadequate | I131: Requires improvement to be good | J131: Metropolitan District
A132: =HYPERLINK("http://reports.ofsted.gov.uk/local-authorities/"&'la names for weblink'!B132,"Ofsted Local Authority Webpage") -> Ofsted Local Authority Webpage | B132: Telford and Wrekin | C132: West Midlands | D132: SIF | E132: 2016-06-13 | F132: Requires improvement to be good | G132: Requires improvement to be good | H132: Requires improvement to be good | I132: Requires improvement to be good | J132: Unitary
A133: =HYPERLINK("http://reports.ofsted.gov.uk/local-authorities/"&'la names for weblink'!B133,"Ofsted Local Authority Webpage") -> Ofsted Local Authority Webpage | B133: Thurrock | C133: East of England | D133: SIF | E133: 2016-02-22 | F133: Requires improvement to be good | G133: Requires improvement to be good | H133: Requires improvement to be good | I133: Requires improvement to be good | J133: Unitary
A134: =HYPERLINK("http://reports.ofsted.gov.uk/local-authorities/"&'la names for weblink'!B134,"Ofsted Local Authority Webpage") -> Ofsted Local Authority Webpage | B134: Torbay | C134: South West | D134: SIF - Re-Inspection | E134: 2018-06-11 | F134: Inadequate | G134: Inadequate | H134: Inadequate | I134: Requires improvement to be good | J134: Unitary
A135: =HYPERLINK("http://reports.ofsted.gov.uk/local-authorities/"&'la names for weblink'!B135,"Ofsted Local Authority Webpage") -> Ofsted Local Authority Webpage | B135: Tower Hamlets | C135: London | D135: SIF | E135: 2017-01-23 | F135: Inadequate | G135: Inadequate | H135: Inadequate | I135: Requires improvement to be good | J135: London Borough
A136: =HYPERLINK("http://reports.ofsted.gov.uk/local-authorities/"&'la names for weblink'!B136,"Ofsted Local Authority Webpage") -> Ofsted Local Authority Webpage | B136: Trafford | C136: North West | D136: SIF | E136: 2015-01-27 | F136: Good | G136: Outstanding | H136: Good | I136: Good | J136: Metropolitan District
A137: =HYPERLINK("http://reports.ofsted.gov.uk/local-authorities/"&'la names for weblink'!B137,"Ofsted Local Authority Webpage") -> Ofsted Local Authority Webpage | B137: Wakefield | C137: North East, Yorkshire and The Humber | D137: ILACS Standard Inspection | E137: 2018-06-04 | F137: Inadequate | G137: Inadequate | H137: Inadequate | I137: Inadequate | J137: Metropolitan District
A138: =HYPERLINK("http://reports.ofsted.gov.uk/local-authorities/"&'la names for weblink'!B138,"Ofsted Local Authority Webpage") -> Ofsted Local Authority Webpage | B138: Walsall | C138: West Midlands | D138: SIF | E138: 2017-06-20 | F138: Requires improvement to be good | G138: Requires improvement to be good | H138: Requires improvement to be good | I138: Requires improvement to be good | J138: Metropolitan District
A139: =HYPERLINK("http://reports.ofsted.gov.uk/local-authorities/"&'la names for weblink'!B139,"Ofsted Local Authority Webpage") -> Ofsted Local Authority Webpage | B139: Waltham Forest | C139: London | D139: SIF | E139: 2014-11-04 | F139: Requires improvement to be good | G139: Requires improvement to be good | H139: Requires improvement to be good | I139: Requires improvement to be good | J139: London Borough
A140: =HYPERLINK("http://reports.ofsted.gov.uk/local-authorities/"&'la names for weblink'!B140,"Ofsted Local Authority Webpage") -> Ofsted Local Authority Webpage | B140: Wandsworth | C140: London | D140: SIF - Re-Inspection | E140: 2018-05-08 | F140: Requires improvement to be good | G140: Requires improvement to be good | H140: Requires improvement to be good | I140: Requires improvement to be good | J140: London Borough
A141: =HYPERLINK("http://reports.ofsted.gov.uk/local-authorities/"&'la names for weblink'!B141,"Ofsted Local Authority Webpage") -> Ofsted Local Authority Webpage | B141: Warrington | C141: North West | D141: SIF | E141: 2015-02-24 | F141: Requires improvement to be good | G141: Requires improvement to be good | H141: Requires improvement to be good | I141: Good | J141: Unitary
A142: =HYPERLINK("http://reports.ofsted.gov.uk/local-authorities/"&'la names for weblink'!B142,"Ofsted Local Authority Webpage") -> Ofsted Local Authority Webpage | B142: Warwickshire | C142: West Midlands | D142: SIF | E142: 2017-05-02 | F142: Requires improvement to be good | G142: Requires improvement to be good | H142: Requires improvement to be good | I142: Requires improvement to be good | J142: Shire County
A143: =HYPERLINK("http://reports.ofsted.gov.uk/local-authorities/"&'la names for weblink'!B143,"Ofsted Local Authority Webpage") -> Ofsted Local Authority Webpage | B143: West Berkshire | C143: South East | D143: SIF - Re-Inspection | E143: 2017-05-08 | F143: Good | G143: Good | H143: Requires improvement to be good | I143: Good | J143: Unitary
A144: =HYPERLINK("http://reports.ofsted.gov.uk/local-authorities/"&'la names for weblink'!B144,"Ofsted Local Authority Webpage") -> Ofsted Local Authority Webpage | B144: West Sussex | C144: South East | D144: SIF | E144: 2015-10-26 | F144: Requires improvement to be good | G144: Requires improvement to be good | H144: Requires improvement to be good | I144: Requires improvement to be good | J144: Shire County
A145: =HYPERLINK("http://reports.ofsted.gov.uk/local-authorities/"&'la names for weblink'!B145,"Ofsted Local Authority Webpage") -> Ofsted Local Authority Webpage | B145: Westminster | C145: London | D145: SIF | E145: 2016-01-11 | F145: Outstanding | G145: Outstanding | H145: Good | I145: Outstanding | J145: London Borough
A146: =HYPERLINK("http://reports.ofsted.gov.uk/local-authorities/"&'la names for weblink'!B146,"Ofsted Local Authority Webpage") -> Ofsted Local Authority Webpage | B146: Wigan | C146: North West | D146: SIF | E146: 2017-01-16 | F146: Good | G146: Good | H146: Requires improvement to be good | I146: Good | J146: Metropolitan District
A147: =HYPERLINK("http://reports.ofsted.gov.uk/local-authorities/"&'la names for weblink'!B147,"Ofsted Local Authority Webpage") -> Ofsted Local Authority Webpage | B147: Wiltshire | C147: South West | D147: SIF | E147: 2015-06-22 | F147: Requires improvement to be good | G147: Requires improvement to be good | H147: Requires improvement to be good | I147: Requires improvement to be good | J147: Unitary
A148: =HYPERLINK("http://reports.ofsted.gov.uk/local-authorities/"&'la names for weblink'!B148,"Ofsted Local Authority Webpage") -> Ofsted Local Authority Webpage | B148: Windsor and Maidenhead | C148: South East | D148: SIF | E148: 2015-03-03 | F148: Requires improvement to be good | G148: Requires improvement to be good | H148: Requires improvement to be good | I148: Requires improvement to be good | J148: Unitary
A149: =HYPERLINK("http://reports.ofsted.gov.uk/local-authorities/"&'la names for weblink'!B149,"Ofsted Local Authority Webpage") -> Ofsted Local Authority Webpage | B149: Wirral | C149: North West | D149: SIF | E149: 2016-07-04 | F149: Inadequate | G149: Inadequate | H149: Inadequate | I149: Requires improvement to be good | J149: Metropolitan District
A150: =HYPERLINK("http://reports.ofsted.gov.uk/local-authorities/"&'la names for weblink'!B150,"Ofsted Local Authority Webpage") -> Ofsted Local Authority Webpage | B150: Wokingham | C150: South East | D150: SIF | E150: 2015-10-12 | F150: Requires improvement to be good | G150: Requires improvement to be good | H150: Requires improvement to be good | I150: Requires improvement to be good | J150: Unitary
A151: =HYPERLINK("http://reports.ofsted.gov.uk/local-authorities/"&'la names for weblink'!B151,"Ofsted Local Authority Webpage") -> Ofsted Local Authority Webpage | B151: Wolverhampton | C151: West Midlands | D151: SIF | E151: 2017-01-16 | F151: Good | G151: Good | H151: Requires improvement to be good | I151: Good | J151: Metropolitan District
A152: =HYPERLINK("http://reports.ofsted.gov.uk/local-authorities/"&'la names for weblink'!B152,"Ofsted Local Authority Webpage") -> Ofsted Local Authority Webpage | B152: Worcestershire | C152: West Midlands | D152: SIF | E152: 2016-10-24 | F152: Inadequate | G152: Inadequate | H152: Inadequate | I152: Inadequate | J152: Shire County
A153: =HYPERLINK("http://reports.ofsted.gov.uk/local-authorities/"&'la names for weblink'!B153,"Ofsted Local Authority Webpage") -> Ofsted Local Authority Webpage | B153: York | C153: North East, Yorkshire and The Humber | D153: SIF | E153: 2016-11-14 | F153: Good | G153: Good | H153: Requires improvement to be good | I153: Good | J153: Unitary

Sheet LA level in year 2018-19
A1: Web link | B1: Local authority name | C1: Region | D1: Inspection/Visit date | E1: Inspection/Visit type | F1: Overall judgement (OE) | G1: Children who need help and protection | H1: Children looked after and achieving permanence | I1: CLA sub: adoption performance | J1: CLA sub: experiences and progress of care leavers | K1: Leadership, management and governance | L1: Overall effectiveness | M1: Impact of leaders | N1: Experiences and progress of children who need help and protection | O1: Experiences and progress of children in care and care leavers | P1: Visit Theme
A2: =HYPERLINK("http://reports.ofsted.gov.uk/local-authorities/"&VLOOKUP(B2,'la names for weblink'!A:B,2,0),"Ofsted Local Authority Webpage") -> Ofsted Local Authority Webpage | B2: Barnet | C2: London | D2: 2018-07-31 | E2: LA Monitoring visit | P2: Children in care
A3: =HYPERLINK("http://reports.ofsted.gov.uk/local-authorities/"&VLOOKUP(B3,'la names for weblink'!A:B,2,0),"Ofsted Local Authority Webpage") -> Ofsted Local Authority Webpage | B3: Barnet | C3: London | D3: 2018-04-25 | E3: LA Monitoring visit | P3: Vulnerable adolescents
A4: =HYPERLINK("http://reports.ofsted.gov.uk/local-authorities/"&VLOOKUP(B4,'la names for weblink'!A:B,2,0),"Ofsted Local Authority Webpage") -> Ofsted Local Authority Webpage | B4: Bexley | C4: London | D4: 2018-07-09 | E4: ILACS Standard Inspection | L4: Outstanding | M4: Outstanding | N4: Outstanding | O4: Good
A5: =HYPERLINK("http://reports.ofsted.gov.uk/local-authorities/"&VLOOKUP(B5,'la names for weblink'!A:B,2,0),"Ofsted Local Authority Webpage") -> Ofsted Local Authority Webpage | B5: Birmingham | C5: West Midlands | D5: 2018-08-14 | E5: LA Monitoring visit | P5: Children in need/subject to a plan
A6: =HYPERLINK("http://reports.ofsted.gov.uk/local-authorities/"&VLOOKUP(B6,'la names for weblink'!A:B,2,0),"Ofsted Local Authority Webpage") -> Ofsted Local Authority Webpage | B6: Birmingham | C6: West Midlands | D6: 2018-05-15 | E6: LA Monitoring visit | P6: Care leavers
A7: =HYPERLINK("http://reports.ofsted.gov.uk/local-authorities/"&VLOOKUP(B7,'la names for weblink'!A:B,2,0),"Ofsted Local Authority Webpage") -> Ofsted Local Authority Webpage | B7: Bolton | C7: North West | D7: 2018-04-23 | E7: ILACS Standard Inspection | L7: Good | M7: Good | N7: Good | O7: Good
A8: =HYPERLINK("http://reports.ofsted.gov.uk/local-authorities/"&VLOOKUP(B8,'la names for weblink'!A:B,2,0),"Ofsted Local Authority Webpage") -> Ofsted Local Authority Webpage | B8: Bournemouth | C8: South West | D8: 2018-07-16 | E8: ILACS Standard Inspection | L8: Requires improvement to be good | M8: Inadequate | N8: Requires improvement to be good | O8: Requires improvement to be good
A9: =HYPERLINK("http://reports.ofsted.gov.uk/local-authorities/"&VLOOKUP(B9,'la names for weblink'!A:B,2,0),"Ofsted Local Authority Webpage") -> Ofsted Local Authority Webpage | B9: Bradford | C9: North East, Yorkshire and The Humber | D9: 2018-09-17 | E9: ILACS Standard Inspection | L9: Inadequate | M9: Requires improvement to be good | N9: Inadequate | O9: Requires improvement to be good
A10: =HYPERLINK("http://reports.ofsted.gov.uk/local-authorities/"&VLOOKUP(B10,'la names for weblink'!A:B,2,0),"Ofsted Local Authority Webpage") -> Ofsted Local Authority Webpage | B10: Brent | C10: London | D10: 2018-05-14 | E10: ILACS Standard Inspection | L10: Good | M10: Good | N10: Requires improvement to be good | O10: Outstanding
A11: =HYPERLINK("http://reports.ofsted.gov.uk/local-authorities/"&VLOOKUP(B11,'la names for weblink'!A:B,2,0),"Ofsted Local Authority Webpage") -> Ofsted Local Authority Webpage | B11: Brighton and Hove | C11: South East | D11: 2018-07-09 | E11: ILACS Standard Inspection | L11: Good | M11: Good | N11: Requires improvement to be good | O11: Good
A12: =HYPERLINK("http://reports.ofsted.gov.uk/local-authorities/"&VLOOKUP(B12,'la names for weblink'!A:B,2,0),"Ofsted Local Authority Webpage") -> Ofsted Local Authority Webpage | B12: Bristol | C12: South West | D12: 2018-09-10 | E12: ILACS Standard Inspection | L12: Requires improvement to be good | M12: Good | N12: Requires improvement to be good | O12: Requires improvement to be good
A13: =HYPERLINK("http://reports.ofsted.gov.uk/local-authorities/"&VLOOKUP(B13,'la names for weblink'!A:B,2,0),"Ofsted Local Authority Webpage") -> Ofsted Local Authority Webpage | B13: Bromley | C13: London | D13: 2018-06-12 | E13: LA Monitoring visit | P13: Vulnerable adolescents
A14: =HYPERLINK("http://reports.ofsted.gov.uk/local-authorities/"&VLOOKUP(B14,'la names for weblink'!A:B,2,0),"Ofsted Local Authority Webpage") -> Ofsted Local Authority Webpage | B14: Buckinghamshire | C14: South East | D14: 2018-07-03 | E14: LA Monitoring visit | P14: Children in need/subject to a plan
A15: =HYPERLINK("http://reports.ofsted.gov.uk/local-authorities/"&VLOOKUP(B15,'la names for weblink'!A:B,2,0),"Ofsted Local Authority Webpage") -> Ofsted Local Authority Webpage | B15: Bury | C15: North West | D15: 2018-07-25 | E15: ILACS Focused Visit | P15: Front door
A16: =HYPERLINK("http://reports.ofsted.gov.uk/local-authorities/"&VLOOKUP(B16,'la names for weblink'!A:B,2,0),"Ofsted Local Authority Webpage") -> Ofsted Local Authority Webpage | B16: Camden | C16: London | D16: 2018-05-15 | E16: ILACS Focused Visit | P16: Front door
A17: =HYPERLINK("http://reports.ofsted.gov.uk/local-authorities/"&VLOOKUP(B17,'la names for weblink'!A:B,2,0),"Ofsted Local Authority Webpage") -> Ofsted Local Authority Webpage | B17: Croydon | C17: London | D17: 2018-07-10 | E17: LA Monitoring visit | P17: Children in need/subject to a plan
A18: =HYPERLINK("http://reports.ofsted.gov.uk/local-authorities/"&VLOOKUP(B18,'la names for weblink'!A:B,2,0),"Ofsted Local Authority Webpage") -> Ofsted Local Authority Webpage | B18: Devon | C18: South West | D18: 2018-09-12 | E18: ILACS Focused Visit | P18: Care leavers
A19: =HYPERLINK("http://reports.ofsted.gov.uk/local-authorities/"&VLOOKUP(B19,'la names for weblink'!A:B,2,0),"Ofsted Local Authority Webpage") -> Ofsted Local Authority Webpage | B19: Dudley | C19: West Midlands | D19: 2018-08-07 | E19: LA Monitoring visit | P19: Children in need/subject to a plan
A20: =HYPERLINK("http://reports.ofsted.gov.uk/local-authorities/"&VLOOKUP(B20,'la names for weblink'!A:B,2,0),"Ofsted Local Authority Webpage") -> Ofsted Local Authority Webpage | B20: Dudley | C20: West Midlands | D20: 2018-05-02 | E20: LA Monitoring visit | P20: Children in need/subject to a plan
A21: =HYPERLINK("https://reports.ofsted.gov.uk/provider/44/811","Ofsted Local Authority Webpage") -> Ofsted Local Authority Webpage | B21: East Riding of Yorkshire | C21: North East, Yorkshire and The Humber | D21: 2018-09-11 | E21: ILACS Focused Visit | P21: Front door
A22: =HYPERLINK("http://reports.ofsted.gov.uk/local-authorities/"&VLOOKUP(B22,'la names for weblink'!A:B,2,0),"Ofsted Local Authority Webpage") -> Ofsted Local Authority Webpage | B22: East Sussex | C22: South East | D22: 2018-07-16 | E22: ILACS Short Inspection | L22: Outstanding | M22: Outstanding | N22: Good | O22: Outstanding
A23: =HYPERLINK("http://reports.ofsted.gov.uk/local-authorities/"&VLOOKUP(B23,'la names for weblink'!A:B,2,0),"Ofsted Local Authority Webpage") -> Ofsted Local Authority Webpage | B23: Enfield | C23: London | D23: 2018-09-25 | E23: ILACS Focused Visit | P23: Front door
A24: =HYPERLINK("http://reports.ofsted.gov.uk/local-authorities/"&VLOOKUP(B24,'la names for weblink'!A:B,2,0),"Ofsted Local Authority Webpage") -> Ofsted Local Authority Webpage | B24: Gloucestershire | C24: South West | D24: 2018-05-15 | E24: LA Monitoring visit | P24: Children in care
A25: =HYPERLINK("http://reports.ofsted.gov.uk/local-authorities/"&VLOOKUP(B25,'la names for weblink'!A:B,2,0),"Ofsted Local Authority Webpage") -> Ofsted Local Authority Webpage | B25: Halton | C25: North West | D25: 2018-07-24 | E25: ILACS Focused Visit | P25: Front door
A26: =HYPERLINK("http://reports.ofsted.gov.uk/local-authorities/"&VLOOKUP(B26,'la names for weblink'!A:B,2,0),"Ofsted Local Authority Webpage") -> Ofsted Local Authority Webpage | B26: Hammersmith and Fulham | C26: London | D26: 2018-09-11 | E26: ILACS Focused Visit | P26: Care leavers
A27: =HYPERLINK("http://reports.ofsted.gov.uk/local-authorities/"&VLOOKUP(B27,'la names for weblink'!A:B,2,0),"Ofsted Local Authority Webpage") -> Ofsted Local Authority Webpage | B27: Hartlepool | C27: North East, Yorkshire and The Humber | D27: 2018-07-23 | E27: ILACS Short Inspection | L27: Good | M27: Good | N27: Good | O27: Outstanding
A28: =HYPERLINK("http://reports.ofsted.gov.uk/local-authorities/"&VLOOKUP(B28,'la names for weblink'!A:B,2,0),"Ofsted Local Authority Webpage") -> Ofsted Local Authority Webpage | B28: Havering | C28: London | D28: 2018-06-11 | E28: ILACS Standard Inspection | L28: Good | M28: Good | N28: Requires improvement to be good | O28: Good
A29: =HYPERLINK("http://reports.ofsted.gov.uk/local-authorities/"&VLOOKUP(B29,'la names for weblink'!A:B,2,0),"Ofsted Local Authority Webpage") -> Ofsted Local Authority Webpage | B29: Herefordshire | C29: West Midlands | D29: 2018-06-11 | E29: ILACS Standard Inspection | L29: Requires improvement to be good | M29: Inadequate | N29: Requires improvement to be good | O29: Requires improvement to be good
A30: =HYPERLINK("http://reports.ofsted.gov.uk/local-authorities/"&VLOOKUP(B30,'la names for weblink'!A:B,2,0),"Ofsted Local Authority Webpage") -> Ofsted Local Authority Webpage | B30: Hillingdon | C30: London | D30: 2018-04-16 | E30: ILACS Standard Inspection | L30: Good | M30: Outstanding | N30: Good | O30: Good
A31: =HYPERLINK("http://reports.ofsted.gov.uk/local-authorities/"&VLOOKUP(B31,'la names for weblink'!A:B,2,0),"Ofsted Local Authority Webpage") -> Ofsted Local Authority Webpage | B31: Islington | C31: London | D31: 2018-04-17 | E31: ILACS Focused Visit | P31: Vulnerable adolescents
A32: =HYPERLINK("http://reports.ofsted.gov.uk/local-authorities/"&VLOOKUP(B32,'la names for weblink'!A:B,2,0),"Ofsted Local Authority Webpage") -> Ofsted Local Authority Webpage | B32: Kensington and Chelsea | C32: London | D32: 2018-08-07 | E32: ILACS Focused Visit | P32: Front door
A33: =HYPERLINK("http://reports.ofsted.gov.uk/local-authorities/"&VLOOKUP(B33,'la names for weblink'!A:B,2,0),"Ofsted Local Authority Webpage") -> Ofsted Local Authority Webpage | B33: Kirklees | C33: North East, Yorkshire and The Humber | D33: 2018-07-11 | E33: LA Monitoring visit | P33: Children in need/subject to a plan
A34: =HYPERLINK("http://reports.ofsted.gov.uk/local-authorities/"&VLOOKUP(B34,'la names for weblink'!A:B,2,0),"Ofsted Local Authority Webpage") -> Ofsted Local Authority Webpage | B34: Lancashire | C34: North West | D34: 2018-06-05 | E34: SIF - Re-Inspection | F34: Requires improvement to be good | G34: Requires improvement to be good | H34: Requires improvement to be good | I34: Good | J34: Requires improvement to be good | K34: Requires improvement to be good
A35: =HYPERLINK("http://reports.ofsted.gov.uk/local-authorities/"&VLOOKUP(B35,'la names for weblink'!A:B,2,0),"Ofsted Local Authority Webpage") -> Ofsted Local Authority Webpage | B35: Lewisham | C35: London | D35: 2018-09-05 | E35: ILACS Focused Visit | P35: Front door
A36: =HYPERLINK("http://reports.ofsted.gov.uk/local-authorities/"&VLOOKUP(B36,'la names for weblink'!A:B,2,0),"Ofsted Local Authority Webpage") -> Ofsted Local Authority Webpage | B36: Lincolnshire | C36: East Midlands | D36: 2018-04-17 | E36: ILACS Focused Visit | P36: Achieving permanence
A37: =HYPERLINK("http://reports.ofsted.gov.uk/local-authorities/"&VLOOKUP(B37,'la names for weblink'!A:B,2,0),"Ofsted Local Authority Webpage") -> Ofsted Local Authority Webpage | B37: Liverpool | C37: North West | D37: 2018-05-14 | E37: ILACS Standard Inspection | L37: Requires improvement to be good | M37: Requires improvement to be good | N37: Requires improvement to be good | O37: Requires improvement to be good
A38: =HYPERLINK("http://reports.ofsted.gov.uk/local-authorities/"&VLOOKUP(B38,'la names for weblink'!A:B,2,0),"Ofsted Local Authority Webpage") -> Ofsted Local Authority Webpage | B38: Luton | C38: East of England | D38: 2018-06-12 | E38: ILACS Focused Visit | P38: Children in need/subject to a plan
A39: =HYPERLINK("http://reports.ofsted.gov.uk/local-authorities/"&VLOOKUP(B39,'la names for weblink'!A:B,2,0),"Ofsted Local Authority Webpage") -> Ofsted Local Authority Webpage | B39: Manchester | C39: North West | D39: 2018-09-17 | E39: ILACS Focused Visit | P39: Children in care
A40: =HYPERLINK("http://reports.ofsted.gov.uk/local-authorities/"&VLOOKUP(B40,'la names for weblink'!A:B,2,0),"Ofsted Local Authority Webpage") -> Ofsted Local Authority Webpage | B40: Middlesbrough | C40: North East, Yorkshire and The Humber | D40: 2018-08-07 | E40: ILACS Focused Visit | P40: Front door
A41: =HYPERLINK("http://reports.ofsted.gov.uk/local-authorities/"&VLOOKUP(B41,'la names for weblink'!A:B,2,0),"Ofsted Local Authority Webpage") -> Ofsted Local Authority Webpage | B41: Newcastle upon Tyne | C41: North East, Yorkshire and The Humber | D41: 2018-07-24 | E41: ILACS Focused Visit | P41: Front door
A42: =HYPERLINK("http://reports.ofsted.gov.uk/local-authorities/"&VLOOKUP(B42,'la names for weblink'!A:B,2,0),"Ofsted Local Authority Webpage") -> Ofsted Local Authority Webpage | B42: North Tyneside | C42: North East, Yorkshire and The Humber | D42: 2018-05-09 | E42: ILACS Focused Visit | P42: Front door
A43: =HYPERLINK("http://reports.ofsted.gov.uk/local-authorities/"&VLOOKUP(B43,'la names for weblink'!A:B,2,0),"Ofsted Local Authority Webpage") -> Ofsted Local Authority Webpage | B43: North Yorkshire | C43: North East, Yorkshire and The Humber | D43: 2018-07-02 | E43: ILACS Short Inspection | L43: Outstanding | M43: Outstanding | N43: Outstanding | O43: Outstanding
A44: =HYPERLINK("http://reports.ofsted.gov.uk/local-authorities/"&VLOOKUP(B44,'la names for weblink'!A:B,2,0),"Ofsted Local Authority Webpage") -> Ofsted Local Authority Webpage | B44: Northamptonshire | C44: East Midlands | D44: 2018-04-24 | E44: ILACS Focused Visit | P44: Children in need/subject to a plan
A45: =HYPERLINK("http://reports.ofsted.gov.uk/local-authorities/"&VLOOKUP(B45,'la names for weblink'!A:B,2,0),"Ofsted Local Authority Webpage") -> Ofsted Local Authority Webpage | B45: Oxfordshire | C45: South East | D45: 2018-04-16 | E45: ILACS Short Inspection | L45: Good | M45: Good | N45: Requires improvement to be good | O45: Good
A46: =HYPERLINK("http://reports.ofsted.gov.uk/local-authorities/"&VLOOKUP(B46,'la names for weblink'!A:B,2,0),"Ofsted Local Authority Webpage") -> Ofsted Local Authority Webpage | B46: Peterborough | C46: East of England | D46: 2018-06-25 | E46: ILACS Standard Inspection | L46: Good | M46: Good | N46: Good | O46: Good
A47: =HYPERLINK("http://reports.ofsted.gov.uk/local-authorities/"&VLOOKUP(B47,'la names for weblink'!A:B,2,0),"Ofsted Local Authority Webpage") -> Ofsted Local Authority Webpage | B47: Plymouth | C47: South West | D47: 2018-05-01 | E47: ILACS Focused Visit | P47: Front door
A48: =HYPERLINK("http://reports.ofsted.gov.uk/local-authorities/"&VLOOKUP(B48,'la names for weblink'!A:B,2,0),"Ofsted Local Authority Webpage") -> Ofsted Local Authority Webpage | B48: Portsmouth | C48: South East | D48: 2018-09-03 | E48: ILACS Standard Inspection | L48: Good | M48: Good | N48: Good | O48: Good
A49: =HYPERLINK("http://reports.ofsted.gov.uk/local-authorities/"&VLOOKUP(B49,'la names for weblink'!A:B,2,0),"Ofsted Local Authority Webpage") -> Ofsted Local Authority Webpage | B49: Reading | C49: South East | D49: 2018-07-31 | E49: LA Monitoring visit | P49: Care leavers
A50: =HYPERLINK("http://reports.ofsted.gov.uk/local-authorities/"&VLOOKUP(B50,'la names for weblink'!A:B,2,0),"Ofsted Local Authority Webpage") -> Ofsted Local Authority Webpage | B50: Reading | C50: South East | D50: 2018-05-15 | E50: LA Monitoring visit | P50: Children in care
A51: =HYPERLINK("http://reports.ofsted.gov.uk/local-authorities/"&VLOOKUP(B51,'la names for weblink'!A:B,2,0),"Ofsted Local Authority Webpage") -> Ofsted Local Authority Webpage | B51: Sandwell | C51: West Midlands | D51: 2018-09-05 | E51: LA Monitoring visit | P51: Children in care
A52: =HYPERLINK("http://reports.ofsted.gov.uk/local-authorities/"&VLOOKUP(B52,'la names for weblink'!A:B,2,0),"Ofsted Local Authority Webpage") -> Ofsted Local Authority Webpage | B52: Sandwell | C52: West Midlands | D52: 2018-05-30 | E52: LA Monitoring visit | P52: Children in care
A53: =HYPERLINK("http://reports.ofsted.gov.uk/local-authorities/"&VLOOKUP(B53,'la names for weblink'!A:B,2,0),"Ofsted Local Authority Webpage") -> Ofsted Local Authority Webpage | B53: Sefton | C53: North West | D53: 2018-09-27 | E53: ILACS Focused Visit | P53: Children in need/subject to a plan
A54: =HYPERLINK("http://reports.ofsted.gov.uk/local-authorities/"&VLOOKUP(B54,'la names for weblink'!A:B,2,0),"Ofsted Local Authority Webpage") -> Ofsted Local Authority Webpage | B54: Sheffield | C54: North East, Yorkshire and The Humber | D54: 2018-04-24 | E54: ILACS Focused Visit | P54: Front door
A55: =HYPERLINK("http://reports.ofsted.gov.uk/local-authorities/"&VLOOKUP(B55,'la names for weblink'!A:B,2,0),"Ofsted Local Authority Webpage") -> Ofsted Local Authority Webpage | B55: Slough | C55: South East | D55: 2018-05-01 | E55: LA Monitoring visit | P55: Children in care
A56: =HYPERLINK("http://reports.ofsted.gov.uk/local-authorities/"&VLOOKUP(B56,'la names for weblink'!A:B,2,0),"Ofsted Local Authority Webpage") -> Ofsted Local Authority Webpage | B56: South Gloucestershire | C56: South West | D56: 2018-08-08 | E56: LA Monitoring visit | P56: Achieving permanence
A57: =HYPERLINK("http://reports.ofsted.gov.uk/local-authorities/"&VLOOKUP(B57,'la names for weblink'!A:B,2,0),"Ofsted Local Authority Webpage") -> Ofsted Local Authority Webpage | B57: South Gloucestershire | C57: South West | D57: 2018-05-22 | E57: LA Monitoring visit | P57: Children in care
A58: =HYPERLINK("http://reports.ofsted.gov.uk/local-authorities/"&VLOOKUP(B58,'la names for weblink'!A:B,2,0),"Ofsted Local Authority Webpage") -> Ofsted Local Authority Webpage | B58: Southampton | C58: South East | D58: 2018-05-22 | E58: ILACS Focused Visit | P58: Care leavers
A59: =HYPERLINK("http://reports.ofsted.gov.uk/local-authorities/"&VLOOKUP(B59,'la names for weblink'!A:B,2,0),"Ofsted Local Authority Webpage") -> Ofsted Local Authority Webpage | B59: St Helens | C59: North West | D59: 2018-07-11 | E59: ILACS Focused Visit | P59: Children in need/subject to a plan
A60: =HYPERLINK("http://reports.ofsted.gov.uk/local-authorities/"&VLOOKUP(B60,'la names for weblink'!A:B,2,0),"Ofsted Local Authority Webpage") -> Ofsted Local Authority Webpage | B60: Staffordshire | C60: West Midlands | D60: 2018-06-26 | E60: ILACS Focused Visit | P60: Vulnerable adolescents
A61: =HYPERLINK("https://reports.ofsted.gov.uk/provider/44/808","Ofsted Local Authority Webpage") -> Ofsted Local Authority Webpage | B61: Stockton-on-Tees | C61: North East, Yorkshire and The Humber | D61: 2018-04-17 | E61: ILACS Focused Visit | P61: Achieving permanence
A62: =HYPERLINK("https://reports.ofsted.gov.uk/provider/44/80564","Ofsted Local Authority Webpage") -> Ofsted Local Authority Webpage | B62: Stoke-on-Trent | C62: West Midlands | D62: 2018-04-11 | E62: ILACS Focused Visit | P62: Vulnerable adolescents
A63: =HYPERLINK("http://reports.ofsted.gov.uk/local-authorities/"&VLOOKUP(B63,'la names for weblink'!A:B,2,0),"Ofsted Local Authority Webpage") -> Ofsted Local Authority Webpage | B63: Sunderland | C63: North East, Yorkshire and The Humber | D63: 2018-04-25 | E63: SIF - Re-Inspection | F63: Inadequate | G63: Inadequate | H63: Requires improvement to be good | I63: Good | J63: Requires improvement to be good | K63: Inadequate
A64: =HYPERLINK("http://reports.ofsted.gov.uk/local-authorities/"&VLOOKUP(B64,'la names for weblink'!A:B,2,0),"Ofsted Local Authority Webpage") -> Ofsted Local Authority Webpage | B64: Surrey | C64: South East | D64: 2018-09-11 | E64: LA Monitoring visit | P64: Children in need/subject to a plan
A65: =HYPERLINK("http://reports.ofsted.gov.uk/local-authorities/"&VLOOKUP(B65,'la names for weblink'!A:B,2,0),"Ofsted Local Authority Webpage") -> Ofsted Local Authority Webpage | B65: Sutton | C65: London | D65: 2018-06-26 | E65: ILACS Focused Visit | P65: Vulnerable adolescents
A66: =HYPERLINK("http://reports.ofsted.gov.uk/local-authorities/"&VLOOKUP(B66,'la names for weblink'!A:B,2,0),"Ofsted Local Authority Webpage") -> Ofsted Local Authority Webpage | B66: Swindon | C66: South West | D66: 2018-04-24 | E66: ILACS Focused Visit | P66: Front door
A67: =HYPERLINK("http://reports.ofsted.gov.uk/local-authorities/"&VLOOKUP(B67,'la names for weblink'!A:B,2,0),"Ofsted Local Authority Webpage") -> Ofsted Local Authority Webpage | B67: Tameside | C67: North West | D67: 2018-08-22 | E67: LA Monitoring visit | P67: Children in care
A68: =HYPERLINK("http://reports.ofsted.gov.uk/local-authorities/"&VLOOKUP(B68,'la names for weblink'!A:B,2,0),"Ofsted Local Authority Webpage") -> Ofsted Local Authority Webpage | B68: Tameside | C68: North West | D68: 2018-04-18 | E68: LA Monitoring visit | P68: Front door
A69: =HYPERLINK("http://reports.ofsted.gov.uk/local-authorities/"&VLOOKUP(B69,'la names for weblink'!A:B,2,0),"Ofsted Local Authority Webpage") -> Ofsted Local Authority Webpage | B69: Telford and Wrekin | C69: West Midlands | D69: 2018-09-18 | E69: ILACS Focused Visit | P69: Achieving permanence
A70: =HYPERLINK("http://reports.ofsted.gov.uk/local-authorities/"&VLOOKUP(B70,'la names for weblink'!A:B,2,0),"Ofsted Local Authority Webpage") -> Ofsted Local Authority Webpage | B70: Thurrock | C70: East of England | D70: 2018-09-11 | E70: ILACS Focused Visit | P70: Children in need/subject to a plan
A71: =HYPERLINK("http://reports.ofsted.gov.uk/local-authorities/"&VLOOKUP(B71,'la names for weblink'!A:B,2,0),"Ofsted Local Authority Webpage") -> Ofsted Local Authority Webpage | B71: Torbay | C71: South West | D71: 2018-06-12 | E71: SIF - Re-Inspection | F71: Inadequate | G71: Inadequate | H71: Requires improvement to be good | I71: Good | J71: Requires improvement to be good | K71: Inadequate
A72: =HYPERLINK("http://reports.ofsted.gov.uk/local-authorities/"&VLOOKUP(B72,'la names for weblink'!A:B,2,0),"Ofsted Local Authority Webpage") -> Ofsted Local Authority Webpage | B72: Tower Hamlets | C72: London | D72: 2018-08-15 | E72: LA Monitoring visit | P72: Achieving permanence
A73: =HYPERLINK("http://reports.ofsted.gov.uk/local-authorities/"&VLOOKUP(B73,'la names for weblink'!A:B,2,0),"Ofsted Local Authority Webpage") -> Ofsted Local Authority Webpage | B73: Tower Hamlets | C73: London | D73: 2018-05-01 | E73: LA Monitoring visit | P73: Vulnerable adolescents
A74: =HYPERLINK("http://reports.ofsted.gov.uk/local-authorities/"&VLOOKUP(B74,'la names for weblink'!A:B,2,0),"Ofsted Local Authority Webpage") -> Ofsted Local Authority Webpage | B74: Trafford | C74: North West | D74: 2018-07-10 | E74: ILACS Focused Visit | P74: Achieving permanence
A75: =HYPERLINK("http://reports.ofsted.gov.uk/local-authorities/"&VLOOKUP(B75,'la names for weblink'!A:B,2,0),"Ofsted Local Authority Webpage") -> Ofsted Local Authority Webpage | B75: Wakefield | C75: North East, Yorkshire and The Humber | D75: 2018-06-04 | E75: ILACS Standard Inspection | L75: Inadequate | M75: Inadequate | N75: Inadequate | O75: Inadequate
A76: =HYPERLINK("http://reports.ofsted.gov.uk/local-authorities/"&VLOOKUP(B76,'la names for weblink'!A:B,2,0),"Ofsted Local Authority Webpage") -> Ofsted Local Authority Webpage | B76: Walsall | C76: West Midlands | D76: 2018-09-25 | E76: ILACS Focused Visit | P76: Care leavers
A77: =HYPERLINK("http://reports.ofsted.gov.uk/local-authorities/"&VLOOKUP(B77,'la names for weblink'!A:B,2,0),"Ofsted Local Authority Webpage") -> Ofsted Local Authority Webpage | B77: Wandsworth | C77: London | D77: 2018-05-08 | E77: SIF - Re-Inspection | F77: Requires improvement to be good | G77: Requires improvement to be good | H77: Requires improvement to be good | I77: Requires improvement to be good | J77: Good | K77: Requires improvement to be good
A78: =HYPERLINK("http://reports.ofsted.gov.uk/local-authorities/"&VLOOKUP(B78,'la names for weblink'!A:B,2,0),"Ofsted Local Authority Webpage") -> Ofsted Local Authority Webpage | B78: Warwickshire | C78: West Midlands | D78: 2018-07-17 | E78: ILACS Focused Visit | P78: Children in need/subject to a plan
A79: =HYPERLINK("http://reports.ofsted.gov.uk/local-authorities/"&VLOOKUP(B79,'la names for weblink'!A:B,2,0),"Ofsted Local Authority Webpage") -> Ofsted Local Authority Webpage | B79: Westminster | C79: London | D79: 2018-08-07 | E79: ILACS Focused Visit | P79: Front door
A80: =HYPERLINK("http://reports.ofsted.gov.uk/local-authorities/"&VLOOKUP(B80,'la names for weblink'!A:B,2,0),"Ofsted Local Authority Webpage") -> Ofsted Local Authority Webpage | B80: Wirral | C80: North West | D80: 2018-09-04 | E80: LA Monitoring visit | P80: Children in need/subject to a plan
A81: =HYPERLINK("http://reports.ofsted.gov.uk/local-authorities/"&VLOOKUP(B81,'la names for weblink'!A:B,2,0),"Ofsted Local Authority Webpage") -> Ofsted Local Authority Webpage | B81: Wirral | C81: North West | D81: 2018-05-30 | E81: LA Monitoring visit | P81: Children in care
A82: =HYPERLINK("http://reports.ofsted.gov.uk/local-authorities/"&VLOOKUP(B82,'la names for weblink'!A:B,2,0),"Ofsted Local Authority Webpage") -> Ofsted Local Authority Webpage | B82: Wolverhampton | C82: West Midlands | D82: 2018-09-11 | E82: ILACS Focused Visit | P82: Children in need/subject to a plan
A83: =HYPERLINK("http://reports.ofsted.gov.uk/local-authorities/"&VLOOKUP(B83,'la names for weblink'!A:B,2,0),"Ofsted Local Authority Webpage") -> Ofsted Local Authority Webpage | B83: Worcestershire | C83: West Midlands | D83: 2018-07-11 | E83: LA Monitoring visit | P83: Children in need/subject to a plan
A84: =HYPERLINK("http://reports.ofsted.gov.uk/local-authorities/"&VLOOKUP(B84,'la names for weblink'!A:B,2,0),"Ofsted Local Authority Webpage") -> Ofsted Local Authority Webpage | B84: Worcestershire | C84: West Midlands | D84: 2018-04-18 | E84: LA Monitoring visit | P84: Care leavers

Sheet All ILACS
A1: Web link | B1: Local authority name | C1: Region | D1: Inspection/Visit date | E1: Inspection/Visit type | F1: Overall effectiveness | G1: Impact of leaders | H1: Experiences and progress of children who need help and protection | I1: Experiences and progress of children in care and care leavers | J1: Visit Theme
A2: =HYPERLINK("http://reports.ofsted.gov.uk/local-authorities/"&VLOOKUP(B2,'la names for weblink'!A:B,2,0),"Ofsted Local Authority Webpage") -> Ofsted Local Authority Webpage | B2: Barking and Dagenham | C2: London | D2: 2018-03-07 | E2: ILACS Focused Visit | J2: Front door
A3: =HYPERLINK("http://reports.ofsted.gov.uk/local-authorities/"&VLOOKUP(B3,'la names for weblink'!A:B,2,0),"Ofsted Local Authority Webpage") -> Ofsted Local Authority Webpage | B3: Barnet | C3: London | D3: 2018-07-31 | E3: LA Monitoring visit | J3: Children in care
A4: =HYPERLINK("http://reports.ofsted.gov.uk/local-authorities/"&VLOOKUP(B4,'la names for weblink'!A:B,2,0),"Ofsted Local Authority Webpage") -> Ofsted Local Authority Webpage | B4: Barnet | C4: London | D4: 2018-04-25 | E4: LA Monitoring visit | J4: Vulnerable adolescents
A5: =HYPERLINK("http://reports.ofsted.gov.uk/local-authorities/"&VLOOKUP(B5,'la names for weblink'!A:B,2,0),"Ofsted Local Authority Webpage") -> Ofsted Local Authority Webpage | B5: Barnet | C5: London | D5: 2018-01-30 | E5: LA Monitoring visit | J5: Children in need/subject to a plan
A6: =HYPERLINK("http://reports.ofsted.gov.uk/local-authorities/"&VLOOKUP(B6,'la names for weblink'!A:B,2,0),"Ofsted Local Authority Webpage") -> Ofsted Local Authority Webpage | B6: Bexley | C6: London | D6: 2018-07-09 | E6: ILACS Standard Inspection | F6: Outstanding | G6: Outstanding | H6: Outstanding | I6: Good
A7: =HYPERLINK("http://reports.ofsted.gov.uk/local-authorities/"&VLOOKUP(B7,'la names for weblink'!A:B,2,0),"Ofsted Local Authority Webpage") -> Ofsted Local Authority Webpage | B7: Birmingham | C7: West Midlands | D7: 2018-08-14 | E7: LA Monitoring visit | J7: Children in need/subject to a plan
A8: =HYPERLINK("http://reports.ofsted.gov.uk/local-authorities/"&VLOOKUP(B8,'la names for weblink'!A:B,2,0),"Ofsted Local Authority Webpage") -> Ofsted Local Authority Webpage | B8: Birmingham | C8: West Midlands | D8: 2018-05-15 | E8: LA Monitoring visit | J8: Care leavers
A9: =HYPERLINK("http://reports.ofsted.gov.uk/local-authorities/"&VLOOKUP(B9,'la names for weblink'!A:B,2,0),"Ofsted Local Authority Webpage") -> Ofsted Local Authority Webpage | B9: Birmingham | C9: West Midlands | D9: 2018-03-06 | E9: LA Monitoring visit | J9: Children in care
A10: =HYPERLINK("http://reports.ofsted.gov.uk/local-authorities/"&VLOOKUP(B10,'la names for weblink'!A:B,2,0),"Ofsted Local Authority Webpage") -> Ofsted Local Authority Webpage | B10: Bolton | C10: North West | D10: 2018-04-23 | E10: ILACS Standard Inspection | F10: Good | G10: Good | H10: Good | I10: Good
A11: =HYPERLINK("http://reports.ofsted.gov.uk/local-authorities/"&VLOOKUP(B11,'la names for weblink'!A:B,2,0),"Ofsted Local Authority Webpage") -> Ofsted Local Authority Webpage | B11: Bournemouth | C11: South West | D11: 2018-07-16 | E11: ILACS Standard Inspection | F11: Requires improvement to be good | G11: Inadequate | H11: Requires improvement to be good | I11: Requires improvement to be good
A12: =HYPERLINK("http://reports.ofsted.gov.uk/local-authorities/"&VLOOKUP(B12,'la names for weblink'!A:B,2,0),"Ofsted Local Authority Webpage") -> Ofsted Local Authority Webpage | B12: Bradford | C12: North East, Yorkshire and The Humber | D12: 2018-09-17 | E12: ILACS Standard Inspection | F12: Inadequate | G12: Requires improvement to be good | H12: Inadequate | I12: Requires improvement to be good
A13: =HYPERLINK("http://reports.ofsted.gov.uk/local-authorities/"&VLOOKUP(B13,'la names for weblink'!A:B,2,0),"Ofsted Local Authority Webpage") -> Ofsted Local Authority Webpage | B13: Brent | C13: London | D13: 2018-05-14 | E13: ILACS Standard Inspection | F13: Good | G13: Good | H13: Requires improvement to be good | I13: Outstanding
A14: =HYPERLINK("http://reports.ofsted.gov.uk/local-authorities/"&VLOOKUP(B14,'la names for weblink'!A:B,2,0),"Ofsted Local Authority Webpage") -> Ofsted Local Authority Webpage | B14: Brighton and Hove | C14: South East | D14: 2018-07-09 | E14: ILACS Standard Inspection | F14: Good | G14: Good | H14: Requires improvement to be good | I14: Good
A15: =HYPERLINK("http://reports.ofsted.gov.uk/local-authorities/"&VLOOKUP(B15,'la names for weblink'!A:B,2,0),"Ofsted Local Authority Webpage") -> Ofsted Local Authority Webpage | B15: Bristol | C15: South West | D15: 2018-09-10 | E15: ILACS Standard Inspection | F15: Requires improvement to be good | G15: Good | H15: Requires improvement to be good | I15: Requires improvement to be good
A16: =HYPERLINK("http://reports.ofsted.gov.uk/local-authorities/"&VLOOKUP(B16,'la names for weblink'!A:B,2,0),"Ofsted Local Authority Webpage") -> Ofsted Local Authority Webpage | B16: Bromley | C16: London | D16: 2018-06-12 | E16: LA Monitoring visit | J16: Vulnerable adolescents
A17: =HYPERLINK("http://reports.ofsted.gov.uk/local-authorities/"&VLOOKUP(B17,'la names for weblink'!A:B,2,0),"Ofsted Local Authority Webpage") -> Ofsted Local Authority Webpage | B17: Bromley | C17: London | D17: 2018-03-13 | E17: LA Monitoring visit | J17: Front door
A18: =HYPERLINK("http://reports.ofsted.gov.uk/local-authorities/"&VLOOKUP(B18,'la names for weblink'!A:B,2,0),"Ofsted Local Authority Webpage") -> Ofsted Local Authority Webpage | B18: Buckinghamshire | C18: South East | D18: 2018-07-03 | E18: LA Monitoring visit | J18: Children in need/subject to a plan
A19: =HYPERLINK("http://reports.ofsted.gov.uk/local-authorities/"&VLOOKUP(B19,'la names for weblink'!A:B,2,0),"Ofsted Local Authority Webpage") -> Ofsted Local Authority Webpage | B19: Bury | C19: North West | D19: 2018-07-25 | E19: ILACS Focused Visit | J19: Front door
A20: =HYPERLINK("http://reports.ofsted.gov.uk/local-authorities/"&VLOOKUP(B20,'la names for weblink'!A:B,2,0),"Ofsted Local Authority Webpage") -> Ofsted Local Authority Webpage | B20: Cambridgeshire | C20: East of England | D20: 2018-03-13 | E20: ILACS Focused Visit | J20: Children in need/subject to a plan
A21: =HYPERLINK("http://reports.ofsted.gov.uk/local-authorities/"&VLOOKUP(B21,'la names for weblink'!A:B,2,0),"Ofsted Local Authority Webpage") -> Ofsted Local Authority Webpage | B21: Camden | C21: London | D21: 2018-05-15 | E21: ILACS Focused Visit | J21: Front door
A22: =HYPERLINK("http://reports.ofsted.gov.uk/local-authorities/"&VLOOKUP(B22,'la names for weblink'!A:B,2,0),"Ofsted Local Authority Webpage") -> Ofsted Local Authority Webpage | B22: Coventry | C22: West Midlands | D22: 2018-01-30 | E22: ILACS Focused Visit | J22: Children in need/subject to a plan
A23: =HYPERLINK("http://reports.ofsted.gov.uk/local-authorities/"&VLOOKUP(B23,'la names for weblink'!A:B,2,0),"Ofsted Local Authority Webpage") -> Ofsted Local Authority Webpage | B23: Croydon | C23: London | D23: 2018-07-10 | E23: LA Monitoring visit | J23: Children in need/subject to a plan
A24: =HYPERLINK("http://reports.ofsted.gov.uk/local-authorities/"&VLOOKUP(B24,'la names for weblink'!A:B,2,0),"Ofsted Local Authority Webpage") -> Ofsted Local Authority Webpage | B24: Croydon | C24: London | D24: 2018-03-20 | E24: LA Monitoring visit | J24: Vulnerable adolescents
A25: =HYPERLINK("http://reports.ofsted.gov.uk/local-authorities/"&VLOOKUP(B25,'la names for weblink'!A:B,2,0),"Ofsted Local Authority Webpage") -> Ofsted Local Authority Webpage | B25: Derbyshire | C25: East Midlands | D25: 2018-02-27 | E25: ILACS Focused Visit | J25: Children in need/subject to a plan
A26: =HYPERLINK("http://reports.ofsted.gov.uk/local-authorities/"&VLOOKUP(B26,'la names for weblink'!A:B,2,0),"Ofsted Local Authority Webpage") -> Ofsted Local Authority Webpage | B26: Devon | C26: South West | D26: 2018-09-12 | E26: ILACS Focused Visit | J26: Care leavers
A27: =HYPERLINK("http://reports.ofsted.gov.uk/local-authorities/"&VLOOKUP(B27,'la names for weblink'!A:B,2,0),"Ofsted Local Authority Webpage") -> Ofsted Local Authority Webpage | B27: Dudley | C27: West Midlands | D27: 2018-08-07 | E27: LA Monitoring visit | J27: Children in need/subject to a plan
A28: =HYPERLINK("http://reports.ofsted.gov.uk/local-authorities/"&VLOOKUP(B28,'la names for weblink'!A:B,2,0),"Ofsted Local Authority Webpage") -> Ofsted Local Authority Webpage | B28: Dudley | C28: West Midlands | D28: 2018-05-02 | E28: LA Monitoring visit | J28: Children in need/subject to a plan
A29: =HYPERLINK("http://reports.ofsted.gov.uk/local-authorities/"&VLOOKUP(B29,'la names for weblink'!A:B,2,0),"Ofsted Local Authority Webpage") -> Ofsted Local Authority Webpage | B29: Dudley | C29: West Midlands | D29: 2018-02-08 | E29: LA Monitoring visit | J29: Achieving permanence
A30: =HYPERLINK("https://reports.ofsted.gov.uk/provider/44/811","Ofsted Local Authority Webpage") -> Ofsted Local Authority Webpage | B30: East Riding of Yorkshire | C30: North East, Yorkshire and The Humber | D30: 2018-09-11 | E30: ILACS Focused Visit | J30: Front door
A31: =HYPERLINK("http://reports.ofsted.gov.uk/local-authorities/"&VLOOKUP(B31,'la names for weblink'!A:B,2,0),"Ofsted Local Authority Webpage") -> Ofsted Local Authority Webpage | B31: East Sussex | C31: South East | D31: 2018-07-16 | E31: ILACS Short Inspection | F31: Outstanding | G31: Outstanding | H31: Good | I31: Outstanding
A32: =HYPERLINK("http://reports.ofsted.gov.uk/local-authorities/"&VLOOKUP(B32,'la names for weblink'!A:B,2,0),"Ofsted Local Authority Webpage") -> Ofsted Local Authority Webpage | B32: Enfield | C32: London | D32: 2018-09-25 | E32: ILACS Focused Visit | J32: Front door
A33: =HYPERLINK("http://reports.ofsted.gov.uk/local-authorities/"&VLOOKUP(B33,'la names for weblink'!A:B,2,0),"Ofsted Local Authority Webpage") -> Ofsted Local Authority Webpage | B33: Gateshead | C33: North East, Yorkshire and The Humber | D33: 2018-03-20 | E33: ILACS Focused Visit | J33: Care leavers
A34: =HYPERLINK("http://reports.ofsted.gov.uk/local-authorities/"&VLOOKUP(B34,'la names for weblink'!A:B,2,0),"Ofsted Local Authority Webpage") -> Ofsted Local Authority Webpage | B34: Gloucestershire | C34: South West | D34: 2018-05-15 | E34: LA Monitoring visit | J34: Children in care
A35: =HYPERLINK("http://reports.ofsted.gov.uk/local-authorities/"&VLOOKUP(B35,'la names for weblink'!A:B,2,0),"Ofsted Local Authority Webpage") -> Ofsted Local Authority Webpage | B35: Gloucestershire | C35: South West | D35: 2018-01-16 | E35: LA Monitoring visit | J35: Front door
A36: =HYPERLINK("http://reports.ofsted.gov.uk/local-authorities/"&VLOOKUP(B36,'la names for weblink'!A:B,2,0),"Ofsted Local Authority Webpage") -> Ofsted Local Authority Webpage | B36: Halton | C36: North West | D36: 2018-07-24 | E36: ILACS Focused Visit | J36: Front door
A37: =HYPERLINK("http://reports.ofsted.gov.uk/local-authorities/"&VLOOKUP(B37,'la names for weblink'!A:B,2,0),"Ofsted Local Authority Webpage") -> Ofsted Local Authority Webpage | B37: Hammersmith and Fulham | C37: London | D37: 2018-09-11 | E37: ILACS Focused Visit | J37: Care leavers
A38: =HYPERLINK("http://reports.ofsted.gov.uk/local-authorities/"&VLOOKUP(B38,'la names for weblink'!A:B,2,0),"Ofsted Local Authority Webpage") -> Ofsted Local Authority Webpage | B38: Hartlepool | C38: North East, Yorkshire and The Humber | D38: 2018-07-23 | E38: ILACS Short Inspection | F38: Good | G38: Good | H38: Good | I38: Outstanding
A39: =HYPERLINK("http://reports.ofsted.gov.uk/local-authorities/"&VLOOKUP(B39,'la names for weblink'!A:B,2,0),"Ofsted Local Authority Webpage") -> Ofsted Local Authority Webpage | B39: Havering | C39: London | D39: 2018-06-11 | E39: ILACS Standard Inspection | F39: Good | G39: Good | H39: Requires improvement to be good | I39: Good
A40: =HYPERLINK("http://reports.ofsted.gov.uk/local-authorities/"&VLOOKUP(B40,'la names for weblink'!A:B,2,0),"Ofsted Local Authority Webpage") -> Ofsted Local Authority Webpage | B40: Herefordshire | C40: West Midlands | D40: 2018-06-11 | E40: ILACS Standard Inspection | F40: Requires improvement to be good | G40: Inadequate | H40: Requires improvement to be good | I40: Requires improvement to be good
A41: =HYPERLINK("http://reports.ofsted.gov.uk/local-authorities/"&VLOOKUP(B41,'la names for weblink'!A:B,2,0),"Ofsted Local Authority Webpage") -> Ofsted Local Authority Webpage | B41: Hillingdon | C41: London | D41: 2018-04-16 | E41: ILACS Standard Inspection | F41: Good | G41: Outstanding | H41: Good | I41: Good
A42: =HYPERLINK("http://reports.ofsted.gov.uk/local-authorities/"&VLOOKUP(B42,'la names for weblink'!A:B,2,0),"Ofsted Local Authority Webpage") -> Ofsted Local Authority Webpage | B42: Islington | C42: London | D42: 2018-04-17 | E42: ILACS Focused Visit | J42: Vulnerable adolescents
A43: =HYPERLINK("http://reports.ofsted.gov.uk/local-authorities/"&VLOOKUP(B43,'la names for weblink'!A:B,2,0),"Ofsted Local Authority Webpage") -> Ofsted Local Authority Webpage | B43: Kensington and Chelsea | C43: London | D43: 2018-08-07 | E43: ILACS Focused Visit | J43: Front door
A44: =HYPERLINK("http://reports.ofsted.gov.uk/local-authorities/"&VLOOKUP(B44,'la names for weblink'!A:B,2,0),"Ofsted Local Authority Webpage") -> Ofsted Local Authority Webpage | B44: Kingston Upon Hull | C44: North East, Yorkshire and The Humber | D44: 2018-02-06 | E44: ILACS Focused Visit | J44: Front door
A45: =HYPERLINK("http://reports.ofsted.gov.uk/local-authorities/"&VLOOKUP(B45,'la names for weblink'!A:B,2,0),"Ofsted Local Authority Webpage") -> Ofsted Local Authority Webpage | B45: Kirklees | C45: North East, Yorkshire and The Humber | D45: 2018-07-11 | E45: LA Monitoring visit | J45: Children in need/subject to a plan
A46: =HYPERLINK("http://reports.ofsted.gov.uk/local-authorities/"&VLOOKUP(B46,'la names for weblink'!A:B,2,0),"Ofsted Local Authority Webpage") -> Ofsted Local Authority Webpage | B46: Kirklees | C46: North East, Yorkshire and The Humber | D46: 2018-03-13 | E46: LA Monitoring visit | J46: Children in care
A47: =HYPERLINK("http://reports.ofsted.gov.uk/local-authorities/"&VLOOKUP(B47,'la names for weblink'!A:B,2,0),"Ofsted Local Authority Webpage") -> Ofsted Local Authority Webpage | B47: Lancashire | C47: North West | D47: 2018-02-27 | E47: LA Monitoring visit | J47: Front door
A48: =HYPERLINK("http://reports.ofsted.gov.uk/local-authorities/"&VLOOKUP(B48,'la names for weblink'!A:B,2,0),"Ofsted Local Authority Webpage") -> Ofsted Local Authority Webpage | B48: Leeds | C48: North East, Yorkshire and The Humber | D48: 2018-01-30 | E48: ILACS Focused Visit | J48: Children in care
A49: =HYPERLINK("http://reports.ofsted.gov.uk/local-authorities/"&VLOOKUP(B49,'la names for weblink'!A:B,2,0),"Ofsted Local Authority Webpage") -> Ofsted Local Authority Webpage | B49: Lewisham | C49: London | D49: 2018-09-05 | E49: ILACS Focused Visit | J49: Front door
A50: =HYPERLINK("http://reports.ofsted.gov.uk/local-authorities/"&VLOOKUP(B50,'la names for weblink'!A:B,2,0),"Ofsted Local Authority Webpage") -> Ofsted Local Authority Webpage | B50: Lincolnshire | C50: East Midlands | D50: 2018-04-17 | E50: ILACS Focused Visit | J50: Achieving permanence
A51: =HYPERLINK("http://reports.ofsted.gov.uk/local-authorities/"&VLOOKUP(B51,'la names for weblink'!A:B,2,0),"Ofsted Local Authority Webpage") -> Ofsted Local Authority Webpage | B51: Liverpool | C51: North West | D51: 2018-05-14 | E51: ILACS Standard Inspection | F51: Requires improvement to be good | G51: Requires improvement to be good | H51: Requires improvement to be good | I51: Requires improvement to be good
A52: =HYPERLINK("http://reports.ofsted.gov.uk/local-authorities/"&VLOOKUP(B52,'la names for weblink'!A:B,2,0),"Ofsted Local Authority Webpage") -> Ofsted Local Authority Webpage | B52: Luton | C52: East of England | D52: 2018-06-12 | E52: ILACS Focused Visit | J52: Children in need/subject to a plan
A53: =HYPERLINK("http://reports.ofsted.gov.uk/local-authorities/"&VLOOKUP(B53,'la names for weblink'!A:B,2,0),"Ofsted Local Authority Webpage") -> Ofsted Local Authority Webpage | B53: Manchester | C53: North West | D53: 2018-09-17 | E53: ILACS Focused Visit | J53: Children in care
A54: =HYPERLINK("http://reports.ofsted.gov.uk/local-authorities/"&VLOOKUP(B54,'la names for weblink'!A:B,2,0),"Ofsted Local Authority Webpage") -> Ofsted Local Authority Webpage | B54: Middlesbrough | C54: North East, Yorkshire and The Humber | D54: 2018-08-07 | E54: ILACS Focused Visit | J54: Front door
A55: =HYPERLINK("http://reports.ofsted.gov.uk/local-authorities/"&VLOOKUP(B55,'la names for weblink'!A:B,2,0),"Ofsted Local Authority Webpage") -> Ofsted Local Authority Webpage | B55: Newcastle upon Tyne | C55: North East, Yorkshire and The Humber | D55: 2018-07-24 | E55: ILACS Focused Visit | J55: Front door
A56: =HYPERLINK("http://reports.ofsted.gov.uk/local-authorities/"&VLOOKUP(B56,'la names for weblink'!A:B,2,0),"Ofsted Local Authority Webpage") -> Ofsted Local Authority Webpage | B56: Newham | C56: London | D56: 2018-02-06 | E56: ILACS Focused Visit | J56: Children in need/subject to a plan
A57: =HYPERLINK("http://reports.ofsted.gov.uk/local-authorities/"&VLOOKUP(B57,'la names for weblink'!A:B,2,0),"Ofsted Local Authority Webpage") -> Ofsted Local Authority Webpage | B57: North Tyneside | C57: North East, Yorkshire and The Humber | D57: 2018-05-09 | E57: ILACS Focused Visit | J57: Front door
A58: =HYPERLINK("http://reports.ofsted.gov.uk/local-authorities/"&VLOOKUP(B58,'la names for weblink'!A:B,2,0),"Ofsted Local Authority Webpage") -> Ofsted Local Authority Webpage | B58: North Yorkshire | C58: North East, Yorkshire and The Humber | D58: 2018-07-02 | E58: ILACS Short Inspection | F58: Outstanding | G58: Outstanding | H58: Outstanding | I58: Outstanding
A59: =HYPERLINK("http://reports.ofsted.gov.uk/local-authorities/"&VLOOKUP(B59,'la names for weblink'!A:B,2,0),"Ofsted Local Authority Webpage") -> Ofsted Local Authority Webpage | B59: Northamptonshire | C59: East Midlands | D59: 2018-04-24 | E59: ILACS Focused Visit | J59: Children in need/subject to a plan
A60: =HYPERLINK("http://reports.ofsted.gov.uk/local-authorities/"&VLOOKUP(B60,'la names for weblink'!A:B,2,0),"Ofsted Local Authority Webpage") -> Ofsted Local Authority Webpage | B60: Northumberland | C60: North East, Yorkshire and The Humber | D60: 2018-02-06 | E60: ILACS Focused Visit | J60: Front door
A61: =HYPERLINK("http://reports.ofsted.gov.uk/local-authorities/"&VLOOKUP(B61,'la names for weblink'!A:B,2,0),"Ofsted Local Authority Webpage") -> Ofsted Local Authority Webpage | B61: Nottinghamshire | C61: East Midlands | D61: 2018-01-30 | E61: ILACS Focused Visit | J61: Care leavers
A62: =HYPERLINK("http://reports.ofsted.gov.uk/local-authorities/"&VLOOKUP(B62,'la names for weblink'!A:B,2,0),"Ofsted Local Authority Webpage") -> Ofsted Local Authority Webpage | B62: Oldham | C62: North West | D62: 2018-03-13 | E62: ILACS Focused Visit | J62: Front door
A63: =HYPERLINK("http://reports.ofsted.gov.uk/local-authorities/"&VLOOKUP(B63,'la names for weblink'!A:B,2,0),"Ofsted Local Authority Webpage") -> Ofsted Local Authority Webpage | B63: Oxfordshire | C63: South East | D63: 2018-04-16 | E63: ILACS Short Inspection | F63: Good | G63: Good | H63: Requires improvement to be good | I63: Good
A64: =HYPERLINK("http://reports.ofsted.gov.uk/local-authorities/"&VLOOKUP(B64,'la names for weblink'!A:B,2,0),"Ofsted Local Authority Webpage") -> Ofsted Local Authority Webpage | B64: Peterborough | C64: East of England | D64: 2018-06-25 | E64: ILACS Standard Inspection | F64: Good | G64: Good | H64: Good | I64: Good
A65: =HYPERLINK("http://reports.ofsted.gov.uk/local-authorities/"&VLOOKUP(B65,'la names for weblink'!A:B,2,0),"Ofsted Local Authority Webpage") -> Ofsted Local Authority Webpage | B65: Plymouth | C65: South West | D65: 2018-05-01 | E65: ILACS Focused Visit | J65: Front door
A66: =HYPERLINK("http://reports.ofsted.gov.uk/local-authorities/"&VLOOKUP(B66,'la names for weblink'!A:B,2,0),"Ofsted Local Authority Webpage") -> Ofsted Local Authority Webpage | B66: Portsmouth | C66: South East | D66: 2018-09-03 | E66: ILACS Standard Inspection | F66: Good | G66: Good | H66: Good | I66: Good
A67: =HYPERLINK("http://reports.ofsted.gov.uk/local-authorities/"&VLOOKUP(B67,'la names for weblink'!A:B,2,0),"Ofsted Local Authority Webpage") -> Ofsted Local Authority Webpage | B67: Reading | C67: South East | D67: 2018-07-31 | E67: LA Monitoring visit | J67: Care leavers
A68: =HYPERLINK("http://reports.ofsted.gov.uk/local-authorities/"&VLOOKUP(B68,'la names for weblink'!A:B,2,0),"Ofsted Local Authority Webpage") -> Ofsted Local Authority Webpage | B68: Reading | C68: South East | D68: 2018-05-15 | E68: LA Monitoring visit | J68: Children in care
A69: =HYPERLINK("http://reports.ofsted.gov.uk/local-authorities/"&VLOOKUP(B69,'la names for weblink'!A:B,2,0),"Ofsted Local Authority Webpage") -> Ofsted Local Authority Webpage | B69: Reading | C69: South East | D69: 2018-02-06 | E69: LA Monitoring visit | J69: Children in care
A70: =HYPERLINK("http://reports.ofsted.gov.uk/local-authorities/"&VLOOKUP(B70,'la names for weblink'!A:B,2,0),"Ofsted Local Authority Webpage") -> Ofsted Local Authority Webpage | B70: Rochdale | C70: North West | D70: 2018-01-29 | E70: ILACS Standard Inspection | F70: Requires improvement | G70: Requires improvement | H70: Requires improvement | I70: Good
A71: =HYPERLINK("http://reports.ofsted.gov.uk/local-authorities/"&VLOOKUP(B71,'la names for weblink'!A:B,2,0),"Ofsted Local Authority Webpage") -> Ofsted Local Authority Webpage | B71: Sandwell | C71: West Midlands | D71: 2018-09-05 | E71: LA Monitoring visit | J71: Children in care
A72: =HYPERLINK("http://reports.ofsted.gov.uk/local-authorities/"&VLOOKUP(B72,'la names for weblink'!A:B,2,0),"Ofsted Local Authority Webpage") -> Ofsted Local Authority Webpage | B72: Sandwell | C72: West Midlands | D72: 2018-05-30 | E72: LA Monitoring visit | J72: Children in care
A73: =HYPERLINK("http://reports.ofsted.gov.uk/local-authorities/"&VLOOKUP(B73,'la names for weblink'!A:B,2,0),"Ofsted Local Authority Webpage") -> Ofsted Local Authority Webpage | B73: Sefton | C73: North West | D73: 2018-09-27 | E73: ILACS Focused Visit | J73: Children in need/subject to a plan
A74: =HYPERLINK("http://reports.ofsted.gov.uk/local-authorities/"&VLOOKUP(B74,'la names for weblink'!A:B,2,0),"Ofsted Local Authority Webpage") -> Ofsted Local Authority Webpage | B74: Sheffield | C74: North East, Yorkshire and The Humber | D74: 2018-04-24 | E74: ILACS Focused Visit | J74: Front door
A75: =HYPERLINK("http://reports.ofsted.gov.uk/local-authorities/"&VLOOKUP(B75,'la names for weblink'!A:B,2,0),"Ofsted Local Authority Webpage") -> Ofsted Local Authority Webpage | B75: Slough | C75: South East | D75: 2018-05-01 | E75: LA Monitoring visit | J75: Children in care
A76: =HYPERLINK("http://reports.ofsted.gov.uk/local-authorities/"&VLOOKUP(B76,'la names for weblink'!A:B,2,0),"Ofsted Local Authority Webpage") -> Ofsted Local Authority Webpage | B76: Slough | C76: South East | D76: 2018-01-10 | E76: LA Monitoring visit | J76: Children in need/subject to a plan
A77: =HYPERLINK("http://reports.ofsted.gov.uk/local-authorities/"&VLOOKUP(B77,'la names for weblink'!A:B,2,0),"Ofsted Local Authority Webpage") -> Ofsted Local Authority Webpage | B77: Solihull | C77: West Midlands | D77: 2018-02-14 | E77: ILACS Focused Visit | J77: Care leavers
A78: =HYPERLINK("http://reports.ofsted.gov.uk/local-authorities/"&VLOOKUP(B78,'la names for weblink'!A:B,2,0),"Ofsted Local Authority Webpage") -> Ofsted Local Authority Webpage | B78: South Gloucestershire | C78: South West | D78: 2018-08-08 | E78: LA Monitoring visit | J78: Achieving permanence
A79: =HYPERLINK("http://reports.ofsted.gov.uk/local-authorities/"&VLOOKUP(B79,'la names for weblink'!A:B,2,0),"Ofsted Local Authority Webpage") -> Ofsted Local Authority Webpage | B79: South Gloucestershire | C79: South West | D79: 2018-05-22 | E79: LA Monitoring visit | J79: Children in care
A80: =HYPERLINK("http://reports.ofsted.gov.uk/local-authorities/"&VLOOKUP(B80,'la names for weblink'!A:B,2,0),"Ofsted Local Authority Webpage") -> Ofsted Local Authority Webpage | B80: South Gloucestershire | C80: South West | D80: 2018-01-31 | E80: LA Monitoring visit | J80: Children in need/subject to a plan
A81: =HYPERLINK("http://reports.ofsted.gov.uk/local-authorities/"&VLOOKUP(B81,'la names for weblink'!A:B,2,0),"Ofsted Local Authority Webpage") -> Ofsted Local Authority Webpage | B81: Southampton | C81: South East | D81: 2018-05-22 | E81: ILACS Focused Visit | J81: Care leavers
A82: =HYPERLINK("http://reports.ofsted.gov.uk/local-authorities/"&VLOOKUP(B82,'la names for weblink'!A:B,2,0),"Ofsted Local Authority Webpage") -> Ofsted Local Authority Webpage | B82: St Helens | C82: North West | D82: 2018-07-11 | E82: ILACS Focused Visit | J82: Children in need/subject to a plan
A83: =HYPERLINK("http://reports.ofsted.gov.uk/local-authorities/"&VLOOKUP(B83,'la names for weblink'!A:B,2,0),"Ofsted Local Authority Webpage") -> Ofsted Local Authority Webpage | B83: Staffordshire | C83: West Midlands | D83: 2018-06-26 | E83: ILACS Focused Visit | J83: Vulnerable adolescents
A84: =HYPERLINK("https://reports.ofsted.gov.uk/provider/44/808","Ofsted Local Authority Webpage") -> Ofsted Local Authority Webpage | B84: Stockton-on-Tees | C84: North East, Yorkshire and The Humber | D84: 2018-04-17 | E84: ILACS Focused Visit | J84: Achieving permanence
A85: =HYPERLINK("https://reports.ofsted.gov.uk/provider/44/80564","Ofsted Local Authority Webpage") -> Ofsted Local Authority Webpage | B85: Stoke-on-Trent | C85: West Midlands | D85: 2018-04-11 | E85: ILACS Focused Visit | J85: Vulnerable adolescents
A86: =HYPERLINK("http://reports.ofsted.gov.uk/local-authorities/"&VLOOKUP(B86,'la names for weblink'!A:B,2,0),"Ofsted Local Authority Webpage") -> Ofsted Local Authority Webpage | B86: Sunderland | C86: North East, Yorkshire and The Humber | D86: 2018-01-23 | E86: LA Monitoring visit | J86: Front door
A87: =HYPERLINK("http://reports.ofsted.gov.uk/local-authorities/"&VLOOKUP(B87,'la names for weblink'!A:B,2,0),"Ofsted Local Authority Webpage") -> Ofsted Local Authority Webpage | B87: Surrey | C87: South East | D87: 2018-09-11 | E87: LA Monitoring visit | J87: Children in need/subject to a plan
A88: =HYPERLINK("http://reports.ofsted.gov.uk/local-authorities/"&VLOOKUP(B88,'la names for weblink'!A:B,2,0),"Ofsted Local Authority Webpage") -> Ofsted Local Authority Webpage | B88: Sutton | C88: London | D88: 2018-06-26 | E88: ILACS Focused Visit | J88: Vulnerable adolescents
A89: =HYPERLINK("http://reports.ofsted.gov.uk/local-authorities/"&VLOOKUP(B89,'la names for weblink'!A:B,2,0),"Ofsted Local Authority Webpage") -> Ofsted Local Authority Webpage | B89: Swindon | C89: South West | D89: 2018-04-24 | E89: ILACS Focused Visit | J89: Front door
A90: =HYPERLINK("http://reports.ofsted.gov.uk/local-authorities/"&VLOOKUP(B90,'la names for weblink'!A:B,2,0),"Ofsted Local Authority Webpage") -> Ofsted Local Authority Webpage | B90: Tameside | C90: North West | D90: 2018-08-22 | E90: LA Monitoring visit | J90: Children in care
A91: =HYPERLINK("http://reports.ofsted.gov.uk/local-authorities/"&VLOOKUP(B91,'la names for weblink'!A:B,2,0),"Ofsted Local Authority Webpage") -> Ofsted Local Authority Webpage | B91: Tameside | C91: North West | D91: 2018-04-18 | E91: LA Monitoring visit | J91: Front door
A92: =HYPERLINK("http://reports.ofsted.gov.uk/local-authorities/"&VLOOKUP(B92,'la names for weblink'!A:B,2,0),"Ofsted Local Authority Webpage") -> Ofsted Local Authority Webpage | B92: Tameside | C92: North West | D92: 2018-01-10 | E92: LA Monitoring visit | J92: Children in need/subject to a plan
A93: =HYPERLINK("http://reports.ofsted.gov.uk/local-authorities/"&VLOOKUP(B93,'la names for weblink'!A:B,2,0),"Ofsted Local Authority Webpage") -> Ofsted Local Authority Webpage | B93: Telford and Wrekin | C93: West Midlands | D93: 2018-09-18 | E93: ILACS Focused Visit | J93: Achieving permanence
A94: =HYPERLINK("http://reports.ofsted.gov.uk/local-authorities/"&VLOOKUP(B94,'la names for weblink'!A:B,2,0),"Ofsted Local Authority Webpage") -> Ofsted Local Authority Webpage | B94: Thurrock | C94: East of England | D94: 2018-09-11 | E94: ILACS Focused Visit | J94: Children in need/subject to a plan
A95: =HYPERLINK("http://reports.ofsted.gov.uk/local-authorities/"&VLOOKUP(B95,'la names for weblink'!A:B,2,0),"Ofsted Local Authority Webpage") -> Ofsted Local Authority Webpage | B95: Torbay | C95: South West | D95: 2018-02-21 | E95: LA Monitoring visit | J95: Children in care
A96: =HYPERLINK("http://reports.ofsted.gov.uk/local-authorities/"&VLOOKUP(B96,'la names for weblink'!A:B,2,0),"Ofsted Local Authority Webpage") -> Ofsted Local Authority Webpage | B96: Tower Hamlets | C96: London | D96: 2018-08-15 | E96: LA Monitoring visit | J96: Achieving permanence
A97: =HYPERLINK("http://reports.ofsted.gov.uk/local-authorities/"&VLOOKUP(B97,'la names for weblink'!A:B,2,0),"Ofsted Local Authority Webpage") -> Ofsted Local Authority Webpage | B97: Tower Hamlets | C97: London | D97: 2018-05-01 | E97: LA Monitoring visit | J97: Vulnerable adolescents
A98: =HYPERLINK("http://reports.ofsted.gov.uk/local-authorities/"&VLOOKUP(B98,'la names for weblink'!A:B,2,0),"Ofsted Local Authority Webpage") -> Ofsted Local Authority Webpage | B98: Trafford | C98: North West | D98: 2018-07-10 | E98: ILACS Focused Visit | J98: Achieving permanence
A99: =HYPERLINK("http://reports.ofsted.gov.uk/local-authorities/"&VLOOKUP(B99,'la names for weblink'!A:B,2,0),"Ofsted Local Authority Webpage") -> Ofsted Local Authority Webpage | B99: Wakefield | C99: North East, Yorkshire and The Humber | D99: 2018-06-04 | E99: ILACS Standard Inspection | F99: Inadequate | G99: Inadequate | H99: Inadequate | I99: Inadequate
A100: =HYPERLINK("http://reports.ofsted.gov.uk/local-authorities/"&VLOOKUP(B100,'la names for weblink'!A:B,2,0),"Ofsted Local Authority Webpage") -> Ofsted Local Authority Webpage | B100: Wakefield | C100: North East, Yorkshire and The Humber | D100: 2018-02-27 | E100: ILACS Focused Visit | J100: Front door
A101: =HYPERLINK("http://reports.ofsted.gov.uk/local-authorities/"&VLOOKUP(B101,'la names for weblink'!A:B,2,0),"Ofsted Local Authority Webpage") -> Ofsted Local Authority Webpage | B101: Walsall | C101: West Midlands | D101: 2018-09-25 | E101: ILACS Focused Visit | J101: Care leavers
A102: =HYPERLINK("http://reports.ofsted.gov.uk/local-authorities/"&VLOOKUP(B102,'la names for weblink'!A:B,2,0),"Ofsted Local Authority Webpage") -> Ofsted Local Authority Webpage | B102: Waltham Forest | C102: London | D102: 2018-03-07 | E102: ILACS Focused Visit | J102: Front door
A103: =HYPERLINK("http://reports.ofsted.gov.uk/local-authorities/"&VLOOKUP(B103,'la names for weblink'!A:B,2,0),"Ofsted Local Authority Webpage") -> Ofsted Local Authority Webpage | B103: Wandsworth | C103: London | D103: 2018-03-21 | E103: LA Monitoring visit | J103: Front door
A104: =HYPERLINK("http://reports.ofsted.gov.uk/local-authorities/"&VLOOKUP(B104,'la names for weblink'!A:B,2,0),"Ofsted Local Authority Webpage") -> Ofsted Local Authority Webpage | B104: Warrington | C104: North West | D104: 2018-01-31 | E104: ILACS Focused Visit | J104: Children in need/subject to a plan
A105: =HYPERLINK("http://reports.ofsted.gov.uk/local-authorities/"&VLOOKUP(B105,'la names for weblink'!A:B,2,0),"Ofsted Local Authority Webpage") -> Ofsted Local Authority Webpage | B105: Warwickshire | C105: West Midlands | D105: 2018-07-17 | E105: ILACS Focused Visit | J105: Children in need/subject to a plan
A106: =HYPERLINK("http://reports.ofsted.gov.uk/local-authorities/"&VLOOKUP(B106,'la names for weblink'!A:B,2,0),"Ofsted Local Authority Webpage") -> Ofsted Local Authority Webpage | B106: West Sussex | C106: South East | D106: 2018-03-20 | E106: ILACS Focused Visit | J106: Front door
A107: =HYPERLINK("http://reports.ofsted.gov.uk/local-authorities/"&VLOOKUP(B107,'la names for weblink'!A:B,2,0),"Ofsted Local Authority Webpage") -> Ofsted Local Authority Webpage | B107: Westminster | C107: London | D107: 2018-08-07 | E107: ILACS Focused Visit | J107: Front door
A108: =HYPERLINK("http://reports.ofsted.gov.uk/local-authorities/"&VLOOKUP(B108,'la names for weblink'!A:B,2,0),"Ofsted Local Authority Webpage") -> Ofsted Local Authority Webpage | B108: Wirral | C108: North West | D108: 2018-09-04 | E108: LA Monitoring visit | J108: Children in need/subject to a plan
A109: =HYPERLINK("http://reports.ofsted.gov.uk/local-authorities/"&VLOOKUP(B109,'la names for weblink'!A:B,2,0),"Ofsted Local Authority Webpage") -> Ofsted Local Authority Webpage | B109: Wirral | C109: North West | D109: 2018-05-30 | E109: LA Monitoring visit | J109: Children in care
A110: =HYPERLINK("http://reports.ofsted.gov.uk/local-authorities/"&VLOOKUP(B110,'la names for weblink'!A:B,2,0),"Ofsted Local Authority Webpage") -> Ofsted Local Authority Webpage | B110: Wirral | C110: North West | D110: 2018-03-14 | E110: LA Monitoring visit | J110: Front door
A111: =HYPERLINK("http://reports.ofsted.gov.uk/local-authorities/"&VLOOKUP(B111,'la names for weblink'!A:B,2,0),"Ofsted Local Authority Webpage") -> Ofsted Local Authority Webpage | B111: Wolverhampton | C111: West Midlands | D111: 2018-09-11 | E111: ILACS Focused Visit | J111: Children in need/subject to a plan
A112: =HYPERLINK("http://reports.ofsted.gov.uk/local-authorities/"&VLOOKUP(B112,'la names for weblink'!A:B,2,0),"Ofsted Local Authority Webpage") -> Ofsted Local Authority Webpage | B112: Worcestershire | C112: West Midlands | D112: 2018-07-11 | E112: LA Monitoring visit | J112: Children in need/subject to a plan
A113: =HYPERLINK("http://reports.ofsted.gov.uk/local-authorities/"&VLOOKUP(B113,'la names for weblink'!A:B,2,0),"Ofsted Local Authority Webpage") -> Ofsted Local Authority Webpage | B113: Worcestershire | C113: West Midlands | D113: 2018-04-18 | E113: LA Monitoring visit | J113: Care leavers
A114: =HYPERLINK("http://reports.ofsted.gov.uk/local-authorities/"&VLOOKUP(B114,'la names for weblink'!A:B,2,0),"Ofsted Local Authority Webpage") -> Ofsted Local Authority Webpage | B114: Worcestershire | C114: West Midlands | D114: 2018-01-30 | E114: LA Monitoring visit | J114: Children in care

Sheet Provider level at 30 Sep 2018
A1: Provider information | Q1: Latest Full Inspection
A2: Web link | B2: URN | C2: Provision type | D2: Registration status | E2: Name | F2: Address 1 | G2: Address 2 | H2: Town | I2: County | J2: Postcode | K2: Ofsted region | L2: Government Office Region | M2: Local authority | N2: Parliamentary constituency | O2: Sector | P2: Organisation which owns the children's home | Q2: Event type | R2: Inspection date | S2: Publication date | T2: Event number | U2: Overall experiences and progress of children and young people | V2: Outcomes in education and related learning activities | W2: Quality of care | X2: How well children and young people are helped and protected | Y2: The effectiveness of leaders and managers
A3: =HYPERLINK("http://reports.ofsted.gov.uk/inspection-reports/find-inspection-report/provider/CARE/1027158","Ofsted Social Care Provider Webpage") -> Ofsted Social Care Provider Webpage | B3: 1027158 | C3: Children's home | D3: Active | E3: REDACTED | F3: REDACTED | G3: REDACTED | H3: REDACTED | I3: REDACTED | J3: REDACTED | K3: East of England | L3: East of England | M3: Norfolk | N3: South West Norfolk | O3: Private | P3: Unique Care Homes Support Limited | Q3: Full inspection | R3: 2018-09-12 | S3: 2018-09-28 | T3: 10050924 | U3: Good | X3: Requires improvement to be good | Y3: Good
A4: =HYPERLINK("http://reports.ofsted.gov.uk/inspection-reports/find-inspection-report/provider/CARE/1027164","Ofsted Social Care Provider Webpage") -> Ofsted Social Care Provider Webpage | B4: 1027164 | C4: Children's home | D4: Active | E4: REDACTED | F4: REDACTED | G4: REDACTED | H4: REDACTED | I4: REDACTED | J4: REDACTED | K4: North West | L4: North West | M4: Cheshire West and Chester | N4: Eddisbury | O4: Private | P4: Care 4 Children Residential Services Ltd | Q4: Full inspection | R4: 2018-05-08 | S4: 2018-06-06 | T4: 10050917 | U4: Outstanding | X4: Outstanding | Y4: Outstanding
A5: =HYPERLINK("http://reports.ofsted.gov.uk/inspection-reports/find-inspection-report/provider/CARE/1155757","Ofsted Social Care Provider Webpage") -> Ofsted Social Care Provider Webpage | B5: 1155757 | C5: Children's home | D5: Active | E5: REDACTED | F5: REDACTED | G5: REDACTED | H5: REDACTED | I5: REDACTED | J5: REDACTED | K5: North East, Yorkshire and the Humber | L5: North East | M5: Northumberland | N5: Wansbeck | O5: Local Authority | P5: Northumberland County Council | Q5: Full inspection | R5: 2018-05-30 | S5: 2018-06-26 | T5: 10050898 | U5: Good | X5: Good | Y5: Outstanding
A6: =HYPERLINK("http://reports.ofsted.gov.uk/inspection-reports/find-inspection-report/provider/CARE/1155761","Ofsted Social Care Provider Webpage") -> Ofsted Social Care Provider Webpage | B6: 1155761 | C6: Children's home | D6: Active | E6: REDACTED | F6: REDACTED | G6: REDACTED | H6: REDACTED | I6: REDACTED | J6: REDACTED | K6: South West | L6: South West | M6: Gloucestershire | N6: Gloucester | O6: Private | P6: Carbrey Care Ltd | Q6: Full inspection | R6: 2018-07-25 | S6: 2018-08-24 | T6: 10050939 | U6: Good | X6: Good | Y6: Requires improvement to be good
A7: =HYPERLINK("http://reports.ofsted.gov.uk/inspection-reports/find-inspection-report/provider/CARE/1155768","Ofsted Social Care Provider Webpage") -> Ofsted Social Care Provider Webpage | B7: 1155768 | C7: Children's home | D7: Active | E7: REDACTED | F7: REDACTED | G7: REDACTED | H7: REDACTED | I7: REDACTED | J7: REDACTED | K7: West Midlands | L7: West Midlands | M7: Worcestershire | N7: Worcester | O7: Local Authority | P7: Worcestershire County Council | Q7: Full inspection | R7: 2018-01-15 | S7: 2018-02-28 | T7: 10028777 | U7: Outstanding | X7: Outstanding | Y7: Outstanding
A8: =HYPERLINK("http://reports.ofsted.gov.uk/inspection-reports/find-inspection-report/provider/CARE/1155775","Ofsted Social Care Provider Webpage") -> Ofsted Social Care Provider Webpage | B8: 1155775 | C8: Children's home | D8: Active | E8: REDACTED | F8: REDACTED | G8: REDACTED | H8: REDACTED | I8: REDACTED | J8: REDACTED | K8: North West | L8: North West | M8: Manchester | N8: Manchester, Gorton | O8: Private | P8: The Cambian Group | Q8: Full inspection | R8: 2018-05-30 | S8: 2018-06-26 | T8: 10050930 | U8: Good | X8: Good | Y8: Good
A9: =HYPERLINK("http://reports.ofsted.gov.uk/inspection-reports/find-inspection-report/provider/CARE/1155780","Ofsted Social Care Provider Webpage") -> Ofsted Social Care Provider Webpage | B9: 1155780 | C9: Children's home | D9: Active | E9: REDACTED | F9: REDACTED | G9: REDACTED | H9: REDACTED | I9: REDACTED | J9: REDACTED | K9: West Midlands | L9: West Midlands | M9: Shropshire | N9: North Shropshire | O9: Private | P9: The Cambian Group | Q9: Full inspection | R9: 2017-12-06 | S9: 2018-01-19 | T9: 10028833 | U9: Outstanding | X9: Outstanding | Y9: Outstanding
A10: =HYPERLINK("http://reports.ofsted.gov.uk/inspection-reports/find-inspection-report/provider/CARE/1156098","Ofsted Social Care Provider Webpage") -> Ofsted Social Care Provider Webpage | B10: 1156098 | C10: Children's home | D10: Active | E10: REDACTED | F10: REDACTED | G10: REDACTED | H10: REDACTED | I10: REDACTED | J10: REDACTED | K10: North West | L10: North West | M10: Bolton | N10: Bolton South East | O10: Private | P10: The Cambian Group | Q10: Full inspection | R10: 2018-09-26 | S10: 2018-10-23 | T10: 10050978 | U10: Good | X10: Good | Y10: Requires improvement to be good
A11: =HYPERLINK("http://reports.ofsted.gov.uk/inspection-reports/find-inspection-report/provider/CARE/1156103","Ofsted Social Care Provider Webpage") -> Ofsted Social Care Provider Webpage | B11: 1156103 | C11: Children's home | D11: Active | E11: REDACTED | F11: REDACTED | G11: REDACTED | H11: REDACTED | I11: REDACTED | J11: REDACTED | K11: West Midlands | L11: West Midlands | M11: Shropshire | N11: Shrewsbury and Atcham | O11: Private | P11: The Cambian Group | Q11: Full inspection | R11: 2018-07-11 | S11: 2018-08-15 | T11: 10050988 | U11: Good | X11: Good | Y11: Good
A12: =HYPERLINK("http://reports.ofsted.gov.uk/inspection-reports/find-inspection-report/provider/CARE/1159258","Ofsted Social Care Provider Webpage") -> Ofsted Social Care Provider Webpage | B12: 1159258 | C12: Children's home | D12: Active | E12: REDACTED | F12: REDACTED | G12: REDACTED | H12: REDACTED | I12: REDACTED | J12: REDACTED | K12: North West | L12: North West | M12: Manchester | N12: Blackley and Broughton | O12: Private | P12: The Cambian Group | Q12: Full inspection | R12: 2018-07-10 | S12: 2018-07-31 | T12: 10050947 | U12: Good | X12: Good | Y12: Requires improvement to be good
A13: =HYPERLINK("http://reports.ofsted.gov.uk/inspection-reports/find-inspection-report/provider/CARE/1159272","Ofsted Social Care Provider Webpage") -> Ofsted Social Care Provider Webpage | B13: 1159272 | C13: Children's home | D13: Active | E13: REDACTED | F13: REDACTED | G13: REDACTED | H13: REDACTED | I13: REDACTED | J13: REDACTED | K13: North East, Yorkshire and the Humber | L13: Yorkshire and The Humber | M13: North Yorkshire | N13: Selby and Ainsty | O13: Private | P13: The Cambian Group | Q13: Full inspection | R13: 2018-06-05 | S13: 2018-07-13 | T13: 10050937 | U13: Good | X13: Good | Y13: Requires improvement to be good
A14: =HYPERLINK("http://reports.ofsted.gov.uk/inspection-reports/find-inspection-report/provider/CARE/1159385","Ofsted Social Care Provider Webpage") -> Ofsted Social Care Provider Webpage | B14: 1159385 | C14: Children's home | D14: Active | E14: REDACTED | F14: REDACTED | G14: REDACTED | H14: REDACTED | I14: REDACTED | J14: REDACTED | K14: West Midlands | L14: West Midlands | M14: Shropshire | N14: North Shropshire | O14: Private | P14: The Cambian Group | Q14: Full inspection | R14: 2017-07-27 | S14: 2017-08-18 | T14: 10028934 | U14: Good | X14: Good | Y14: Good
A15: =HYPERLINK("http://reports.ofsted.gov.uk/inspection-reports/find-inspection-report/provider/CARE/1159397","Ofsted Social Care Provider Webpage") -> Ofsted Social Care Provider Webpage | B15: 1159397 | C15: Children's home | D15: Active | E15: REDACTED | F15: REDACTED | G15: REDACTED | H15: REDACTED | I15: REDACTED | J15: REDACTED | K15: North East, Yorkshire and the Humber | L15: Yorkshire and The Humber | M15: North Yorkshire | N15: Selby and Ainsty | O15: Private | P15: The Cambian Group | Q15: Full inspection | R15: 2018-06-13 | S15: 2018-07-19 | T15: 10051013 | U15: Requires improvement to be good | X15: Requires improvement to be good | Y15: Requires improvement to be good
A16: =HYPERLINK("http://reports.ofsted.gov.uk/inspection-reports/find-inspection-report/provider/CARE/1159682","Ofsted Social Care Provider Webpage") -> Ofsted Social Care Provider Webpage | B16: 1159682 | C16: Children's home | D16: Active | E16: REDACTED | F16: REDACTED | G16: REDACTED | H16: REDACTED | I16: REDACTED | J16: REDACTED | K16: London | L16: London | M16: Islington | N16: Islington South and Finsbury | O16: Voluntary | P16: St Christopher's Fellowship | Q16: Full inspection | R16: 2018-06-04 | S16: 2018-06-28 | T16: 10050928 | U16: Requires improvement to be good | X16: Requires improvement to be good | Y16: Good
A17: =HYPERLINK("http://reports.ofsted.gov.uk/inspection-reports/find-inspection-report/provider/CARE/1159755","Ofsted Social Care Provider Webpage") -> Ofsted Social Care Provider Webpage | B17: 1159755 | C17: Children's home | D17: Active | E17: REDACTED | F17: REDACTED | G17: REDACTED | H17: REDACTED | I17: REDACTED | J17: REDACTED | K17: London | L17: London | M17: Ealing | N17: Ealing Central and Acton | O17: Voluntary | P17: St Christopher's Fellowship | Q17: Full inspection | R17: 2018-05-08 | S17: 2018-06-06 | T17: 10050936 | U17: Outstanding | X17: Outstanding | Y17: Outstanding
A18: =HYPERLINK("http://reports.ofsted.gov.uk/inspection-reports/find-inspection-report/provider/CARE/1159763","Ofsted Social Care Provider Webpage") -> Ofsted Social Care Provider Webpage | B18: 1159763 | C18: Children's home | D18: Active | E18: REDACTED | F18: REDACTED | G18: REDACTED | H18: REDACTED | I18: REDACTED | J18: REDACTED | K18: North East, Yorkshire and the Humber | L18: North East | M18: Darlington | N18: Sedgefield | O18: Private | P18: Witherslack Group Ltd | Q18: Full inspection | R18: 2018-01-09 | S18: 2018-02-14 | T18: 10028798 | U18: Outstanding | X18: Outstanding | Y18: Outstanding
A19: =HYPERLINK("http://reports.ofsted.gov.uk/inspection-reports/find-inspection-report/provider/CARE/1159868","Ofsted Social Care Provider Webpage") -> Ofsted Social Care Provider Webpage | B19: 1159868 | C19: Children's home | D19: Active | E19: REDACTED | F19: REDACTED | G19: REDACTED | H19: REDACTED | I19: REDACTED | J19: REDACTED | K19: South West | L19: South West | M19: Dorset | N19: West Dorset | O19: Private | P19: The Cambian Group | Q19: Full inspection | R19: 2018-08-21 | S19: 2018-09-28 | T19: 10050950 | U19: Requires improvement to be good | X19: Requires improvement to be good | Y19: Requires improvement to be good
A20: =HYPERLINK("http://reports.ofsted.gov.uk/inspection-reports/find-inspection-report/provider/CARE/1159884","Ofsted Social Care Provider Webpage") -> Ofsted Social Care Provider Webpage | B20: 1159884 | C20: Children's home | D20: Active | E20: REDACTED | F20: REDACTED | G20: REDACTED | H20: REDACTED | I20: REDACTED | J20: REDACTED | K20: North East, Yorkshire and the Humber | L20: North East | M20: Stockton-on-Tees | N20: Stockton North | O20: Private | P20: Spark Of Genius North East Llp | Q20: Full inspection | R20: 2017-06-06 | S20: 2017-07-03 | T20: 10028883 | U20: Good | X20: Good | Y20: Good
A21: =HYPERLINK("http://reports.ofsted.gov.uk/inspection-reports/find-inspection-report/provider/CARE/1159903","Ofsted Social Care Provider Webpage") -> Ofsted Social Care Provider Webpage | B21: 1159903 | C21: Children's home | D21: Active | E21: REDACTED | F21: REDACTED | G21: REDACTED | H21: REDACTED | I21: REDACTED | J21: REDACTED | K21: North West | L21: North West | M21: Salford | N21: Salford and Eccles | O21: Private | P21: Holistic Approach Ltd | Q21: Full inspection | R21: 2017-12-13 | S21: 2018-01-19 | T21: 10028814 | U21: Outstanding | X21: Outstanding | Y21: Outstanding
A22: =HYPERLINK("http://reports.ofsted.gov.uk/inspection-reports/find-inspection-report/provider/CARE/1164089","Ofsted Social Care Provider Webpage") -> Ofsted Social Care Provider Webpage | B22: 1164089 | C22: Children's home | D22: Active | E22: REDACTED | F22: REDACTED | G22: REDACTED | H22: REDACTED | I22: REDACTED | J22: REDACTED | K22: East of England | L22: East of England | M22: Hertfordshire | N22: St Albans | O22: Private | P22: Broadwood Residential Limited | Q22: Full inspection | R22: 2018-09-05 | S22: 2018-09-24 | T22: 10050919 | U22: Requires improvement to be good | X22: Requires improvement to be good | Y22: Requires improvement to be good
A23: =HYPERLINK("http://reports.ofsted.gov.uk/inspection-reports/find-inspection-report/provider/CARE/1183069","Ofsted Social Care Provider Webpage") -> Ofsted Social Care Provider Webpage | B23: 1183069 | C23: Children's home | D23: Active | E23: REDACTED | F23: REDACTED | G23: REDACTED | H23: REDACTED | I23: REDACTED | J23: REDACTED | K23: East of England | L23: East of England | M23: Suffolk | N23: Ipswich | O23: Private | P23: The Priory Group | Q23: Full inspection | R23: 2017-11-20 | S23: 2017-12-22 | T23: 10028809 | U23: Good | X23: Good | Y23: Good
A24: =HYPERLINK("http://reports.ofsted.gov.uk/inspection-reports/find-inspection-report/provider/CARE/1183136","Ofsted Social Care Provider Webpage") -> Ofsted Social Care Provider Webpage | B24: 1183136 | C24: Children's home | D24: Active | E24: REDACTED | F24: REDACTED | G24: REDACTED | H24: REDACTED | I24: REDACTED | J24: REDACTED | K24: East Midlands | L24: East Midlands | M24: Nottingham | N24: Nottingham North | O24: Voluntary | P24: Nottinghamshire Ymca | Q24: Full inspection | R24: 2018-06-26 | S24: 2018-07-10 | T24: 10050926 | U24: Good | X24: Good | Y24: Good
A25: =HYPERLINK("http://reports.ofsted.gov.uk/inspection-reports/find-inspection-report/provider/CARE/1183173","Ofsted Social Care Provider Webpage") -> Ofsted Social Care Provider Webpage | B25: 1183173 | C25: Children's home | D25: Active | E25: REDACTED | F25: REDACTED | G25: REDACTED | H25: REDACTED | I25: REDACTED | J25: REDACTED | K25: East Midlands | L25: East Midlands | M25: Northamptonshire | N25: Wellingborough | O25: Private | P25: Tlc Youth Care Limited | Q25: Full inspection | R25: 2017-05-02 | S25: 2017-05-22 | T25: 10028829 | U25: Good | X25: Good | Y25: Good
A26: =HYPERLINK("http://reports.ofsted.gov.uk/inspection-reports/find-inspection-report/provider/CARE/1183197","Ofsted Social Care Provider Webpage") -> Ofsted Social Care Provider Webpage | B26: 1183197 | C26: Children's home | D26: Active | E26: REDACTED | F26: REDACTED | G26: REDACTED | H26: REDACTED | I26: REDACTED | J26: REDACTED | K26: North East, Yorkshire and the Humber | L26: Yorkshire and The Humber | M26: Wakefield | N26: Hemsworth | O26: Private | P26: Keswick Care Ltd | Q26: Full inspection | R26: 2018-04-23 | S26: 2018-06-13 | T26: 10050948 | U26: Good | X26: Good | Y26: Requires improvement to be good
A27: =HYPERLINK("http://reports.ofsted.gov.uk/inspection-reports/find-inspection-report/provider/CARE/1183479","Ofsted Social Care Provider Webpage") -> Ofsted Social Care Provider Webpage | B27: 1183479 | C27: Children's home | D27: Active | E27: REDACTED | F27: REDACTED | G27: REDACTED | H27: REDACTED | I27: REDACTED | J27: REDACTED | K27: South East | L27: South East | M27: Slough | N27: Slough | O27: Voluntary | P27: Slough Children's Services Trust Limited (09487106) | Q27: Full inspection | R27: 2018-05-23 | S27: 2018-07-04 | T27: 10050933 | U27: Requires improvement to be good | X27: Good | Y27: Inadequate
A28: =HYPERLINK("http://reports.ofsted.gov.uk/inspection-reports/find-inspection-report/provider/CARE/1183494","Ofsted Social Care Provider Webpage") -> Ofsted Social Care Provider Webpage | B28: 1183494 | C28: Children's home | D28: Active | E28: REDACTED | F28: REDACTED | G28: REDACTED | H28: REDACTED | I28: REDACTED | J28: REDACTED | K28: South East | L28: South East | M28: Slough | N28: Slough | O28: Voluntary | P28: Slough Children's Services Trust Limited (09487106) | Q28: Full inspection | R28: 2018-05-02 | S28: 2018-06-13 | T28: 10050934 | U28: Requires improvement to be good | X28: Requires improvement to be good | Y28: Inadequate
A29: =HYPERLINK("http://reports.ofsted.gov.uk/inspection-reports/find-inspection-report/provider/CARE/1183574","Ofsted Social Care Provider Webpage") -> Ofsted Social Care Provider Webpage | B29: 1183574 | C29: Children's home | D29: Active | E29: REDACTED | F29: REDACTED | G29: REDACTED | H29: REDACTED | I29: REDACTED | J29: REDACTED | K29: North West | L29: North West | M29: Cheshire West and Chester | N29: City of Chester | O29: Local Authority | P29: Cheshire West and Chester Council | Q29: Full inspection | R29: 2017-06-20 | S29: 2017-07-19 | T29: 10028858 | U29: Outstanding | X29: Outstanding | Y29: Outstanding
A30: =HYPERLINK("http://reports.ofsted.gov.uk/inspection-reports/find-inspection-report/provider/CARE/1183605","Ofsted Social Care Provider Webpage") -> Ofsted Social Care Provider Webpage | B30: 1183605 | C30: Children's home | D30: Active | E30: REDACTED | F30: REDACTED | G30: REDACTED | H30: REDACTED | I30: REDACTED | J30: REDACTED | K30: North West | L30: North West | M30: Lancashire | N30: Lancaster and Fleetwood | O30: Private | P30: Lonsdale Care Ltd | Q30: Full inspection | R30: 2017-06-01 | S30: 2017-06-27 | T30: 10028881 | U30: Good | X30: Good | Y30: Good
A31: =HYPERLINK("http://reports.ofsted.gov.uk/inspection-reports/find-inspection-report/provider/CARE/1183618","Ofsted Social Care Provider Webpage") -> Ofsted Social Care Provider Webpage | B31: 1183618 | C31: Children's home | D31: Active | E31: REDACTED | F31: REDACTED | G31: REDACTED | H31: REDACTED | I31: REDACTED | J31: REDACTED | K31: South West | L31: South West | M31: Cornwall | N31: Camborne and Redruth | O31: Voluntary | P31: Devon & Cornwall Autistic Community Trust (t/a Spectrum) | Q31: Full inspection | R31: 2017-11-21 | S31: 2017-12-14 | T31: 10028818 | U31: Good | X31: Good | Y31: Good
A32: =HYPERLINK("http://reports.ofsted.gov.uk/inspection-reports/find-inspection-report/provider/CARE/1183621","Ofsted Social Care Provider Webpage") -> Ofsted Social Care Provider Webpage | B32: 1183621 | C32: Children's home | D32: Active | E32: REDACTED | F32: REDACTED | G32: REDACTED | H32: REDACTED | I32: REDACTED | J32: REDACTED | K32: East of England | L32: East of England | M32: Essex | N32: Harlow | O32: Private | P32: A&t Home Ltd | Q32: Full inspection | R32: 2018-07-30 | S32: 2018-09-06 | T32: 10050987 | U32: Requires improvement to be good | X32: Requires improvement to be good | Y32: Requires improvement to be good
A33: =HYPERLINK("http://reports.ofsted.gov.uk/inspection-reports/find-inspection-report/provider/CARE/1183799","Ofsted Social Care Provider Webpage") -> Ofsted Social Care Provider Webpage | B33: 1183799 | C33: Children's home | D33: Active | E33: REDACTED | F33: REDACTED | G33: REDACTED | H33: REDACTED | I33: REDACTED | J33: REDACTED | K33: South East | L33: South East | M33: Slough | N33: Slough | O33: Private | P33: Quality Care Homes (uk) Limited | Q33: Full inspection | R33: 2017-08-31 | S33: 2017-12-07 | T33: 10028835 | U33: Good | X33: Good | Y33: Requires improvement to be good
A34: =HYPERLINK("http://reports.ofsted.gov.uk/inspection-reports/find-inspection-report/provider/CARE/1183826","Ofsted Social Care Provider Webpage") -> Ofsted Social Care Provider Webpage | B34: 1183826 | C34: Children's home | D34: Active | E34: REDACTED | F34: REDACTED | G34: REDACTED | H34: REDACTED | I34: REDACTED | J34: REDACTED | K34: North East, Yorkshire and the Humber | L34: North East | M34: Sunderland | N34: Sunderland Central | O34: Private | P34: Sunderland Care And Support Limited | Q34: Full inspection | R34: 2017-10-10 | S34: 2017-11-13 | T34: 10028893 | U34: Good | X34: Good | Y34: Good
A35: =HYPERLINK("http://reports.ofsted.gov.uk/inspection-reports/find-inspection-report/provider/CARE/1183911","Ofsted Social Care Provider Webpage") -> Ofsted Social Care Provider Webpage | B35: 1183911 | C35: Residential special school (registered as a children's home) | D35: Active | E35: REDACTED | F35: REDACTED | G35: REDACTED | H35: REDACTED | I35: REDACTED | J35: REDACTED | K35: North East, Yorkshire and the Humber | L35: Yorkshire and The Humber | M35: Calderdale | N35: Halifax | O35: Private | P35: Young Foundations Limited | Q35: Full inspection | R35: 2017-08-22 | S35: 2017-09-12 | T35: 10028828 | U35: Good | X35: Good | Y35: Good
A36: =HYPERLINK("http://reports.ofsted.gov.uk/inspection-reports/find-inspection-report/provider/CARE/1183936","Ofsted Social Care Provider Webpage") -> Ofsted Social Care Provider Webpage | B36: 1183936 | C36: Children's home | D36: Active | E36: REDACTED | F36: REDACTED | G36: REDACTED | H36: REDACTED | I36: REDACTED | J36: REDACTED | K36: London | L36: London | M36: Bromley | N36: Bromley and Chislehurst | O36: Private | P36: Acorn Homes (uk) Ltd | Q36: Full inspection | R36: 2018-05-01 | S36: 2018-05-30 | T36: 10050922 | U36: Good | X36: Good | Y36: Good
A37: =HYPERLINK("http://reports.ofsted.gov.uk/inspection-reports/find-inspection-report/provider/CARE/1183937","Ofsted Social Care Provider Webpage") -> Ofsted Social Care Provider Webpage | B37: 1183937 | C37: Children's home | D37: Active | E37: REDACTED | F37: REDACTED | G37: REDACTED | H37: REDACTED | I37: REDACTED | J37: REDACTED | K37: East Midlands | L37: East Midlands | M37: Northamptonshire | N37: Kettering | O37: Private | P37: NULL | Q37: Full inspection | R37: 2018-05-15 | S37: 2018-06-07 | T37: 10050952 | U37: Good | X37: Good | Y37: Good
A38: =HYPERLINK("http://reports.ofsted.gov.uk/inspection-reports/find-inspection-report/provider/CARE/1184093","Ofsted Social Care Provider Webpage") -> Ofsted Social Care Provider Webpage | B38: 1184093 | C38: Children's home | D38: Active | E38: REDACTED | F38: REDACTED | G38: REDACTED | H38: REDACTED | I38: REDACTED | J38: REDACTED | K38: North West | L38: North West | M38: Blackpool | N38: Blackpool North and Cleveleys | O38: Private | P38: Sandcastle Care Ltd | Q38: Full inspection | R38: 2017-11-07 | S38: 2017-11-28 | T38: 10028850 | U38: Good | X38: Outstanding | Y38: Good
A39: =HYPERLINK("http://reports.ofsted.gov.uk/inspection-reports/find-inspection-report/provider/CARE/1185488","Ofsted Social Care Provider Webpage") -> Ofsted Social Care Provider Webpage | B39: 1185488 | C39: Children's home | D39: Active | E39: REDACTED | F39: REDACTED | G39: REDACTED | H39: REDACTED | I39: REDACTED | J39: REDACTED | K39: South East | L39: South East | M39: Reading | N39: Reading East | O39: Private | P39: Kennet Care Limited | Q39: Full inspection | R39: 2018-06-26 | S39: 2018-07-18 | T39: 10050963 | U39: Good | X39: Requires improvement to be good | Y39: Good
A40: =HYPERLINK("http://reports.ofsted.gov.uk/inspection-reports/find-inspection-report/provider/CARE/1185765","Ofsted Social Care Provider Webpage") -> Ofsted Social Care Provider Webpage | B40: 1185765 | C40: Children's home | D40: Active | E40: REDACTED | F40: REDACTED | G40: REDACTED | H40: REDACTED | I40: REDACTED | J40: REDACTED | K40: West Midlands | L40: West Midlands | M40: Staffordshire | N40: Cannock Chase | O40: Private | P40: Horizon Care And Education Group Limited | Q40: Full inspection | R40: 2017-11-07 | S40: 2018-01-02 | T40: 10028843 | U40: Good | X40: Requires improvement to be good | Y40: Good
A41: =HYPERLINK("http://reports.ofsted.gov.uk/inspection-reports/find-inspection-report/provider/CARE/1185768","Ofsted Social Care Provider Webpage") -> Ofsted Social Care Provider Webpage | B41: 1185768 | C41: Children's home | D41: Active | E41: REDACTED | F41: REDACTED | G41: REDACTED | H41: REDACTED | I41: REDACTED | J41: REDACTED | K41: South West | L41: South West | M41: Somerset | N41: Bridgwater and West Somerset | O41: Private | P41: South West Mental Health Ltd | Q41: Full inspection | R41: 2018-07-31 | S41: 2018-08-23 | T41: 10050951 | U41: Requires improvement to be good | X41: Requires improvement to be good | Y41: Requires improvement to be good
A42: =HYPERLINK("http://reports.ofsted.gov.uk/inspection-reports/find-inspection-report/provider/CARE/1185828","Ofsted Social Care Provider Webpage") -> Ofsted Social Care Provider Webpage | B42: 1185828 | C42: Children's home | D42: Active | E42: REDACTED | F42: REDACTED | G42: REDACTED | H42: REDACTED | I42: REDACTED | J42: REDACTED | K42: North West | L42: North West | M42: Wigan | N42: Wigan | O42: Private | P42: Next Stage 4 Life | Q42: Full inspection | R42: 2018-07-23 | S42: 2018-08-13 | T42: 10050996 | U42: Good | X42: Good | Y42: Requires improvement to be good
A43: =HYPERLINK("http://reports.ofsted.gov.uk/inspection-reports/find-inspection-report/provider/CARE/1205501","Ofsted Social Care Provider Webpage") -> Ofsted Social Care Provider Webpage | B43: 1205501 | C43: Children's home | D43: Active | E43: REDACTED | F43: REDACTED | G43: REDACTED | H43: REDACTED | I43: REDACTED | J43: REDACTED | K43: East Midlands | L43: East Midlands | M43: Nottinghamshire | N43: Newark | O43: Private | P43: Castle Homes Care Ltd | Q43: Full inspection | R43: 2018-07-03 | S43: 2018-07-27 | T43: 10055279 | U43: Inadequate | X43: Inadequate | Y43: Inadequate
A44: =HYPERLINK("http://reports.ofsted.gov.uk/inspection-reports/find-inspection-report/provider/CARE/1211772","Ofsted Social Care Provider Webpage") -> Ofsted Social Care Provider Webpage | B44: 1211772 | C44: Children's home | D44: Active | E44: REDACTED | F44: REDACTED | G44: REDACTED | H44: REDACTED | I44: REDACTED | J44: REDACTED | K44: North East, Yorkshire and the Humber | L44: Yorkshire and The Humber | M44: North Yorkshire | N44: Richmond (Yorks) | O44: Private | P44: The Priory Group | Q44: Full inspection | R44: 2017-08-08 | S44: 2017-09-18 | T44: 10028847 | U44: Good | X44: Good | Y44: Good
A45: =HYPERLINK("http://reports.ofsted.gov.uk/inspection-reports/find-inspection-report/provider/CARE/1212094","Ofsted Social Care Provider Webpage") -> Ofsted Social Care Provider Webpage | B45: 1212094 | C45: Children's home | D45: Active | E45: REDACTED | F45: REDACTED | G45: REDACTED | H45: REDACTED | I45: REDACTED | J45: REDACTED | K45: North West | L45: North West | M45: Salford | N45: Worsley and Eccles South | O45: Private | P45: Hexagon Care Services Limited | Q45: Full inspection | R45: 2018-05-21 | S45: 2018-06-19 | T45: 10050997 | U45: Good | X45: Good | Y45: Outstanding
A46: =HYPERLINK("http://reports.ofsted.gov.uk/inspection-reports/find-inspection-report/provider/CARE/1212117","Ofsted Social Care Provider Webpage") -> Ofsted Social Care Provider Webpage | B46: 1212117 | C46: Children's home | D46: Active | E46: REDACTED | F46: REDACTED | G46: REDACTED | H46: REDACTED | I46: REDACTED | J46: REDACTED | K46: East Midlands | L46: East Midlands | M46: Nottinghamshire | N46: Gedling | O46: Private | P46: Pathway Care Solutions Ltd 04004053 | Q46: Full inspection | R46: 2018-07-17 | S46: 2018-08-02 | T46: 10050964 | U46: Good | X46: Good | Y46: Good
A47: =HYPERLINK("http://reports.ofsted.gov.uk/inspection-reports/find-inspection-report/provider/CARE/1212704","Ofsted Social Care Provider Webpage") -> Ofsted Social Care Provider Webpage | B47: 1212704 | C47: Children's home | D47: Active | E47: REDACTED | F47: REDACTED | G47: REDACTED | H47: REDACTED | I47: REDACTED | J47: REDACTED | K47: North East, Yorkshire and the Humber | L47: Yorkshire and The Humber | M47: North Yorkshire | N47: Skipton and Ripon | O47: Private | P47: Hexagon Care Services Limited | Q47: Full inspection | R47: 2017-10-17 | S47: 2017-11-22 | T47: 10028986 | U47: Good | X47: Good | Y47: Good
A48: =HYPERLINK("http://reports.ofsted.gov.uk/inspection-reports/find-inspection-report/provider/CARE/1212708","Ofsted Social Care Provider Webpage") -> Ofsted Social Care Provider Webpage | B48: 1212708 | C48: Children's home | D48: Active | E48: REDACTED | F48: REDACTED | G48: REDACTED | H48: REDACTED | I48: REDACTED | J48: REDACTED | K48: East Midlands | L48: East Midlands | M48: Nottingham | N48: Nottingham North | O48: Private | P48: Pathway Care Solutions Ltd 04004053 | Q48: Full inspection | R48: 2018-05-09 | S48: 2018-05-31 | T48: 10050968 | U48: Good | X48: Good | Y48: Good
A49: =HYPERLINK("http://reports.ofsted.gov.uk/inspection-reports/find-inspection-report/provider/CARE/1213416","Ofsted Social Care Provider Webpage") -> Ofsted Social Care Provider Webpage | B49: 1213416 | C49: Children's home | D49: Active | E49: REDACTED | F49: REDACTED | G49: REDACTED | H49: REDACTED | I49: REDACTED | J49: REDACTED | K49: West Midlands | L49: West Midlands | M49: Shropshire | N49: Ludlow | O49: Private | P49: Reflexion Care Group Limited | Q49: Full inspection | R49: 2018-01-31 | S49: 2018-03-01 | T49: 10028834 | U49: Good | X49: Good | Y49: Good
A50: =HYPERLINK("http://reports.ofsted.gov.uk/inspection-reports/find-inspection-report/provider/CARE/1213828","Ofsted Social Care Provider Webpage") -> Ofsted Social Care Provider Webpage | B50: 1213828 | C50: Children's home | D50: Active | E50: REDACTED | F50: REDACTED | G50: REDACTED | H50: REDACTED | I50: REDACTED | J50: REDACTED | K50: North West | L50: North West | M50: St Helens | N50: St Helens North | O50: Private | P50: Inspire Childrens Services Limited | Q50: Full inspection | R50: 2017-11-01 | S50: 2017-12-29 | T50: 10028806 | U50: Good | X50: Good | Y50: Good
A51: =HYPERLINK("http://reports.ofsted.gov.uk/inspection-reports/find-inspection-report/provider/CARE/1214266","Ofsted Social Care Provider Webpage") -> Ofsted Social Care Provider Webpage | B51: 1214266 | C51: Children's home | D51: Active | E51: REDACTED | F51: REDACTED | G51: REDACTED | H51: REDACTED | I51: REDACTED | J51: REDACTED | K51: East Midlands | L51: East Midlands | M51: Leicestershire | N51: Harborough | O51: Private | P51: Platform Childcare Ltd | Q51: Full inspection | R51: 2018-01-17 | S51: 2018-02-07 | T51: 10028830 | U51: Outstanding | X51: Outstanding | Y51: Outstanding
A52: =HYPERLINK("http://reports.ofsted.gov.uk/inspection-reports/find-inspection-report/provider/CARE/1214270","Ofsted Social Care Provider Webpage") -> Ofsted Social Care Provider Webpage | B52: 1214270 | C52: Children's home | D52: Active | E52: REDACTED | F52: REDACTED | G52: REDACTED | H52: REDACTED | I52: REDACTED | J52: REDACTED | K52: North West | L52: North West | M52: Cheshire East | N52: Macclesfield | O52: Private | P52: Esland North Limited | Q52: Full inspection | R52: 2017-11-15 | S52: 2017-11-29 | T52: 10028849 | U52: Good | X52: Good | Y52: Good
A53: =HYPERLINK("http://reports.ofsted.gov.uk/inspection-reports/find-inspection-report/provider/CARE/1214396","Ofsted Social Care Provider Webpage") -> Ofsted Social Care Provider Webpage | B53: 1214396 | C53: Children's home | D53: Active | E53: REDACTED | F53: REDACTED | G53: REDACTED | H53: REDACTED | I53: REDACTED | J53: REDACTED | K53: West Midlands | L53: West Midlands | M53: Herefordshire | N53: North Herefordshire | O53: Private | P53: River Valley Care Ltd | Q53: Full inspection | R53: 2017-11-22 | S53: 2017-12-14 | T53: 10028860 | U53: Good | X53: Good | Y53: Good
A54: =HYPERLINK("http://reports.ofsted.gov.uk/inspection-reports/find-inspection-report/provider/CARE/1214688","Ofsted Social Care Provider Webpage") -> Ofsted Social Care Provider Webpage | B54: 1214688 | C54: Children's home | D54: Active | E54: REDACTED | F54: REDACTED | G54: REDACTED | H54: REDACTED | I54: REDACTED | J54: REDACTED | K54: South East | L54: South East | M54: Southampton | N54: Southampton, Test | O54: Private | P54: Headway House Limited | Q54: Full inspection | R54: 2018-04-25 | S54: 2018-05-25 | T54: 10050961 | U54: Requires improvement to be good | X54: Requires improvement to be good | Y54: Requires improvement to be good
A55: =HYPERLINK("http://reports.ofsted.gov.uk/inspection-reports/find-inspection-report/provider/CARE/1215521","Ofsted Social Care Provider Webpage") -> Ofsted Social Care Provider Webpage | B55: 1215521 | C55: Children's home | D55: Active | E55: REDACTED | F55: REDACTED | G55: REDACTED | H55: REDACTED | I55: REDACTED | J55: REDACTED | K55: East Midlands | L55: East Midlands | M55: Nottingham | N55: Nottingham South | O55: Private | P55: Resolute Care Ltd | Q55: Full inspection | R55: 2017-07-04 | S55: 2017-07-25 | T55: 10028841 | U55: Outstanding | X55: Outstanding | Y55: Good
A56: =HYPERLINK("http://reports.ofsted.gov.uk/inspection-reports/find-inspection-report/provider/CARE/1216505","Ofsted Social Care Provider Webpage") -> Ofsted Social Care Provider Webpage | B56: 1216505 | C56: Children's home | D56: Active | E56: REDACTED | F56: REDACTED | G56: REDACTED | H56: REDACTED | I56: REDACTED | J56: REDACTED | K56: North East, Yorkshire and the Humber | L56: North East | M56: Newcastle upon Tyne | N56: Newcastle upon Tyne East | O56: Private | P56: Hennessy Living Group Ltd | Q56: Full inspection | R56: 2017-09-05 | S56: 2017-10-24 | T56: 10028870 | U56: Good | X56: Good | Y56: Good
A57: =HYPERLINK("http://reports.ofsted.gov.uk/inspection-reports/find-inspection-report/provider/CARE/1216657","Ofsted Social Care Provider Webpage") -> Ofsted Social Care Provider Webpage | B57: 1216657 | C57: Children's home | D57: Active | E57: REDACTED | F57: REDACTED | G57: REDACTED | H57: REDACTED | I57: REDACTED | J57: REDACTED | K57: East Midlands | L57: East Midlands | M57: Nottingham | N57: Nottingham East | O57: Voluntary | P57: Nottinghamshire Ymca | Q57: Full inspection | R57: 2018-07-17 | S57: 2018-07-31 | T57: 10050975 | U57: Good | X57: Good | Y57: Good
A58: =HYPERLINK("http://reports.ofsted.gov.uk/inspection-reports/find-inspection-report/provider/CARE/1220887","Ofsted Social Care Provider Webpage") -> Ofsted Social Care Provider Webpage | B58: 1220887 | C58: Children's home | D58: Active | E58: REDACTED | F58: REDACTED | G58: REDACTED | H58: REDACTED | I58: REDACTED | J58: REDACTED | K58: West Midlands | L58: West Midlands | M58: Staffordshire | N58: Stafford | O58: Private | P58: Hygge Care Ltd | Q58: Full inspection | R58: 2018-01-09 | S58: 2018-01-30 | T58: 10028838 | U58: Good | X58: Good | Y58: Good
A59: =HYPERLINK("http://reports.ofsted.gov.uk/inspection-reports/find-inspection-report/provider/CARE/1221357","Ofsted Social Care Provider Webpage") -> Ofsted Social Care Provider Webpage | B59: 1221357 | C59: Children's home | D59: Active | E59: REDACTED | F59: REDACTED | G59: REDACTED | H59: REDACTED | I59: REDACTED | J59: REDACTED | K59: North West | L59: North West | M59: Blackpool | N59: Blackpool South | O59: Private | P59: Hexagon Care Services Limited | Q59: Full inspection | R59: 2017-12-13 | S59: 2018-01-24 | T59: 10028930 | U59: Good | X59: Good | Y59: Good
A60: =HYPERLINK("http://reports.ofsted.gov.uk/inspection-reports/find-inspection-report/provider/CARE/1221437","Ofsted Social Care Provider Webpage") -> Ofsted Social Care Provider Webpage | B60: 1221437 | C60: Children's home | D60: Active | E60: REDACTED | F60: REDACTED | G60: REDACTED | H60: REDACTED | I60: REDACTED | J60: REDACTED | K60: South West | L60: South West | M60: Dorset | N60: South Dorset | O60: Private | P60: Potensial Ltd | Q60: Full inspection | R60: 2017-05-11 | S60: 2017-06-07 | T60: 10028886 | U60: Good | X60: Good | Y60: Good
A61: =HYPERLINK("http://reports.ofsted.gov.uk/inspection-reports/find-inspection-report/provider/CARE/1221700","Ofsted Social Care Provider Webpage") -> Ofsted Social Care Provider Webpage | B61: 1221700 | C61: Children's home | D61: Active | E61: REDACTED | F61: REDACTED | G61: REDACTED | H61: REDACTED | I61: REDACTED | J61: REDACTED | K61: North West | L61: North West | M61: Lancashire | N61: Ribble Valley | O61: Private | P61: Hexagon Care Services Limited | Q61: Full inspection | R61: 2018-09-20 | S61: 2018-10-19 | T61: 10050992 | U61: Good | X61: Good | Y61: Outstanding
A62: =HYPERLINK("http://reports.ofsted.gov.uk/inspection-reports/find-inspection-report/provider/CARE/1222089","Ofsted Social Care Provider Webpage") -> Ofsted Social Care Provider Webpage | B62: 1222089 | C62: Children's home | D62: Active | E62: REDACTED | F62: REDACTED | G62: REDACTED | H62: REDACTED | I62: REDACTED | J62: REDACTED | K62: West Midlands | L62: West Midlands | M62: Stoke-on-Trent | N62: Stoke-on-Trent South | O62: Private | P62: Platinum Services For Children (residential Care) Ltd | Q62: Full inspection | R62: 2018-07-12 | S62: 2018-08-31 | T62: 10050999 | U62: Good | X62: Requires improvement to be good | Y62: Good
A63: =HYPERLINK("http://reports.ofsted.gov.uk/inspection-reports/find-inspection-report/provider/CARE/1223201","Ofsted Social Care Provider Webpage") -> Ofsted Social Care Provider Webpage | B63: 1223201 | C63: Children's home | D63: Active | E63: REDACTED | F63: REDACTED | G63: REDACTED | H63: REDACTED | I63: REDACTED | J63: REDACTED | K63: North East, Yorkshire and the Humber | L63: Yorkshire and The Humber | M63: Leeds | N63: Leeds Central | O63: Local Authority | P63: Leeds City Council | Q63: Full inspection | R63: 2018-06-06 | S63: 2018-07-04 | T63: 10050970 | U63: Outstanding | X63: Outstanding | Y63: Outstanding
A64: =HYPERLINK("http://reports.ofsted.gov.uk/inspection-reports/find-inspection-report/provider/CARE/1223491","Ofsted Social Care Provider Webpage") -> Ofsted Social Care Provider Webpage | B64: 1223491 | C64: Children's home | D64: Active | E64: REDACTED | F64: REDACTED | G64: REDACTED | H64: REDACTED | I64: REDACTED | J64: REDACTED | K64: West Midlands | L64: West Midlands | M64: Shropshire | N64: North Shropshire | O64: Private | P64: Bryn Melyn Care Limited | Q64: Full inspection | R64: 2017-05-23 | S64: 2017-06-21 | T64: 10028901 | U64: Good | X64: Good | Y64: Good
A65: =HYPERLINK("http://reports.ofsted.gov.uk/inspection-reports/find-inspection-report/provider/CARE/1223501","Ofsted Social Care Provider Webpage") -> Ofsted Social Care Provider Webpage | B65: 1223501 | C65: Children's home | D65: Active | E65: REDACTED | F65: REDACTED | G65: REDACTED | H65: REDACTED | I65: REDACTED | J65: REDACTED | K65: North West | L65: North West | M65: Lancashire | N65: Fylde | O65: Private | P65: Hexagon Care Services Limited | Q65: Full inspection | R65: 2017-10-18 | S65: 2017-11-29 | T65: 10028871 | U65: Outstanding | X65: Outstanding | Y65: Outstanding
A66: =HYPERLINK("http://reports.ofsted.gov.uk/inspection-reports/find-inspection-report/provider/CARE/1223681","Ofsted Social Care Provider Webpage") -> Ofsted Social Care Provider Webpage | B66: 1223681 | C66: Children's home | D66: Active | E66: REDACTED | F66: REDACTED | G66: REDACTED | H66: REDACTED | I66: REDACTED | J66: REDACTED | K66: North West | L66: North West | M66: Lancashire | N66: Burnley | O66: Private | P66: Sandcastle Care Ltd | Q66: Full inspection | R66: 2017-05-08 | S66: 2017-05-31 | T66: 10028898 | U66: Good | X66: Good | Y66: Good
A67: =HYPERLINK("http://reports.ofsted.gov.uk/inspection-reports/find-inspection-report/provider/CARE/1224093","Ofsted Social Care Provider Webpage") -> Ofsted Social Care Provider Webpage | B67: 1224093 | C67: Children's home | D67: Active | E67: REDACTED | F67: REDACTED | G67: REDACTED | H67: REDACTED | I67: REDACTED | J67: REDACTED | K67: East of England | L67: East of England | M67: Hertfordshire | N67: Hemel Hempstead | O67: Private | P67: Broadwood Residential Limited | Q67: Full inspection | R67: 2018-06-25 | S67: 2018-07-16 | T67: 10050953 | U67: Good | X67: Good | Y67: Good
A68: =HYPERLINK("http://reports.ofsted.gov.uk/inspection-reports/find-inspection-report/provider/CARE/1224251","Ofsted Social Care Provider Webpage") -> Ofsted Social Care Provider Webpage | B68: 1224251 | C68: Children's home | D68: Active | E68: REDACTED | F68: REDACTED | G68: REDACTED | H68: REDACTED | I68: REDACTED | J68: REDACTED | K68: North West | L68: North West | M68: Wigan | N68: Makerfield | O68: Private | P68: Inspire Childrens Services Limited | Q68: Full inspection | R68: 2018-05-02 | S68: 2018-05-24 | T68: 10050979 | U68: Good | X68: Good | Y68: Good
A69: =HYPERLINK("http://reports.ofsted.gov.uk/inspection-reports/find-inspection-report/provider/CARE/1224663","Ofsted Social Care Provider Webpage") -> Ofsted Social Care Provider Webpage | B69: 1224663 | C69: Children's home | D69: Active | E69: REDACTED | F69: REDACTED | G69: REDACTED | H69: REDACTED | I69: REDACTED | J69: REDACTED | K69: East Midlands | L69: East Midlands | M69: Leicestershire | N69: Charnwood | O69: Private | P69: Horizon Care And Education Group Limited | Q69: Full inspection | R69: 2018-06-06 | S69: 2018-06-29 | T69: 10050977 | U69: Outstanding | X69: Outstanding | Y69: Outstanding
A70: =HYPERLINK("http://reports.ofsted.gov.uk/inspection-reports/find-inspection-report/provider/CARE/1224674","Ofsted Social Care Provider Webpage") -> Ofsted Social Care Provider Webpage | B70: 1224674 | C70: Children's home | D70: Active | E70: REDACTED | F70: REDACTED | G70: REDACTED | H70: REDACTED | I70: REDACTED | J70: REDACTED | K70: East Midlands | L70: East Midlands | M70: Rutland | N70: Rutland and Melton | O70: Private | P70: Hopscotch Solutions Limited | Q70: Full inspection | R70: 2018-07-03 | S70: 2018-07-23 | T70: 10050998 | U70: Outstanding | X70: Outstanding | Y70: Outstanding
A71: =HYPERLINK("http://reports.ofsted.gov.uk/inspection-reports/find-inspection-report/provider/CARE/1225136","Ofsted Social Care Provider Webpage") -> Ofsted Social Care Provider Webpage | B71: 1225136 | C71: Children's home | D71: Active | E71: REDACTED | F71: REDACTED | G71: REDACTED | H71: REDACTED | I71: REDACTED | J71: REDACTED | K71: North West | L71: North West | M71: Lancashire | N71: Preston | O71: Private | P71: The Cambian Group | Q71: Full inspection | R71: 2018-05-02 | S71: 2018-05-25 | T71: 10051036 | U71: Good | X71: Good | Y71: Requires improvement to be good
A72: =HYPERLINK("http://reports.ofsted.gov.uk/inspection-reports/find-inspection-report/provider/CARE/1225371","Ofsted Social Care Provider Webpage") -> Ofsted Social Care Provider Webpage | B72: 1225371 | C72: Children's home | D72: Active | E72: REDACTED | F72: REDACTED | G72: REDACTED | H72: REDACTED | I72: REDACTED | J72: REDACTED | K72: North West | L72: North West | M72: Warrington | N72: Warrington South | O72: Private | P72: The Cambian Group | Q72: Full inspection | R72: 2018-05-30 | S72: 2018-06-14 | T72: 10051024 | U72: Good | X72: Good | Y72: Good
A73: =HYPERLINK("http://reports.ofsted.gov.uk/inspection-reports/find-inspection-report/provider/CARE/1225887","Ofsted Social Care Provider Webpage") -> Ofsted Social Care Provider Webpage | B73: 1225887 | C73: Children's home | D73: Active | E73: REDACTED | F73: REDACTED | G73: REDACTED | H73: REDACTED | I73: REDACTED | J73: REDACTED | K73: South East | L73: South East | M73: Kent | N73: Sittingbourne and Sheppey | O73: Private | P73: Benecare Limited | Q73: Full inspection | R73: 2018-08-29 | S73: 2018-10-09 | T73: 10050986 | U73: Good | X73: Good | Y73: Good
A74: =HYPERLINK("http://reports.ofsted.gov.uk/inspection-reports/find-inspection-report/provider/CARE/1226266","Ofsted Social Care Provider Webpage") -> Ofsted Social Care Provider Webpage | B74: 1226266 | C74: Children's home | D74: Active | E74: REDACTED | F74: REDACTED | G74: REDACTED | H74: REDACTED | I74: REDACTED | J74: REDACTED | K74: South East | L74: South East | M74: West Sussex | N74: Arundel and South Downs | O74: Private | P74: Kingdom Care Childrens Homes Ltd | Q74: Full inspection | R74: 2018-08-02 | S74: 2018-09-03 | T74: 10050983 | U74: Good | X74: Good | Y74: Good
A75: =HYPERLINK("http://reports.ofsted.gov.uk/inspection-reports/find-inspection-report/provider/CARE/1226397","Ofsted Social Care Provider Webpage") -> Ofsted Social Care Provider Webpage | B75: 1226397 | C75: Children's home | D75: Active | E75: REDACTED | F75: REDACTED | G75: REDACTED | H75: REDACTED | I75: REDACTED | J75: REDACTED | K75: West Midlands | L75: West Midlands | M75: Birmingham | N75: Birmingham, Erdington | O75: Private | P75: Compass Children's Homes Ltd | Q75: Full inspection | R75: 2018-09-12 | S75: 2018-10-15 | T75: 10051128 | U75: Requires improvement to be good | X75: Requires improvement to be good | Y75: Requires improvement to be good
A76: =HYPERLINK("http://reports.ofsted.gov.uk/inspection-reports/find-inspection-report/provider/CARE/1226495","Ofsted Social Care Provider Webpage") -> Ofsted Social Care Provider Webpage | B76: 1226495 | C76: Children's home | D76: Active | E76: REDACTED | F76: REDACTED | G76: REDACTED | H76: REDACTED | I76: REDACTED | J76: REDACTED | K76: South East | L76: South East | M76: West Sussex | N76: East Worthing and Shoreham | O76: Private | P76: Kingdom Care Childrens Homes Ltd | Q76: Full inspection | R76: 2017-07-18 | S76: 2017-08-07 | T76: 10028856 | U76: Good | X76: Good | Y76: Good
A77: =HYPERLINK("http://reports.ofsted.gov.uk/inspection-reports/find-inspection-report/provider/CARE/1226612","Ofsted Social Care Provider Webpage") -> Ofsted Social Care Provider Webpage | B77: 1226612 | C77: Children's home | D77: Active | E77: REDACTED | F77: REDACTED | G77: REDACTED | H77: REDACTED | I77: REDACTED | J77: REDACTED | K77: East of England | L77: East of England | M77: Essex | N77: Harlow | O77: Private | P77: Harmony Residential Homes Ltd | Q77: Full inspection | R77: 2018-08-13 | S77: 2018-09-04 | T77: 10051067 | U77: Good | X77: Good | Y77: Good
A78: =HYPERLINK("http://reports.ofsted.gov.uk/inspection-reports/find-inspection-report/provider/CARE/1226757","Ofsted Social Care Provider Webpage") -> Ofsted Social Care Provider Webpage | B78: 1226757 | C78: Children's home | D78: Active | E78: REDACTED | F78: REDACTED | G78: REDACTED | H78: REDACTED | I78: REDACTED | J78: REDACTED | K78: East of England | L78: East of England | M78: Thurrock | N78: South Basildon and East Thurrock | O78: Private | P78: Potton Homes Ltd | Q78: Full inspection | R78: 2018-06-04 | S78: 2018-06-25 | T78: 10051008 | U78: Good | X78: Good | Y78: Good
A79: =HYPERLINK("http://reports.ofsted.gov.uk/inspection-reports/find-inspection-report/provider/CARE/1226969","Ofsted Social Care Provider Webpage") -> Ofsted Social Care Provider Webpage | B79: 1226969 | C79: Children's home | D79: Active | E79: REDACTED | F79: REDACTED | G79: REDACTED | H79: REDACTED | I79: REDACTED | J79: REDACTED | K79: East of England | L79: East of England | M79: Cambridgeshire | N79: South Cambridgeshire | O79: Voluntary | P79: Action For Children | Q79: Full inspection | R79: 2018-07-31 | S79: 2018-08-20 | T79: 10050989 | U79: Requires improvement to be good | X79: Requires improvement to be good | Y79: Requires improvement to be good
A80: =HYPERLINK("http://reports.ofsted.gov.uk/inspection-reports/find-inspection-report/provider/CARE/1226971","Ofsted Social Care Provider Webpage") -> Ofsted Social Care Provider Webpage | B80: 1226971 | C80: Residential special school (registered as a children's home) | D80: Active | E80: REDACTED | F80: REDACTED | G80: REDACTED | H80: REDACTED | I80: REDACTED | J80: REDACTED | K80: South West | L80: South West | M80: South Gloucestershire | N80: Thornbury and Yate | O80: Voluntary | P80: Thornleigh Camphill Communities Ltd | Q80: Full inspection | R80: 2018-06-26 | S80: 2018-07-17 | T80: 10051016 | U80: Good | X80: Good | Y80: Good
A81: =HYPERLINK("http://reports.ofsted.gov.uk/inspection-reports/find-inspection-report/provider/CARE/1226975","Ofsted Social Care Provider Webpage") -> Ofsted Social Care Provider Webpage | B81: 1226975 | C81: Children's home | D81: Active | E81: REDACTED | F81: REDACTED | G81: REDACTED | H81: REDACTED | I81: REDACTED | J81: REDACTED | K81: East Midlands | L81: East Midlands | M81: Leicestershire | N81: Bosworth | O81: Private | P81: Horizon Care And Education Group Limited | Q81: Full inspection | R81: 2017-09-05 | S81: 2017-09-29 | T81: 10028866 | U81: Good | X81: Good | Y81: Good
A82: =HYPERLINK("http://reports.ofsted.gov.uk/inspection-reports/find-inspection-report/provider/CARE/1226977","Ofsted Social Care Provider Webpage") -> Ofsted Social Care Provider Webpage | B82: 1226977 | C82: Children's home | D82: Active | E82: REDACTED | F82: REDACTED | G82: REDACTED | H82: REDACTED | I82: REDACTED | J82: REDACTED | K82: South East | L82: South East | M82: Kent | N82: Dover | O82: Private | P82: Moonreach Ltd | Q82: Full inspection | R82: 2017-08-16 | S82: 2017-10-02 | T82: 10028896 | U82: Good | X82: Good | Y82: Good
A83: =HYPERLINK("http://reports.ofsted.gov.uk/inspection-reports/find-inspection-report/provider/CARE/1226978","Ofsted Social Care Provider Webpage") -> Ofsted Social Care Provider Webpage | B83: 1226978 | C83: Children's home | D83: Active | E83: REDACTED | F83: REDACTED | G83: REDACTED | H83: REDACTED | I83: REDACTED | J83: REDACTED | K83: North East, Yorkshire and the Humber | L83: Yorkshire and The Humber | M83: North Yorkshire | N83: Scarborough and Whitby | O83: Private | P83: The Cambian Group | Q83: Full inspection | R83: 2018-02-20 | S83: 2018-03-16 | T83: 10028921 | U83: Good | X83: Good | Y83: Good
A84: =HYPERLINK("http://reports.ofsted.gov.uk/inspection-reports/find-inspection-report/provider/CARE/1227060","Ofsted Social Care Provider Webpage") -> Ofsted Social Care Provider Webpage | B84: 1227060 | C84: Residential special school (registered as a children's home) | D84: Active | E84: REDACTED | F84: REDACTED | G84: REDACTED | H84: REDACTED | I84: REDACTED | J84: REDACTED | K84: North East, Yorkshire and the Humber | L84: Yorkshire and The Humber | M84: North Yorkshire | N84: Skipton and Ripon | O84: Private | P84: Cambian Autism Services Limited | Q84: Full inspection | R84: 2018-02-13 | S84: 2018-04-09 | T84: 10028845 | U84: Good | X84: Good | Y84: Good
A85: =HYPERLINK("http://reports.ofsted.gov.uk/inspection-reports/find-inspection-report/provider/CARE/1227330","Ofsted Social Care Provider Webpage") -> Ofsted Social Care Provider Webpage | B85: 1227330 | C85: Children's home | D85: Active | E85: REDACTED | F85: REDACTED | G85: REDACTED | H85: REDACTED | I85: REDACTED | J85: REDACTED | K85: West Midlands | L85: West Midlands | M85: Telford and Wrekin | N85: The Wrekin | O85: Private | P85: Positive Outcomes Childcare Ltd | Q85: Full inspection | R85: 2018-07-24 | S85: 2018-09-25 | T85: 10051028 | U85: Inadequate | X85: Inadequate | Y85: Inadequate
A86: =HYPERLINK("http://reports.ofsted.gov.uk/inspection-reports/find-inspection-report/provider/CARE/1227335","Ofsted Social Care Provider Webpage") -> Ofsted Social Care Provider Webpage | B86: 1227335 | C86: Children's home | D86: Active | E86: REDACTED | F86: REDACTED | G86: REDACTED | H86: REDACTED | I86: REDACTED | J86: REDACTED | K86: North West | L86: North West | M86: Lancashire | N86: West Lancashire | O86: Private | P86: Exceptional Care Ltd | Q86: Full inspection | R86: 2017-04-26 | S86: 2017-05-31 | T86: 10028931 | U86: Good | X86: Good | Y86: Good
A87: =HYPERLINK("http://reports.ofsted.gov.uk/inspection-reports/find-inspection-report/provider/CARE/1227596","Ofsted Social Care Provider Webpage") -> Ofsted Social Care Provider Webpage | B87: 1227596 | C87: Children's home | D87: Active | E87: REDACTED | F87: REDACTED | G87: REDACTED | H87: REDACTED | I87: REDACTED | J87: REDACTED | K87: West Midlands | L87: West Midlands | M87: Staffordshire | N87: Stafford | O87: Private | P87: Reflexion Care Group Limited | Q87: Full inspection | R87: 2017-11-14 | S87: 2017-12-28 | T87: 10028879 | U87: Good | X87: Good | Y87: Good
A88: =HYPERLINK("http://reports.ofsted.gov.uk/inspection-reports/find-inspection-report/provider/CARE/1227788","Ofsted Social Care Provider Webpage") -> Ofsted Social Care Provider Webpage | B88: 1227788 | C88: Children's home | D88: Active | E88: REDACTED | F88: REDACTED | G88: REDACTED | H88: REDACTED | I88: REDACTED | J88: REDACTED | K88: South West | L88: South West | M88: Somerset | N88: Somerton and Frome | O88: Private | P88: Solent Child Care Ltd | Q88: Full inspection | R88: 2017-11-09 | S88: 2017-12-04 | T88: 10028880 | U88: Good | X88: Good | Y88: Good
A89: =HYPERLINK("http://reports.ofsted.gov.uk/inspection-reports/find-inspection-report/provider/CARE/1227869","Ofsted Social Care Provider Webpage") -> Ofsted Social Care Provider Webpage | B89: 1227869 | C89: Children's home | D89: Active | E89: REDACTED | F89: REDACTED | G89: REDACTED | H89: REDACTED | I89: REDACTED | J89: REDACTED | K89: West Midlands | L89: West Midlands | M89: Walsall | N89: Aldridge-Brownhills | O89: Private | P89: Compass Children's Homes Ltd | Q89: Full inspection | R89: 2018-09-12 | S89: 2018-10-23 | T89: 10051117 | U89: Good | X89: Good | Y89: Good
A90: =HYPERLINK("http://reports.ofsted.gov.uk/inspection-reports/find-inspection-report/provider/CARE/1228090","Ofsted Social Care Provider Webpage") -> Ofsted Social Care Provider Webpage | B90: 1228090 | C90: Children's home | D90: Active | E90: REDACTED | F90: REDACTED | G90: REDACTED | H90: REDACTED | I90: REDACTED | J90: REDACTED | K90: West Midlands | L90: West Midlands | M90: Birmingham | N90: Sutton Coldfield | O90: Private | P90: Meadows Care Ltd | Q90: Full inspection | R90: 2018-05-02 | S90: 2018-05-21 | T90: 10051025 | U90: Good | X90: Good | Y90: Good
A91: =HYPERLINK("http://reports.ofsted.gov.uk/inspection-reports/find-inspection-report/provider/CARE/1228091","Ofsted Social Care Provider Webpage") -> Ofsted Social Care Provider Webpage | B91: 1228091 | C91: Children's home | D91: Active | E91: REDACTED | F91: REDACTED | G91: REDACTED | H91: REDACTED | I91: REDACTED | J91: REDACTED | K91: North West | L91: North West | M91: Cheshire West and Chester | N91: Ellesmere Port and Neston | O91: Private | P91: Phoenix Care And Education Ltd | Q91: Full inspection | R91: 2018-04-24 | S91: 2018-05-21 | T91: 10051057 | U91: Inadequate | X91: Inadequate | Y91: Inadequate
A92: =HYPERLINK("http://reports.ofsted.gov.uk/inspection-reports/find-inspection-report/provider/CARE/1228092","Ofsted Social Care Provider Webpage") -> Ofsted Social Care Provider Webpage | B92: 1228092 | C92: Children's home | D92: Active | E92: REDACTED | F92: REDACTED | G92: REDACTED | H92: REDACTED | I92: REDACTED | J92: REDACTED | K92: East of England | L92: East of England | M92: Essex | N92: Witham | O92: Private | P92: Personal Security Service Ltd | Q92: Full inspection | R92: 2018-06-12 | S92: 2018-06-29 | T92: 10051022 | U92: Good | X92: Good | Y92: Good
A93: =HYPERLINK("http://reports.ofsted.gov.uk/inspection-reports/find-inspection-report/provider/CARE/1228191","Ofsted Social Care Provider Webpage") -> Ofsted Social Care Provider Webpage | B93: 1228191 | C93: Children's home | D93: Active | E93: REDACTED | F93: REDACTED | G93: REDACTED | H93: REDACTED | I93: REDACTED | J93: REDACTED | K93: West Midlands | L93: West Midlands | M93: Staffordshire | N93: Staffordshire Moorlands | O93: Private | P93: Aspireone Care Ltd | Q93: Full inspection | R93: 2017-09-19 | S93: 2017-10-11 | T93: 10028907 | U93: Good | X93: Good | Y93: Outstanding
A94: =HYPERLINK("http://reports.ofsted.gov.uk/inspection-reports/find-inspection-report/provider/CARE/1228522","Ofsted Social Care Provider Webpage") -> Ofsted Social Care Provider Webpage | B94: 1228522 | C94: Children's home | D94: Active | E94: REDACTED | F94: REDACTED | G94: REDACTED | H94: REDACTED | I94: REDACTED | J94: REDACTED | K94: North West | L94: North West | M94: Lancashire | N94: Morecambe and Lunesdale | O94: Private | P94: Kedleston (Wood Grove Childcare) Ltd | Q94: Full inspection | R94: 2018-05-15 | S94: 2018-06-11 | T94: 10050981 | U94: Good | X94: Requires improvement to be good | Y94: Good
A95: =HYPERLINK("http://reports.ofsted.gov.uk/inspection-reports/find-inspection-report/provider/CARE/1228919","Ofsted Social Care Provider Webpage") -> Ofsted Social Care Provider Webpage | B95: 1228919 | C95: Children's home | D95: Active | E95: REDACTED | F95: REDACTED | G95: REDACTED | H95: REDACTED | I95: REDACTED | J95: REDACTED | K95: South East | L95: South East | M95: East Sussex | N95: Bexhill and Battle | O95: Private | P95: Anderida Adolescent Care | Q95: Full inspection | R95: 2018-07-10 | S95: 2018-07-31 | T95: 10051011 | U95: Outstanding | X95: Good | Y95: Outstanding
A96: =HYPERLINK("http://reports.ofsted.gov.uk/inspection-reports/find-inspection-report/provider/CARE/1229229","Ofsted Social Care Provider Webpage") -> Ofsted Social Care Provider Webpage | B96: 1229229 | C96: Children's home | D96: Active | E96: REDACTED | F96: REDACTED | G96: REDACTED | H96: REDACTED | I96: REDACTED | J96: REDACTED | K96: East Midlands | L96: East Midlands | M96: Nottinghamshire | N96: Newark | O96: Private | P96: Esland North Limited | Q96: Full inspection | R96: 2017-12-13 | S96: 2018-01-15 | T96: 10028891 | U96: Outstanding | X96: Outstanding | Y96: Outstanding
A97: =HYPERLINK("http://reports.ofsted.gov.uk/inspection-reports/find-inspection-report/provider/CARE/1229417","Ofsted Social Care Provider Webpage") -> Ofsted Social Care Provider Webpage | B97: 1229417 | C97: Children's home | D97: Active | E97: REDACTED | F97: REDACTED | G97: REDACTED | H97: REDACTED | I97: REDACTED | J97: REDACTED | K97: North East, Yorkshire and the Humber | L97: North East | M97: Middlesbrough | N97: Middlesbrough | O97: Private | P97: The Cambian Group | Q97: Full inspection | R97: 2018-04-24 | S97: 2018-07-13 | T97: 10051015 | U97: Good | X97: Outstanding | Y97: Good
A98: =HYPERLINK("http://reports.ofsted.gov.uk/inspection-reports/find-inspection-report/provider/CARE/1229534","Ofsted Social Care Provider Webpage") -> Ofsted Social Care Provider Webpage | B98: 1229534 | C98: Children's home | D98: Active | E98: REDACTED | F98: REDACTED | G98: REDACTED | H98: REDACTED | I98: REDACTED | J98: REDACTED | K98: North West | L98: North West | M98: Lancashire | N98: Hyndburn | O98: Private | P98: Halliwell Homes Limited | Q98: Full inspection | R98: 2018-07-03 | S98: 2018-07-26 | T98: 10051026 | U98: Inadequate | X98: Inadequate | Y98: Inadequate
A99: =HYPERLINK("http://reports.ofsted.gov.uk/inspection-reports/find-inspection-report/provider/CARE/1229762","Ofsted Social Care Provider Webpage") -> Ofsted Social Care Provider Webpage | B99: 1229762 | C99: Children's home | D99: Active | E99: REDACTED | F99: REDACTED | G99: REDACTED | H99: REDACTED | I99: REDACTED | J99: REDACTED | K99: East Midlands | L99: East Midlands | M99: Leicestershire | N99: Charnwood | O99: Private | P99: Horizon Care And Education Group Limited | Q99: Full inspection | R99: 2017-12-12 | S99: 2018-01-05 | T99: 10028882 | U99: Good | X99: Good | Y99: Good
A100: =HYPERLINK("http://reports.ofsted.gov.uk/inspection-reports/find-inspection-report/provider/CARE/1229766","Ofsted Social Care Provider Webpage") -> Ofsted Social Care Provider Webpage | B100: 1229766 | C100: Residential special school (registered as a children's home) | D100: Active | E100: REDACTED | F100: REDACTED | G100: REDACTED | H100: REDACTED | I100: REDACTED | J100: REDACTED | K100: East of England | L100: East of England | M100: Cambridgeshire | N100: South Cambridgeshire | O100: Private | P100: Aurora Care and Education Opco Limited | Q100: Full inspection | R100: 2017-05-23 | S100: 2017-06-13 | T100: 10028861 | U100: Good | X100: Good | Y100: Good
A101: =HYPERLINK("http://reports.ofsted.gov.uk/inspection-reports/find-inspection-report/provider/CARE/1229977","Ofsted Social Care Provider Webpage") -> Ofsted Social Care Provider Webpage | B101: 1229977 | C101: Children's home | D101: Active | E101: REDACTED | F101: REDACTED | G101: REDACTED | H101: REDACTED | I101: REDACTED | J101: REDACTED | K101: South East | L101: South East | M101: Oxfordshire | N101: Henley | O101: Local Authority | P101: Oxfordshire County Council | Q101: Full inspection | R101: 2018-07-23 | S101: 2018-08-21 | T101: 10051094 | U101: Requires improvement to be good | X101: Requires improvement to be good | Y101: Requires improvement to be good
A102: =HYPERLINK("http://reports.ofsted.gov.uk/inspection-reports/find-inspection-report/provider/CARE/1230268","Ofsted Social Care Provider Webpage") -> Ofsted Social Care Provider Webpage | B102: 1230268 | C102: Children's home | D102: Active | E102: REDACTED | F102: REDACTED | G102: REDACTED | H102: REDACTED | I102: REDACTED | J102: REDACTED | K102: East of England | L102: East of England | M102: Southend on Sea | N102: Southend West | O102: Private | P102: Kites Children Service's Ltd | Q102: Full inspection | R102: 2018-08-14 | S102: 2018-09-05 | T102: 10051029 | U102: Good | X102: Good | Y102: Good
A103: =HYPERLINK("http://reports.ofsted.gov.uk/inspection-reports/find-inspection-report/provider/CARE/1230411","Ofsted Social Care Provider Webpage") -> Ofsted Social Care Provider Webpage | B103: 1230411 | C103: Children's home | D103: Active | E103: REDACTED | F103: REDACTED | G103: REDACTED | H103: REDACTED | I103: REDACTED | J103: REDACTED | K103: South East | L103: South East | M103: Surrey | N103: Guildford | O103: Local Authority | P103: Surrey County Council | Q103: Full inspection | R103: 2017-07-20 | S103: 2017-08-14 | T103: 10028903 | U103: Good | X103: Good | Y103: Requires improvement to be good
A104: =HYPERLINK("http://reports.ofsted.gov.uk/inspection-reports/find-inspection-report/provider/CARE/1230415","Ofsted Social Care Provider Webpage") -> Ofsted Social Care Provider Webpage | B104: 1230415 | C104: Children's home | D104: Active | E104: REDACTED | F104: REDACTED | G104: REDACTED | H104: REDACTED | I104: REDACTED | J104: REDACTED | K104: West Midlands | L104: West Midlands | M104: Birmingham | N104: Birmingham, Perry Barr | O104: Private | P104: Beacon Child Care Ltd | Q104: Full inspection | R104: 2018-08-30 | S104: 2018-09-19 | T104: 10051061 | U104: Requires improvement to be good | X104: Requires improvement to be good | Y104: Requires improvement to be good
A105: =HYPERLINK("http://reports.ofsted.gov.uk/inspection-reports/find-inspection-report/provider/CARE/1230416","Ofsted Social Care Provider Webpage") -> Ofsted Social Care Provider Webpage | B105: 1230416 | C105: Children's home | D105: Active | E105: REDACTED | F105: REDACTED | G105: REDACTED | H105: REDACTED | I105: REDACTED | J105: REDACTED | K105: East of England | L105: East of England | M105: Bedford | N105: North East Bedfordshire | O105: Private | P105: The Cambian Group | Q105: Full inspection | R105: 2018-09-19 | S105: 2018-10-09 | T105: 10051031 | U105: Good | X105: Good | Y105: Good
A106: =HYPERLINK("http://reports.ofsted.gov.uk/inspection-reports/find-inspection-report/provider/CARE/1230725","Ofsted Social Care Provider Webpage") -> Ofsted Social Care Provider Webpage | B106: 1230725 | C106: Children's home | D106: Active | E106: REDACTED | F106: REDACTED | G106: REDACTED | H106: REDACTED | I106: REDACTED | J106: REDACTED | K106: East of England | L106: East of England | M106: Essex | N106: Harwich and North Essex | O106: Private | P106: Pathways Care Group Limited | Q106: Full inspection | R106: 2018-07-26 | S106: 2018-08-21 | T106: 10051045 | U106: Requires improvement to be good | X106: Requires improvement to be good | Y106: Requires improvement to be good
A107: =HYPERLINK("http://reports.ofsted.gov.uk/inspection-reports/find-inspection-report/provider/CARE/1231066","Ofsted Social Care Provider Webpage") -> Ofsted Social Care Provider Webpage | B107: 1231066 | C107: Children's home | D107: Active | E107: REDACTED | F107: REDACTED | G107: REDACTED | H107: REDACTED | I107: REDACTED | J107: REDACTED | K107: South West | L107: South West | M107: Devon | N107: Newton Abbot | O107: Private | P107: One To One Crisis Intervention Ltd | Q107: Full inspection | R107: 2018-09-24 | S107: 2018-10-23 | T107: 10051000 | U107: Good | X107: Good | Y107: Good
A108: =HYPERLINK("http://reports.ofsted.gov.uk/inspection-reports/find-inspection-report/provider/CARE/1231067","Ofsted Social Care Provider Webpage") -> Ofsted Social Care Provider Webpage | B108: 1231067 | C108: Children's home | D108: Active | E108: REDACTED | F108: REDACTED | G108: REDACTED | H108: REDACTED | I108: REDACTED | J108: REDACTED | K108: South West | L108: South West | M108: Devon | N108: Newton Abbot | O108: Private | P108: One To One Crisis Intervention Ltd | Q108: Full inspection | R108: 2017-05-23 | S108: 2017-06-12 | T108: 10028885 | U108: Good | X108: Requires improvement to be good | Y108: Good
A109: =HYPERLINK("http://reports.ofsted.gov.uk/inspection-reports/find-inspection-report/provider/CARE/1231311","Ofsted Social Care Provider Webpage") -> Ofsted Social Care Provider Webpage | B109: 1231311 | C109: Children's home | D109: Active | E109: REDACTED | F109: REDACTED | G109: REDACTED | H109: REDACTED | I109: REDACTED | J109: REDACTED | K109: West Midlands | L109: West Midlands | M109: Telford and Wrekin | N109: The Wrekin | O109: Private | P109: Cove Care - Residential Limited | Q109: Full inspection | R109: 2018-07-30 | S109: 2018-08-20 | T109: 10051076 | U109: Requires improvement to be good | X109: Requires improvement to be good | Y109: Requires improvement to be good
A110: =HYPERLINK("http://reports.ofsted.gov.uk/inspection-reports/find-inspection-report/provider/CARE/1231399","Ofsted Social Care Provider Webpage") -> Ofsted Social Care Provider Webpage | B110: 1231399 | C110: Children's home | D110: Active | E110: REDACTED | F110: REDACTED | G110: REDACTED | H110: REDACTED | I110: REDACTED | J110: REDACTED | K110: North West | L110: North West | M110: Blackpool | N110: Blackpool North and Cleveleys | O110: Private | P110: Sandcastle Care Ltd | Q110: Full inspection | R110: 2017-08-15 | S110: 2017-09-12 | T110: 10028943 | U110: Outstanding | X110: Outstanding | Y110: Outstanding
A111: =HYPERLINK("http://reports.ofsted.gov.uk/inspection-reports/find-inspection-report/provider/CARE/1231404","Ofsted Social Care Provider Webpage") -> Ofsted Social Care Provider Webpage | B111: 1231404 | C111: Children's home | D111: Active | E111: REDACTED | F111: REDACTED | G111: REDACTED | H111: REDACTED | I111: REDACTED | J111: REDACTED | K111: North West | L111: North West | M111: Liverpool | N111: Liverpool, Walton | O111: Private | P111: Courtyard Care Limited | Q111: Full inspection | R111: 2017-08-08 | S111: 2017-09-19 | T111: 10037499 | U111: Good | X111: Good | Y111: Good
A112: =HYPERLINK("http://reports.ofsted.gov.uk/inspection-reports/find-inspection-report/provider/CARE/1231405","Ofsted Social Care Provider Webpage") -> Ofsted Social Care Provider Webpage | B112: 1231405 | C112: Children's home | D112: Active | E112: REDACTED | F112: REDACTED | G112: REDACTED | H112: REDACTED | I112: REDACTED | J112: REDACTED | K112: North West | L112: North West | M112: Lancashire | N112: Ribble Valley | O112: Local Authority | P112: Lancashire County Council | Q112: Full inspection | R112: 2017-09-12 | S112: 2017-10-04 | T112: 10028872 | U112: Good | X112: Good | Y112: Good
A113: =HYPERLINK("http://reports.ofsted.gov.uk/inspection-reports/find-inspection-report/provider/CARE/1231458","Ofsted Social Care Provider Webpage") -> Ofsted Social Care Provider Webpage | B113: 1231458 | C113: Children's home | D113: Active | E113: REDACTED | F113: REDACTED | G113: REDACTED | H113: REDACTED | I113: REDACTED | J113: REDACTED | K113: West Midlands | L113: West Midlands | M113: Birmingham | N113: Birmingham, Selly Oak | O113: Private | P113: Sherlock Healthcare Services Ltd | Q113: Full inspection | R113: 2018-06-26 | S113: 2018-07-12 | T113: 10051034 | U113: Requires improvement to be good | X113: Requires improvement to be good | Y113: Inadequate
A114: =HYPERLINK("http://reports.ofsted.gov.uk/inspection-reports/find-inspection-report/provider/CARE/1231525","Ofsted Social Care Provider Webpage") -> Ofsted Social Care Provider Webpage | B114: 1231525 | C114: Children's home | D114: Active | E114: REDACTED | F114: REDACTED | G114: REDACTED | H114: REDACTED | I114: REDACTED | J114: REDACTED | K114: North East, Yorkshire and the Humber | L114: Yorkshire and The Humber | M114: East Riding of Yorkshire | N114: Brigg and Goole | O114: Private | P114: The Cambian Group | Q114: Full inspection | R114: 2017-07-18 | S114: 2017-08-23 | T114: 10028899 | U114: Good | X114: Good | Y114: Requires improvement to be good
A115: =HYPERLINK("http://reports.ofsted.gov.uk/inspection-reports/find-inspection-report/provider/CARE/1231812","Ofsted Social Care Provider Webpage") -> Ofsted Social Care Provider Webpage | B115: 1231812 | C115: Children's home | D115: Active | E115: REDACTED | F115: REDACTED | G115: REDACTED | H115: REDACTED | I115: REDACTED | J115: REDACTED | K115: West Midlands | L115: West Midlands | M115: Birmingham | N115: Birmingham, Perry Barr | O115: Private | P115: Meadows Care Ltd | Q115: Full inspection | R115: 2017-10-23 | S115: 2017-11-24 | T115: 10028982 | U115: Good | X115: Good | Y115: Good
A116: =HYPERLINK("http://reports.ofsted.gov.uk/inspection-reports/find-inspection-report/provider/CARE/1232171","Ofsted Social Care Provider Webpage") -> Ofsted Social Care Provider Webpage | B116: 1232171 | C116: Children's home | D116: Active | E116: REDACTED | F116: REDACTED | G116: REDACTED | H116: REDACTED | I116: REDACTED | J116: REDACTED | K116: North East, Yorkshire and the Humber | L116: Yorkshire and The Humber | M116: Doncaster | N116: Doncaster Central | O116: Private | P116: In Safe Hands Care Ltd | Q116: Full inspection | R116: 2018-09-25 | S116: 2018-10-16 | T116: 10051037 | U116: Good | X116: Good | Y116: Requires improvement to be good
A117: =HYPERLINK("http://reports.ofsted.gov.uk/inspection-reports/find-inspection-report/provider/CARE/1232200","Ofsted Social Care Provider Webpage") -> Ofsted Social Care Provider Webpage | B117: 1232200 | C117: Children's home | D117: Active | E117: REDACTED | F117: REDACTED | G117: REDACTED | H117: REDACTED | I117: REDACTED | J117: REDACTED | K117: East Midlands | L117: East Midlands | M117: Northamptonshire | N117: Wellingborough | O117: Private | P117: Total Care Matters Limited | Q117: Full inspection | R117: 2018-05-15 | S117: 2018-06-18 | T117: 10051046 | U117: Good | X117: Good | Y117: Good
A118: =HYPERLINK("http://reports.ofsted.gov.uk/inspection-reports/find-inspection-report/provider/CARE/1232380","Ofsted Social Care Provider Webpage") -> Ofsted Social Care Provider Webpage | B118: 1232380 | C118: Children's home | D118: Active | E118: REDACTED | F118: REDACTED | G118: REDACTED | H118: REDACTED | I118: REDACTED | J118: REDACTED | K118: North West | L118: North West | M118: Bolton | N118: Bolton North East | O118: Voluntary | P118: Birtenshaw - company number 02978546 | Q118: Full inspection | R118: 2018-08-14 | S118: 2018-09-03 | T118: 10051009 | U118: Good | X118: Good | Y118: Good
A119: =HYPERLINK("http://reports.ofsted.gov.uk/inspection-reports/find-inspection-report/provider/CARE/1232649","Ofsted Social Care Provider Webpage") -> Ofsted Social Care Provider Webpage | B119: 1232649 | C119: Children's home | D119: Active | E119: REDACTED | F119: REDACTED | G119: REDACTED | H119: REDACTED | I119: REDACTED | J119: REDACTED | K119: North East, Yorkshire and the Humber | L119: North East | M119: Gateshead | N119: Blaydon | O119: Private | P119: Artemis Support Ltd | Q119: Full inspection | R119: 2018-09-18 | S119: 2018-10-26 | T119: 10051063 | U119: Good | X119: Good | Y119: Good
A120: =HYPERLINK("http://reports.ofsted.gov.uk/inspection-reports/find-inspection-report/provider/CARE/1232650","Ofsted Social Care Provider Webpage") -> Ofsted Social Care Provider Webpage | B120: 1232650 | C120: Children's home | D120: Active | E120: REDACTED | F120: REDACTED | G120: REDACTED | H120: REDACTED | I120: REDACTED | J120: REDACTED | K120: North East, Yorkshire and the Humber | L120: Yorkshire and The Humber | M120: Doncaster | N120: Don Valley | O120: Private | P120: Friends Together Care Homes Ltd | Q120: Full inspection | R120: 2018-09-12 | S120: 2018-10-10 | T120: 10051073 | U120: Good | X120: Good | Y120: Requires improvement to be good
A121: =HYPERLINK("http://reports.ofsted.gov.uk/inspection-reports/find-inspection-report/provider/CARE/1232657","Ofsted Social Care Provider Webpage") -> Ofsted Social Care Provider Webpage | B121: 1232657 | C121: Children's home | D121: Active | E121: REDACTED | F121: REDACTED | G121: REDACTED | H121: REDACTED | I121: REDACTED | J121: REDACTED | K121: West Midlands | L121: West Midlands | M121: Solihull | N121: Solihull | O121: Private | P121: Compass Children's Homes Ltd | Q121: Full inspection | R121: 2018-05-01 | S121: 2018-06-05 | T121: 10051188 | U121: Requires improvement to be good | X121: Requires improvement to be good | Y121: Requires improvement to be good
A122: =HYPERLINK("http://reports.ofsted.gov.uk/inspection-reports/find-inspection-report/provider/CARE/1232658","Ofsted Social Care Provider Webpage") -> Ofsted Social Care Provider Webpage | B122: 1232658 | C122: Children's home | D122: Active | E122: REDACTED | F122: REDACTED | G122: REDACTED | H122: REDACTED | I122: REDACTED | J122: REDACTED | K122: North West | L122: North West | M122: Cheshire East | N122: Congleton | O122: Private | P122: Compass Children's Homes Ltd | Q122: Full inspection | R122: 2018-07-04 | S122: 2018-08-03 | T122: 10051118 | U122: Requires improvement to be good | X122: Requires improvement to be good | Y122: Inadequate
A123: =HYPERLINK("http://reports.ofsted.gov.uk/inspection-reports/find-inspection-report/provider/CARE/1233307","Ofsted Social Care Provider Webpage") -> Ofsted Social Care Provider Webpage | B123: 1233307 | C123: Children's home | D123: Active | E123: REDACTED | F123: REDACTED | G123: REDACTED | H123: REDACTED | I123: REDACTED | J123: REDACTED | K123: North East, Yorkshire and the Humber | L123: North East | M123: Newcastle upon Tyne | N123: Newcastle upon Tyne East | O123: Local Authority | P123: Newcastle City Council | Q123: Full inspection | R123: 2017-05-09 | S123: 2017-06-27 | T123: 10029033 | U123: Outstanding | X123: Outstanding | Y123: Outstanding
A124: =HYPERLINK("http://reports.ofsted.gov.uk/inspection-reports/find-inspection-report/provider/CARE/1233310","Ofsted Social Care Provider Webpage") -> Ofsted Social Care Provider Webpage | B124: 1233310 | C124: Children's home | D124: Active | E124: REDACTED | F124: REDACTED | G124: REDACTED | H124: REDACTED | I124: REDACTED | J124: REDACTED | K124: North West | L124: North West | M124: Bolton | N124: Bolton North East | O124: Voluntary | P124: Birtenshaw - company number 02978546 | Q124: Full inspection | R124: 2017-04-24 | S124: 2017-05-23 | T124: 10028961 | U124: Good | X124: Good | Y124: Good
A125: =HYPERLINK("http://reports.ofsted.gov.uk/inspection-reports/find-inspection-report/provider/CARE/1233899","Ofsted Social Care Provider Webpage") -> Ofsted Social Care Provider Webpage | B125: 1233899 | C125: Children's home | D125: Active | E125: REDACTED | F125: REDACTED | G125: REDACTED | H125: REDACTED | I125: REDACTED | J125: REDACTED | K125: North West | L125: North West | M125: Cumbria | N125: Carlisle | O125: Private | P125: Active Ark Limited | Q125: Full inspection | R125: 2018-07-16 | S125: 2018-08-10 | T125: 10051115 | U125: Inadequate | X125: Inadequate | Y125: Inadequate
A126: =HYPERLINK("http://reports.ofsted.gov.uk/inspection-reports/find-inspection-report/provider/CARE/1233981","Ofsted Social Care Provider Webpage") -> Ofsted Social Care Provider Webpage | B126: 1233981 | C126: Children's home | D126: Active | E126: REDACTED | F126: REDACTED | G126: REDACTED | H126: REDACTED | I126: REDACTED | J126: REDACTED | K126: North East, Yorkshire and the Humber | L126: Yorkshire and The Humber | M126: Kirklees | N126: Huddersfield | O126: Private | P126: Time-Out Children's Home Ltd | Q126: Full inspection | R126: 2017-08-02 | S126: 2017-08-21 | T126: 10028968 | U126: Good | X126: Good | Y126: Requires improvement to be good
A127: =HYPERLINK("http://reports.ofsted.gov.uk/inspection-reports/find-inspection-report/provider/CARE/1234163","Ofsted Social Care Provider Webpage") -> Ofsted Social Care Provider Webpage | B127: 1234163 | C127: Children's home | D127: Active | E127: REDACTED | F127: REDACTED | G127: REDACTED | H127: REDACTED | I127: REDACTED | J127: REDACTED | K127: South East | L127: South East | M127: Kent | N127: Sittingbourne and Sheppey | O127: Private | P127: Jamores Limited | Q127: Full inspection | R127: 2018-06-27 | S127: 2018-08-02 | T127: 10051104 | U127: Requires improvement to be good | X127: Good | Y127: Inadequate
A128: =HYPERLINK("http://reports.ofsted.gov.uk/inspection-reports/find-inspection-report/provider/CARE/1234166","Ofsted Social Care Provider Webpage") -> Ofsted Social Care Provider Webpage | B128: 1234166 | C128: Children's home | D128: Active | E128: REDACTED | F128: REDACTED | G128: REDACTED | H128: REDACTED | I128: REDACTED | J128: REDACTED | K128: London | L128: London | M128: Newham | N128: West Ham | O128: Private | P128: Jamores Limited | Q128: Full inspection | R128: 2018-09-11 | S128: 2018-10-09 | T128: 10051101 | U128: Good | X128: Good | Y128: Good
A129: =HYPERLINK("http://reports.ofsted.gov.uk/inspection-reports/find-inspection-report/provider/CARE/1234243","Ofsted Social Care Provider Webpage") -> Ofsted Social Care Provider Webpage | B129: 1234243 | C129: Children's home | D129: Active | E129: REDACTED | F129: REDACTED | G129: REDACTED | H129: REDACTED | I129: REDACTED | J129: REDACTED | K129: East Midlands | L129: East Midlands | M129: Leicestershire | N129: Charnwood | O129: Private | P129: Horizon Care And Education Group Limited | Q129: Full inspection | R129: 2017-09-19 | S129: 2017-10-10 | T129: 10028923 | U129: Good | X129: Good | Y129: Good
A130: =HYPERLINK("http://reports.ofsted.gov.uk/inspection-reports/find-inspection-report/provider/CARE/1234244","Ofsted Social Care Provider Webpage") -> Ofsted Social Care Provider Webpage | B130: 1234244 | C130: Children's home | D130: Active | E130: REDACTED | F130: REDACTED | G130: REDACTED | H130: REDACTED | I130: REDACTED | J130: REDACTED | K130: East Midlands | L130: East Midlands | M130: Leicestershire | N130: Loughborough | O130: Private | P130: Horizon Care And Education Group Limited | Q130: Full inspection | R130: 2017-05-17 | S130: 2017-06-14 | T130: 10028912 | U130: Good | X130: Good | Y130: Good
A131: =HYPERLINK("http://reports.ofsted.gov.uk/inspection-reports/find-inspection-report/provider/CARE/1234317","Ofsted Social Care Provider Webpage") -> Ofsted Social Care Provider Webpage | B131: 1234317 | C131: Children's home | D131: Active | E131: REDACTED | F131: REDACTED | G131: REDACTED | H131: REDACTED | I131: REDACTED | J131: REDACTED | K131: North East, Yorkshire and the Humber | L131: Yorkshire and The Humber | M131: Calderdale | N131: Halifax | O131: Private | P131: Care 4 Children Residential Services Ltd | Q131: Full inspection | R131: 2018-05-03 | S131: 2018-05-23 | T131: 10051075 | U131: Good | X131: Good | Y131: Outstanding
A132: =HYPERLINK("http://reports.ofsted.gov.uk/inspection-reports/find-inspection-report/provider/CARE/1234319","Ofsted Social Care Provider Webpage") -> Ofsted Social Care Provider Webpage | B132: 1234319 | C132: Children's home | D132: Active | E132: REDACTED | F132: REDACTED | G132: REDACTED | H132: REDACTED | I132: REDACTED | J132: REDACTED | K132: North East, Yorkshire and the Humber | L132: North East | M132: North Tyneside | N132: North Tyneside | O132: Voluntary | P132: The Percy Hedley Foundation | Q132: Full inspection | R132: 2017-07-18 | S132: 2017-08-22 | T132: 10028933 | U132: Outstanding | X132: Outstanding | Y132: Outstanding
A133: =HYPERLINK("http://reports.ofsted.gov.uk/inspection-reports/find-inspection-report/provider/CARE/1234323","Ofsted Social Care Provider Webpage") -> Ofsted Social Care Provider Webpage | B133: 1234323 | C133: Children's home | D133: Active | E133: REDACTED | F133: REDACTED | G133: REDACTED | H133: REDACTED | I133: REDACTED | J133: REDACTED | K133: North East, Yorkshire and the Humber | L133: North East | M133: North Tyneside | N133: North Tyneside | O133: Voluntary | P133: The Percy Hedley Foundation | Q133: Full inspection | R133: 2017-06-06 | S133: 2017-07-03 | T133: 10028935 | U133: Good | X133: Requires improvement to be good | Y133: Requires improvement to be good
A134: =HYPERLINK("http://reports.ofsted.gov.uk/inspection-reports/find-inspection-report/provider/CARE/1234374","Ofsted Social Care Provider Webpage") -> Ofsted Social Care Provider Webpage | B134: 1234374 | C134: Children's home | D134: Active | E134: REDACTED | F134: REDACTED | G134: REDACTED | H134: REDACTED | I134: REDACTED | J134: REDACTED | K134: South West | L134: South West | M134: Cornwall | N134: North Cornwall | O134: Private | P134: Phoenix Child Care Limited | Q134: Full inspection | R134: 2018-06-11 | S134: 2018-07-05 | T134: 10051033 | U134: Good | X134: Good | Y134: Good
